Workbook

Sheet Menu (hidden)
B2: Tariffs rates: | C2: Restructured rates in 2013/14 rand value
B4: Non-local authority | C4: Local authority
B5: WEPS | C5: Megaflex tariff
B6: Megaflex tariff | C6: Nightsave large tariff
B7: Nightsave large tariff | C7: Miniflex tariff
B8: Miniflex tariff | C8: Nightsave small tariff
B9: Nightsave small tariff | C9: Businessrate tariff
B10: Businessrate tariff | C10: Public lighting tariff
B11: Transflex 1 tariff | C11: Ruraflex tariff
B12: Transflex 2 tariff | C12: Nightsave rural tariff
B13: Public lighting tariff | C13: Landrate tariff
B14: Ruraflex tariff | C14: Homepower tariff
B15: Nightsave rural tariff | C15: Homelight tariff
B16: Landrate tariff
B17: Homepower tariff
B18: Homelight tariff

Sheet WEPS inc
A2: Non-municipal | G2: WEPS | R2: Non-local authority
J4: Active energy charge [c/kWh] | V4: Transmission network charges [R/kVA/m]
H5: Transmission zone | J5: High demand season [Jun - Aug] | P5: Low demand season [Sep - May]
I6: Voltage | J6: Peak | L6: Standard | N6: Off Peak | P6: Peak | R6: Standard | T6: Off Peak
A7: Tariff | B7: Tariff nameBillcode | C7: Tx zone | D7: Voltage | E7: Billcode | K7: VAT incl | M7: VAT incl | O7: VAT incl | Q7: VAT incl | S7: VAT incl | U7: VAT incl | W7: VAT incl
A8: WEPS | B8: We | C8: 0 | D8: 1 | E8: We01N | H8: ≤ 300km | I8: < 500V | J8: 220.91 | K8: 251.84 | L8: 67.21 | M8: 76.62 | N8: 36.69 | O8: 41.83 | P8: 72.34 | Q8: 82.47 | R8: 49.92 | S8: 56.91 | T8: 31.82 | U8: 36.27 | V8: 6.32 | W8: 7.2
A9: WEPS | B9: We | C9: 0 | D9: 2 | E9: We02N | I9: ≥ 500V & < 66kV | J9: 217.44 | K9: 247.88 | L9: 65.87 | M9: 75.09 | N9: 35.77 | O9: 40.78 | P9: 70.93 | Q9: 80.86 | R9: 48.82 | S9: 55.65 | T9: 30.97 | U9: 35.31 | V9: 5.78 | W9: 6.59
A10: WEPS | B10: We | C10: 0 | D10: 3 | E10: We03N | I10: ≥ 66kV & ≤ 132kV | J10: 210.56 | K10: 240.04 | L10: 63.78 | M10: 72.71 | N10: 34.64 | O10: 39.49 | P10: 68.69 | Q10: 78.31 | R10: 47.27 | S10: 53.89 | T10: 29.99 | U10: 34.19 | V10: 5.63 | W10: 6.42
A11: WEPS | B11: We | C11: 0 | D11: 4 | E11: We04N | I11: > 132kV* | J11: 198.45 | K11: 226.23 | L11: 60.11 | M11: 68.53 | N11: 32.65 | O11: 37.22 | P11: 64.74 | Q11: 73.8 | R11: 44.55 | S11: 50.79 | T11: 28.27 | U11: 32.23 | V11: 7.11 | W11: 8.11
A12: WEPS | B12: We | C12: 1 | D12: 1 | E12: We11N | H12: > 300km and ≤ 600km | I12: < 500V | J12: 222.71 | K12: 253.89 | L12: 67.48 | M12: 76.93 | N12: 36.64 | O12: 41.77 | P12: 72.65 | Q12: 82.82 | R12: 50.01 | S12: 57.01 | T12: 31.73 | U12: 36.17 | V12: 6.37 | W12: 7.26
A13: WEPS | B13: We | C13: 1 | D13: 2 | E13: We12N | I13: ≥ 500V & < 66kV | J13: 219.61 | K13: 250.36 | L13: 66.53 | M13: 75.84 | N13: 36.13 | O13: 41.19 | P13: 71.65 | Q13: 81.68 | R13: 49.3 | S13: 56.2 | T13: 31.28 | U13: 35.66 | V13: 5.83 | W13: 6.65
A14: WEPS | B14: We | C14: 1 | D14: 3 | E14: We13N | I14: ≥ 66kV & ≤ 132kV | J14: 212.63 | K14: 242.4 | L14: 64.41 | M14: 73.43 | N14: 34.97 | O14: 39.87 | P14: 69.36 | Q14: 79.07 | R14: 47.73 | S14: 54.41 | T14: 30.28 | U14: 34.52 | V14: 5.67 | W14: 6.46
A15: WEPS | B15: We | C15: 1 | D15: 4 | E15: We14N | I15: > 132kV* | J15: 200.43 | K15: 228.49 | L15: 60.72 | M15: 69.22 | N15: 32.96 | O15: 37.57 | P15: 65.37 | Q15: 74.52 | R15: 44.99 | S15: 51.29 | T15: 28.54 | U15: 32.54 | V15: 7.18 | W15: 8.19
A16: WEPS | B16: We | C16: 2 | D16: 1 | E16: We21N | H16: > 600km and ≤ 900km | I16: < 500V | J16: 224.93 | K16: 256.42 | L16: 68.13 | M16: 77.67 | N16: 36.99 | O16: 42.17 | P16: 73.38 | Q16: 83.65 | R16: 50.5 | S16: 57.57 | T16: 32.03 | U16: 36.51 | V16: 6.45 | W16: 7.35
A17: WEPS | B17: We | C17: 2 | D17: 2 | E17: We22N | I17: ≥ 500V & < 66kV | J17: 221.81 | K17: 252.86 | L17: 67.2 | M17: 76.61 | N17: 36.49 | O17: 41.6 | P17: 72.36 | Q17: 82.49 | R17: 49.8 | S17: 56.77 | T17: 31.59 | U17: 36.01 | V17: 5.88 | W17: 6.7
A18: WEPS | B18: We | C18: 2 | D18: 3 | E18: We23N | I18: ≥ 66kV & ≤ 132kV | J18: 214.79 | K18: 244.86 | L18: 65.07 | M18: 74.18 | N18: 35.33 | O18: 40.28 | P18: 70.06 | Q18: 79.87 | R18: 48.22 | S18: 54.97 | T18: 30.59 | U18: 34.87 | V18: 5.71 | W18: 6.51
A19: WEPS | B19: We | C19: 2 | D19: 4 | E19: We24N | I19: > 132kV* | J19: 202.45 | K19: 230.79 | L19: 61.32 | M19: 69.9 | N19: 33.31 | O19: 37.97 | P19: 66.04 | Q19: 75.29 | R19: 45.45 | S19: 51.81 | T19: 28.84 | U19: 32.88 | V19: 7.28 | W19: 8.3
A20: WEPS | B20: We | C20: 3 | D20: 1 | E20: We31N | H20: > 900km | I20: < 500V | J20: 227.19 | K20: 259 | L20: 68.84 | M20: 78.48 | N20: 37.38 | O20: 42.61 | P20: 74.12 | Q20: 84.5 | R20: 51.01 | S20: 58.15 | T20: 32.37 | U20: 36.9 | V20: 6.47 | W20: 7.38
A21: WEPS | B21: We | C21: 3 | D21: 2 | E21: We32N | I21: ≥ 500V & < 66kV | J21: 224.02 | K21: 255.38 | L21: 67.86 | M21: 77.36 | N21: 36.84 | O21: 42 | P21: 73.07 | Q21: 83.3 | R21: 50.28 | S21: 57.32 | T21: 31.9 | U21: 36.37 | V21: 5.95 | W21: 6.78
A22: WEPS | B22: We | C22: 3 | D22: 3 | E22: We33N | I22: ≥ 66kV & ≤ 132kV | J22: 216.95 | K22: 247.32 | L22: 65.72 | M22: 74.92 | N22: 35.68 | O22: 40.68 | P22: 70.76 | Q22: 80.67 | R22: 48.71 | S22: 55.53 | T22: 30.9 | U22: 35.23 | V22: 5.75 | W22: 6.56
A23: WEPS | B23: We | C23: 3 | D23: 4 | E23: We34N | I23: > 132kV* | J23: 204.43 | K23: 233.05 | L23: 61.96 | M23: 70.63 | N23: 33.66 | O23: 38.37 | P23: 66.72 | Q23: 76.06 | R23: 45.93 | S23: 52.36 | T23: 29.16 | U23: 33.24 | V23: 7.33 | W23: 8.36
I24: * >132 kV or Transmission connected
H25: Distribution network charges
J26: Network access charge [R/kVA/m] | L26: Network demand charge [R/kVA/m] | N26: Urban low voltage subsidy charge [R/kVA/m]
S27: Reliability service charge [c/kWh]
A28: Tariff | B28: Tariff nameBillcode | C28: Tx zone | D28: Voltage | E28: Billcode | H28: Voltage | K28: VAT incl | M28: VAT incl | O28: VAT incl | Q28: Voltage | T28: VAT incl
A29: WEPS | B29: We | C29: 0 | D29: 1 | E29: We01N | H29: < 500V | J29: 12.56 | K29: 14.32 | L29: 23.81 | M29: 27.14 | N29: 0 | O29: 0 | Q29: < 500V | S29: 0.29 | T29: 0.33
A30: WEPS | B30: We | C30: 0 | D30: 2 | E30: We02N | H30: ≥ 500V & < 66kV | J30: 11.52 | K30: 13.13 | L30: 21.85 | M30: 24.91 | N30: 0 | O30: 0 | Q30: ≥ 500V & < 66kV | S30: 0.28 | T30: 0.32
A31: WEPS | B31: We | C31: 0 | D31: 3 | E31: We03N | H31: ≥ 66kV & ≤ 132kV | J31: 4.11 | K31: 4.69 | L31: 7.61 | M31: 8.68 | N31: 10.14 | O31: 11.56 | Q31: ≥ 66kV & ≤ 132kV | S31: 0.27 | T31: 0.31
A32: WEPS | B32: We | C32: 0 | D32: 4 | E32: We04N | H32: > 132kV / Transmission connected | J32: 0 | K32: 0 | L32: 0 | M32: 0 | N32: 10.14 | O32: 11.56 | Q32: > 132kV / Transmission connected | S32: 0.25 | T32: 0.29
H34: Customer categories | J34: Service charge [R/account/day] | L34: Administration charge [R/POD/day] | Q34: Reactive energy charge [c/kVArh]
A36: Tariff | B36: Tariff nameBillcode | C36: Tx zone | D36: Voltage | E36: Billcode | K36: VAT incl | M36: VAT incl | Q36: High season | S36: Low season
A37: WEPS | B37: We | C37: 0 | D37: 1 | E37: We01N | H37: ≤ 100 kVA | J37: 10.25 | K37: 11.69 | L37: 2.25 | M37: 2.57 | R37: VAT incl | T37: VAT incl
A38: WEPS | B38: We | C38: 0 | D38: 1 | E38: We01N | H38: > 100 kVA & ≤ 500 kVA | J38: 46.85 | K38: 53.41 | L38: 13.13 | M38: 14.97 | Q38: 10.15 | R38: 11.57 | S38: 0 | T38: 0
A39: WEPS | B39: We | C39: 0 | D39: 1 | E39: We01N | H39: > 500 kVA & ≤ 1 MVA | J39: 144.18 | K39: 164.37 | L39: 26.1 | M39: 29.75
A40: WEPS | B40: We | C40: 0 | D40: 1 | E40: We01N | H40: > 1 MVA | J40: 144.18 | K40: 164.37 | L40: 64.98 | M40: 74.08
A41: WEPS | B41: We | C41: 0 | D41: 1 | E41: We01N | H41: Key customers | J41: 2825.34 | K41: 3220.89 | L41: 90.23 | M41: 102.86
H44: Electrification and rural network subsidy charge [c/kWh] | J44: Affordability subsidy charge [c/kWh] Only payable by non-local authority tariffs
H46: All seasons | J46: All seasons
A47: Tariff | B47: Tariff nameBillcode | C47: Tx zone | D47: Voltage | E47: Billcode | I47: VAT incl | K47: VAT incl
A48: WEPS | B48: We | C48: 0 | D48: 1 | E48: We01N | H48: 5.62 | I48: 6.41 | J48: 2.24 | K48: 2.55
H51: Active energy charge excluding losses [c/kWh]
H52: High demand season [Jun - Aug] | N52: Low demand season [Sep - May]
H53: Peak | J53: Standard | L53: Off Peak | N53: Peak | P53: Standard | R53: Off Peak
A54: Tariff | B54: Tariff nameBillcode | C54: Tx zone | D54: Voltage | E54: Billcode | I54: VAT incl | K54: VAT incl | M54: VAT incl | O54: VAT incl | Q54: VAT incl | S54: VAT incl
A55: WEPS | B55: We | C55: 0 | D55: 1 | E55: We01N | H55: 196.35 | I55: 223.84 | J55: 59.47 | K55: 67.8 | L55: 32.3 | M55: 36.82 | N55: 64.05 | O55: 73.02 | P55: 44.08 | Q55: 50.25 | R55: 27.97 | S55: 31.89
H57: Active energy charge excluding losses and enviromental levy [c/kWh]
H58: High demand season [Jun - Aug] | N58: Low demand season [Sep - May]
H59: Peak | J59: Standard | L59: Off Peak | N59: Peak | P59: Standard | R59: Off Peak
A60: Tariff | B60: Tariff nameBillcode | C60: Tx zone | D60: Voltage | E60: Billcode | I60: VAT incl | K60: VAT incl | M60: VAT incl | O60: VAT incl | Q60: VAT incl | S60: VAT incl
A61: WEPS | B61: We | C61: 0 | D61: 1 | E61: We01N | H61: 192.86 | I61: 219.86 | J61: 55.98 | K61: 63.82 | L61: 28.81 | M61: 32.84 | N61: 60.56 | O61: 69.04 | P61: 40.59 | Q61: 46.27 | R61: 24.48 | S61: 27.91

Sheet WEPS Munic inc
A2: Municiple | G2: WEPS | R2: Local authority
J4: Active energy charge [c/kWh] | V4: Transmission network charges [R/kVA/m]
H5: Transmission zone | J5: High demand season [Jun - Aug] | P5: Low demand season [Sep - May]
I6: Voltage | J6: Peak | L6: Standard | N6: Off Peak | P6: Peak | R6: Standard | T6: Off Peak
A7: Tariff | B7: Tariff nameBillcode | C7: Tx zone | D7: Voltage | E7: Billcode | K7: VAT incl | M7: VAT incl | O7: VAT incl | Q7: VAT incl | S7: VAT incl | U7: VAT incl | W7: VAT incl
A8: WEPS | B8: We | C8: 0 | D8: 1 | E8: We01Y | H8: ≤ 300km | I8: < 500V | J8: 226.3 | K8: 257.98 | L8: 68.86 | M8: 78.5 | N8: 37.58 | O8: 42.84 | P8: 74.1 | Q8: 84.47 | R8: 51.13 | S8: 58.29 | T8: 32.59 | U8: 37.15 | V8: 6.3 | W8: 7.18
A9: WEPS | B9: We | C9: 0 | D9: 2 | E9: We02Y | I9: ≥ 500V & < 66kV | J9: 222.73 | K9: 253.91 | L9: 67.48 | M9: 76.93 | N9: 36.64 | O9: 41.77 | P9: 72.66 | Q9: 82.83 | R9: 50.01 | S9: 57.01 | T9: 31.73 | U9: 36.17 | V9: 5.75 | W9: 6.56
A10: WEPS | B10: We | C10: 0 | D10: 3 | E10: We03Y | I10: ≥ 66kV & ≤ 132kV | J10: 215.7 | K10: 245.9 | L10: 65.34 | M10: 74.49 | N10: 35.48 | O10: 40.45 | P10: 70.36 | Q10: 80.21 | R10: 48.43 | S10: 55.21 | T10: 30.72 | U10: 35.02 | V10: 5.6 | W10: 6.38
A11: WEPS | B11: We | C11: 0 | D11: 4 | E11: We04Y | I11: > 132kV* | J11: 203.29 | K11: 231.75 | L11: 61.58 | M11: 70.2 | N11: 33.44 | O11: 38.12 | P11: 66.32 | Q11: 75.6 | R11: 45.64 | S11: 52.03 | T11: 28.96 | U11: 33.01 | V11: 7.08 | W11: 8.07
A12: WEPS | B12: We | C12: 1 | D12: 1 | E12: We11Y | H12: > 300km and ≤ 600km | I12: < 500V | J12: 228.14 | K12: 260.08 | L12: 69.12 | M12: 78.8 | N12: 37.53 | O12: 42.78 | P12: 74.43 | Q12: 84.85 | R12: 51.23 | S12: 58.4 | T12: 32.5 | U12: 37.05 | V12: 6.34 | W12: 7.23
A13: WEPS | B13: We | C13: 1 | D13: 2 | E13: We12Y | I13: ≥ 500V & < 66kV | J13: 224.96 | K13: 256.45 | L13: 68.15 | M13: 77.69 | N13: 37.01 | O13: 42.19 | P13: 73.39 | Q13: 83.66 | R13: 50.51 | S13: 57.58 | T13: 32.04 | U13: 36.53 | V13: 5.81 | W13: 6.62
A14: WEPS | B14: We | C14: 1 | D14: 3 | E14: We13Y | I14: ≥ 66kV & ≤ 132kV | J14: 217.81 | K14: 248.3 | L14: 65.98 | M14: 75.22 | N14: 35.82 | O14: 40.83 | P14: 71.05 | Q14: 81 | R14: 48.9 | S14: 55.75 | T14: 31.01 | U14: 35.35 | V14: 5.64 | W14: 6.43
A15: WEPS | B15: We | C15: 1 | D15: 4 | E15: We14Y | I15: > 132kV* | J15: 205.31 | K15: 234.05 | L15: 62.2 | M15: 70.91 | N15: 33.77 | O15: 38.5 | P15: 66.96 | Q15: 76.33 | R15: 46.1 | S15: 52.55 | T15: 29.24 | U15: 33.33 | V15: 7.15 | W15: 8.15
A16: WEPS | B16: We | C16: 2 | D16: 1 | E16: We21Y | H16: > 600km and ≤ 900km | I16: < 500V | J16: 230.42 | K16: 262.68 | L16: 69.8 | M16: 79.57 | N16: 37.9 | O16: 43.21 | P16: 75.16 | Q16: 85.68 | R16: 51.73 | S16: 58.97 | T16: 32.82 | U16: 37.41 | V16: 6.42 | W16: 7.32
A17: WEPS | B17: We | C17: 2 | D17: 2 | E17: We22Y | I17: ≥ 500V & < 66kV | J17: 227.22 | K17: 259.03 | L17: 68.83 | M17: 78.47 | N17: 37.38 | O17: 42.61 | P17: 74.13 | Q17: 84.51 | R17: 51 | S17: 58.14 | T17: 32.36 | U17: 36.89 | V17: 5.86 | W17: 6.68
A18: WEPS | B18: We | C18: 2 | D18: 3 | E18: We23Y | I18: ≥ 66kV & ≤ 132kV | J18: 220.03 | K18: 250.83 | L18: 66.65 | M18: 75.98 | N18: 36.19 | O18: 41.26 | P18: 71.76 | Q18: 81.81 | R18: 49.39 | S18: 56.3 | T18: 31.33 | U18: 35.72 | V18: 5.69 | W18: 6.49
A19: WEPS | B19: We | C19: 2 | D19: 4 | E19: We24Y | I19: > 132kV* | J19: 207.38 | K19: 236.41 | L19: 62.83 | M19: 71.63 | N19: 34.11 | O19: 38.89 | P19: 67.66 | Q19: 77.13 | R19: 46.56 | S19: 53.08 | T19: 29.54 | U19: 33.68 | V19: 7.25 | W19: 8.27
A20: WEPS | B20: We | C20: 3 | D20: 1 | E20: We31Y | H20: > 900km | I20: < 500V | J20: 232.73 | K20: 265.31 | L20: 70.51 | M20: 80.38 | N20: 38.29 | O20: 43.65 | P20: 75.92 | Q20: 86.55 | R20: 52.25 | S20: 59.57 | T20: 33.15 | U20: 37.79 | V20: 6.45 | W20: 7.35
A21: WEPS | B21: We | C21: 3 | D21: 2 | E21: We32Y | I21: ≥ 500V & < 66kV | J21: 229.49 | K21: 261.62 | L21: 69.51 | M21: 79.24 | N21: 37.75 | O21: 43.04 | P21: 74.85 | Q21: 85.33 | R21: 51.51 | S21: 58.72 | T21: 32.68 | U21: 37.26 | V21: 5.92 | W21: 6.75
A22: WEPS | B22: We | C22: 3 | D22: 3 | E22: We33Y | I22: ≥ 66kV & ≤ 132kV | J22: 222.24 | K22: 253.35 | L22: 67.32 | M22: 76.74 | N22: 36.56 | O22: 41.68 | P22: 72.49 | Q22: 82.64 | R22: 49.89 | S22: 56.87 | T22: 31.65 | U22: 36.08 | V22: 5.73 | W22: 6.53
A23: WEPS | B23: We | C23: 3 | D23: 4 | E23: We34Y | I23: > 132kV* | J23: 209.42 | K23: 238.74 | L23: 63.47 | M23: 72.36 | N23: 34.49 | O23: 39.32 | P23: 68.35 | Q23: 77.92 | R23: 47.05 | S23: 53.64 | T23: 29.87 | U23: 34.05 | V23: 7.3 | W23: 8.32
I24: ='WEPS inc'!I24 -> * >132 kV or Transmission connected
H25: Distribution network charges
J26: Network access charge [R/kVA/m] | L26: Network demand charge [R/kVA/m] | N26: Urban low voltage subsidy charge [R/kVA/m]
S27: Reliability service charge [c/kWh]
A28: Tariff | B28: Tariff nameBillcode | C28: Tx zone | D28: Voltage | E28: Billcode | H28: Voltage | K28: VAT incl | M28: VAT incl | O28: VAT incl | Q28: Voltage | T28: VAT incl
A29: WEPS | B29: We | C29: 0 | D29: 1 | E29: We01Y | H29: < 500V | J29: 12.57 | K29: 14.33 | L29: 23.83 | M29: 27.17 | N29: 0 | O29: 0 | Q29: < 500V | S29: 0.29 | T29: 0.33
A30: WEPS | B30: We | C30: 0 | D30: 2 | E30: We02Y | H30: ≥ 500V & < 66kV | J30: 11.53 | K30: 13.14 | L30: 21.86 | M30: 24.92 | N30: 0 | O30: 0 | Q30: ≥ 500V & < 66kV | S30: 0.28 | T30: 0.32
A31: WEPS | B31: We | C31: 0 | D31: 3 | E31: We03Y | H31: ≥ 66kV & ≤ 132kV | J31: 4.12 | K31: 4.7 | L31: 7.62 | M31: 8.69 | N31: 10.09 | O31: 11.5 | Q31: ≥ 66kV & ≤ 132kV | S31: 0.27 | T31: 0.31
A32: WEPS | B32: We | C32: 0 | D32: 4 | E32: We04Y | H32: > 132kV / Transmission connected | J32: 0 | K32: 0 | L32: 0 | M32: 0 | N32: 10.09 | O32: 11.5 | Q32: > 132kV / Transmission connected | S32: 0.25 | T32: 0.29
H34: Customer categories | J34: Service charge [R/account/day] | L34: Administration charge [R/POD/day] | Q34: Reactive energy charge [c/kVArh]
A36: Tariff | B36: Tariff nameBillcode | C36: Tx zone | D36: Voltage | E36: Billcode | K36: VAT incl | M36: VAT incl | Q36: High season | S36: Low season
A37: WEPS | B37: We | C37: 0 | D37: 1 | E37: We01Y | H37: ≤ 100 kVA | J37: 10.21 | K37: 11.69 | L37: 2.24 | M37: 2.57 | R37: VAT incl | T37: VAT incl
A38: WEPS | B38: We | C38: 0 | D38: 1 | E38: We01Y | H38: > 100 kVA & ≤ 500 kVA | J38: 46.66 | K38: 53.41 | L38: 13.08 | M38: 14.97 | Q38: 10.1 | R38: 11.51 | S38: 0 | T38: 0
A39: WEPS | B39: We | C39: 0 | D39: 1 | E39: We01Y | H39: > 500 kVA & ≤ 1 MVA | J39: 143.59 | K39: 164.37 | L39: 26 | M39: 29.75
A40: WEPS | B40: We | C40: 0 | D40: 1 | E40: We01Y | H40: > 1 MVA | J40: 143.59 | K40: 164.37 | L40: 64.72 | M40: 74.08
A41: WEPS | B41: We | C41: 0 | D41: 1 | E41: We01Y | H41: Key customers | J41: 2813.83 | K41: 3207.77 | L41: 89.86 | M41: 102.44
H44: Electrification and rural network subsidy charge [c/kWh]
H46: All seasons
A47: Tariff | B47: Tariff nameBillcode | C47: Tx zone | D47: Voltage | E47: Billcode | I47: VAT incl
A48: WEPS | B48: We | C48: 0 | D48: 1 | E48: We01Y | H48: 5.59 | I48: 6.37
H51: Active energy charge excluding losses [c/kWh]
H52: High demand season [Jun - Aug] | N52: Low demand season [Sep - May]
H53: Peak | J53: Standard | L53: Off Peak | N53: Peak | P53: Standard | R53: Off Peak
A54: Tariff | B54: Tariff nameBillcode | C54: Tx zone | D54: Voltage | E54: Billcode | I54: VAT incl | K54: VAT incl | M54: VAT incl | O54: VAT incl | Q54: VAT incl | S54: VAT incl
A55: WEPS | B55: We | C55: 0 | D55: 1 | E55: We01Y | H55: 201.14 | I55: 229.3 | J55: 60.93 | K55: 69.46 | L55: 33.09 | M55: 37.72 | N55: 65.62 | O55: 74.81 | P55: 45.16 | Q55: 51.48 | R55: 28.65 | S55: 32.66
H57: Active energy charge excluding losses and enviromental levy [c/kWh]
H58: High demand season [Jun - Aug] | N58: Low demand season [Sep - May]
H59: Peak | J59: Standard | L59: Off Peak | N59: Peak | P59: Standard | R59: Off Peak
A60: Tariff | B60: Tariff nameBillcode | C60: Tx zone | D60: Voltage | E60: Billcode | I60: VAT incl | K60: VAT incl | M60: VAT incl | O60: VAT incl | Q60: VAT incl | S60: VAT incl
A61: WEPS | B61: We | C61: 0 | D61: 1 | E61: We01Y | H61: 197.65 | I61: 225.32 | J61: 57.44 | K61: 65.48 | L61: 29.6 | M61: 33.74 | N61: 62.13 | O61: 70.83 | P61: 41.67 | Q61: 47.5 | R61: 25.16 | S61: 28.68

Sheet Megaflex inc
A2: Non-municipal | G2: Megaflex tariff | R2: Non-local authority | AG2: check value
J4: Active energy charge [c/kWh] | V4: Transmission network charges [R/kVA/m]
H5: Transmission zone | J5: High demand season [Jun - Aug] | P5: Low demand season [Sep - May]
I6: Voltage | J6: Peak | L6: Standard | N6: Off Peak | P6: Peak | R6: Standard | T6: Off Peak
A7: Tariff | B7: Tariff nameBillcode | C7: Tx zone | D7: Voltage | E7: Billcode | K7: VAT incl | M7: VAT incl | O7: VAT incl | Q7: VAT incl | S7: VAT incl | U7: VAT incl | W7: VAT incl
A8: Megaflex | B8: Me | C8: 0 | D8: 1 | E8: Me01N | H8: ≤ 300km | I8: < 500V | J8: 220.91 | K8: 251.84 | L8: 67.21 | M8: 76.62 | N8: 36.69 | O8: 41.83 | P8: 72.34 | Q8: 82.47 | R8: 49.92 | S8: 56.91 | T8: 31.82 | U8: 36.27 | V8: 6.32 | W8: 7.2
A9: Megaflex | B9: Me | C9: 0 | D9: 2 | E9: Me02N | I9: ≥ 500V & < 66kV | J9: 217.44 | K9: 247.88 | L9: 65.87 | M9: 75.09 | N9: 35.77 | O9: 40.78 | P9: 70.93 | Q9: 80.86 | R9: 48.82 | S9: 55.65 | T9: 30.97 | U9: 35.31 | V9: 5.78 | W9: 6.59
A10: Megaflex | B10: Me | C10: 0 | D10: 3 | E10: Me03N | I10: ≥ 66kV & ≤ 132kV | J10: 210.56 | K10: 240.04 | L10: 63.78 | M10: 72.71 | N10: 34.64 | O10: 39.49 | P10: 68.69 | Q10: 78.31 | R10: 47.27 | S10: 53.89 | T10: 29.99 | U10: 34.19 | V10: 5.63 | W10: 6.42
A11: Megaflex | B11: Me | C11: 0 | D11: 4 | E11: Me04N | I11: > 132kV* | J11: 198.45 | K11: 226.23 | L11: 60.11 | M11: 68.53 | N11: 32.65 | O11: 37.22 | P11: 64.74 | Q11: 73.8 | R11: 44.55 | S11: 50.79 | T11: 28.27 | U11: 32.23 | V11: 7.11 | W11: 8.11
A12: Megaflex | B12: Me | C12: 1 | D12: 1 | E12: Me11N | H12: > 300km and ≤ 600km | I12: < 500V | J12: 222.71 | K12: 253.89 | L12: 67.48 | M12: 76.93 | N12: 36.64 | O12: 41.77 | P12: 72.65 | Q12: 82.82 | R12: 50.01 | S12: 57.01 | T12: 31.73 | U12: 36.17 | V12: 6.37 | W12: 7.26
A13: Megaflex | B13: Me | C13: 1 | D13: 2 | E13: Me12N | I13: ≥ 500V & < 66kV | J13: 219.61 | K13: 250.36 | L13: 66.53 | M13: 75.84 | N13: 36.13 | O13: 41.19 | P13: 71.65 | Q13: 81.68 | R13: 49.3 | S13: 56.2 | T13: 31.28 | U13: 35.66 | V13: 5.83 | W13: 6.65
A14: Megaflex | B14: Me | C14: 1 | D14: 3 | E14: Me13N | I14: ≥ 66kV & ≤ 132kV | J14: 212.63 | K14: 242.4 | L14: 64.41 | M14: 73.43 | N14: 34.97 | O14: 39.87 | P14: 69.36 | Q14: 79.07 | R14: 47.73 | S14: 54.41 | T14: 30.28 | U14: 34.52 | V14: 5.67 | W14: 6.46
A15: Megaflex | B15: Me | C15: 1 | D15: 4 | E15: Me14N | I15: > 132kV* | J15: 200.43 | K15: 228.49 | L15: 60.72 | M15: 69.22 | N15: 32.96 | O15: 37.57 | P15: 65.37 | Q15: 74.52 | R15: 44.99 | S15: 51.29 | T15: 28.54 | U15: 32.54 | V15: 7.18 | W15: 8.19
A16: Megaflex | B16: Me | C16: 2 | D16: 1 | E16: Me21N | H16: > 600km and ≤ 900km | I16: < 500V | J16: 224.93 | K16: 256.42 | L16: 68.13 | M16: 77.67 | N16: 36.99 | O16: 42.17 | P16: 73.38 | Q16: 83.65 | R16: 50.5 | S16: 57.57 | T16: 32.03 | U16: 36.51 | V16: 6.45 | W16: 7.35
A17: Megaflex | B17: Me | C17: 2 | D17: 2 | E17: Me22N | I17: ≥ 500V & < 66kV | J17: 221.81 | K17: 252.86 | L17: 67.2 | M17: 76.61 | N17: 36.49 | O17: 41.6 | P17: 72.36 | Q17: 82.49 | R17: 49.8 | S17: 56.77 | T17: 31.59 | U17: 36.01 | V17: 5.88 | W17: 6.7
A18: Megaflex | B18: Me | C18: 2 | D18: 3 | E18: Me23N | I18: ≥ 66kV & ≤ 132kV | J18: 214.79 | K18: 244.86 | L18: 65.07 | M18: 74.18 | N18: 35.33 | O18: 40.28 | P18: 70.06 | Q18: 79.87 | R18: 48.22 | S18: 54.97 | T18: 30.59 | U18: 34.87 | V18: 5.71 | W18: 6.51
A19: Megaflex | B19: Me | C19: 2 | D19: 4 | E19: Me24N | I19: > 132kV* | J19: 202.45 | K19: 230.79 | L19: 61.32 | M19: 69.9 | N19: 33.31 | O19: 37.97 | P19: 66.04 | Q19: 75.29 | R19: 45.45 | S19: 51.81 | T19: 28.84 | U19: 32.88 | V19: 7.28 | W19: 8.3
A20: Megaflex | B20: Me | C20: 3 | D20: 1 | E20: Me31N | H20: > 900km | I20: < 500V | J20: 227.19 | K20: 259 | L20: 68.84 | M20: 78.48 | N20: 37.38 | O20: 42.61 | P20: 74.12 | Q20: 84.5 | R20: 51.01 | S20: 58.15 | T20: 32.37 | U20: 36.9 | V20: 6.47 | W20: 7.38
A21: Megaflex | B21: Me | C21: 3 | D21: 2 | E21: Me32N | I21: ≥ 500V & < 66kV | J21: 224.02 | K21: 255.38 | L21: 67.86 | M21: 77.36 | N21: 36.84 | O21: 42 | P21: 73.07 | Q21: 83.3 | R21: 50.28 | S21: 57.32 | T21: 31.9 | U21: 36.37 | V21: 5.95 | W21: 6.78
A22: Megaflex | B22: Me | C22: 3 | D22: 3 | E22: Me33N | I22: ≥ 66kV & ≤ 132kV | J22: 216.95 | K22: 247.32 | L22: 65.72 | M22: 74.92 | N22: 35.68 | O22: 40.68 | P22: 70.76 | Q22: 80.67 | R22: 48.71 | S22: 55.53 | T22: 30.9 | U22: 35.23 | V22: 5.75 | W22: 6.56
A23: Megaflex | B23: Me | C23: 3 | D23: 4 | E23: Me34N | I23: > 132kV* | J23: 204.43 | K23: 233.05 | L23: 61.96 | M23: 70.63 | N23: 33.66 | O23: 38.37 | P23: 66.72 | Q23: 76.06 | R23: 45.93 | S23: 52.36 | T23: 29.16 | U23: 33.24 | V23: 7.33 | W23: 8.36
I24: ='WEPS Munic inc'!I24 -> * >132 kV or Transmission connected
H26: Distribution network charges
J27: Network access charge [R/kVA/m] | L27: Network demand charge [R/kVA/m] | N27: Urban low voltage subsidy charge [R/kVA/m]
S28: Reliability service charge [c/kWh]
A29: Tariff | B29: Tariff nameBillcode | C29: Tx zone | D29: Voltage | E29: Billcode | H29: Voltage | K29: VAT incl | M29: VAT incl | O29: VAT incl | Q29: Voltage | T29: VAT incl
A30: Megaflex | B30: Me | C30: 0 | D30: 1 | E30: Me01N | H30: < 500V | J30: 12.56 | K30: 14.32 | L30: 23.81 | M30: 27.14 | N30: 0 | O30: 0 | Q30: < 500V | S30: 0.29 | T30: 0.33
A31: Megaflex | B31: Me | C31: 0 | D31: 2 | E31: Me02N | H31: ≥ 500V & < 66kV | J31: 11.52 | K31: 13.13 | L31: 21.85 | M31: 24.91 | N31: 0 | O31: 0 | Q31: ≥ 500V & < 66kV | S31: 0.28 | T31: 0.32
A32: Megaflex | B32: Me | C32: 0 | D32: 3 | E32: Me03N | H32: ≥ 66kV & ≤ 132kV | J32: 4.11 | K32: 4.69 | L32: 7.61 | M32: 8.68 | N32: 10.14 | O32: 11.56 | Q32: ≥ 66kV & ≤ 132kV | S32: 0.27 | T32: 0.31
A33: Megaflex | B33: Me | C33: 0 | D33: 4 | E33: Me04N | H33: > 132kV / Transmission connected | J33: 0 | K33: 0 | L33: 0 | M33: 0 | N33: 10.14 | O33: 11.56 | Q33: > 132kV / Transmission connected | S33: 0.25 | T33: 0.29
H36: Customer categories | J36: Service charge [R/account/day] | L36: Administration charge [R/POD/day] | Q36: Reactive energy charge [c/kVArh]
Q37: High season | S37: Low season
A38: Tariff | B38: Tariff nameBillcode | C38: Tx zone | D38: Voltage | E38: Billcode | K38: VAT incl | M38: VAT incl | R38: VAT incl | T38: VAT incl
A39: Megaflex | B39: Me | C39: 0 | D39: 1 | E39: Me01N | H39: > 1 MVA | J39: 144.18 | K39: 164.37 | L39: 64.98 | M39: 74.08 | Q39: 10.15 | R39: 11.57 | S39: 0 | T39: 0
A40: Megaflex | B40: Me | C40: 0 | D40: 1 | E40: Me01N | H40: Key customers | J40: 2825.34 | K40: 3220.89 | L40: 90.23 | M40: 102.86
H42: Electrification and rural network subsidy charge [c/kWh] | J42: Affordability subsidy charge [c/kWh] Only payable by non-local authority tariffs
H44: All seasons | J44: All seasons
A45: Tariff | B45: Tariff nameBillcode | C45: Tx zone | D45: Voltage | E45: Billcode | I45: VAT incl | K45: VAT incl
A46: Megaflex | B46: Me | C46: 0 | D46: 1 | E46: Me01N | H46: 5.62 | I46: 6.41 | J46: 2.24 | K46: 2.55

Sheet Megaflex Munic inc
A2: Municiple | G2: Megaflex tariff | R2: Local authority | AG2: check value
J4: Active energy charge [c/kWh] | V4: Transmission network charges [R/kVA/m]
H5: Transmission zone | J5: High demand season [Jun - Aug] | P5: Low demand season [Sep - May]
I6: Voltage | J6: Peak | L6: Standard | N6: Off Peak | P6: Peak | R6: Standard | T6: Off Peak
A7: Tariff | B7: Tariff nameBillcode | C7: Tx zone | D7: Voltage | E7: Billcode | K7: VAT incl | M7: VAT incl | O7: VAT incl | Q7: VAT incl | S7: VAT incl | U7: VAT incl | W7: VAT incl
A8: Megaflex | B8: Me | C8: 0 | D8: 1 | E8: Me01Y | H8: ≤ 300km | I8: < 500V | J8: 226.3 | K8: 257.98 | L8: 68.86 | M8: 78.5 | N8: 37.58 | O8: 42.84 | P8: 74.1 | Q8: 84.47 | R8: 51.13 | S8: 58.29 | T8: 32.59 | U8: 37.15 | V8: 6.3 | W8: 7.18
A9: Megaflex | B9: Me | C9: 0 | D9: 2 | E9: Me02Y | I9: ≥ 500V & < 66kV | J9: 222.73 | K9: 253.91 | L9: 67.48 | M9: 76.93 | N9: 36.64 | O9: 41.77 | P9: 72.66 | Q9: 82.83 | R9: 50.01 | S9: 57.01 | T9: 31.73 | U9: 36.17 | V9: 5.75 | W9: 6.56
A10: Megaflex | B10: Me | C10: 0 | D10: 3 | E10: Me03Y | I10: ≥ 66kV & ≤ 132kV | J10: 215.7 | K10: 245.9 | L10: 65.34 | M10: 74.49 | N10: 35.48 | O10: 40.45 | P10: 70.36 | Q10: 80.21 | R10: 48.43 | S10: 55.21 | T10: 30.72 | U10: 35.02 | V10: 5.6 | W10: 6.38
A11: Megaflex | B11: Me | C11: 0 | D11: 4 | E11: Me04Y | I11: > 132kV* | J11: 203.29 | K11: 231.75 | L11: 61.58 | M11: 70.2 | N11: 33.44 | O11: 38.12 | P11: 66.32 | Q11: 75.6 | R11: 45.64 | S11: 52.03 | T11: 28.96 | U11: 33.01 | V11: 7.08 | W11: 8.07
A12: Megaflex | B12: Me | C12: 1 | D12: 1 | E12: Me11Y | H12: > 300km and ≤ 600km | I12: < 500V | J12: 228.14 | K12: 260.08 | L12: 69.12 | M12: 78.8 | N12: 37.53 | O12: 42.78 | P12: 74.43 | Q12: 84.85 | R12: 51.23 | S12: 58.4 | T12: 32.5 | U12: 37.05 | V12: 6.34 | W12: 7.23
A13: Megaflex | B13: Me | C13: 1 | D13: 2 | E13: Me12Y | I13: ≥ 500V & < 66kV | J13: 224.96 | K13: 256.45 | L13: 68.15 | M13: 77.69 | N13: 37.01 | O13: 42.19 | P13: 73.39 | Q13: 83.66 | R13: 50.51 | S13: 57.58 | T13: 32.04 | U13: 36.53 | V13: 5.81 | W13: 6.62
A14: Megaflex | B14: Me | C14: 1 | D14: 3 | E14: Me13Y | I14: ≥ 66kV & ≤ 132kV | J14: 217.81 | K14: 248.3 | L14: 65.98 | M14: 75.22 | N14: 35.82 | O14: 40.83 | P14: 71.05 | Q14: 81 | R14: 48.9 | S14: 55.75 | T14: 31.01 | U14: 35.35 | V14: 5.64 | W14: 6.43
A15: Megaflex | B15: Me | C15: 1 | D15: 4 | E15: Me14Y | I15: > 132kV* | J15: 205.31 | K15: 234.05 | L15: 62.2 | M15: 70.91 | N15: 33.77 | O15: 38.5 | P15: 66.96 | Q15: 76.33 | R15: 46.1 | S15: 52.55 | T15: 29.24 | U15: 33.33 | V15: 7.15 | W15: 8.15
A16: Megaflex | B16: Me | C16: 2 | D16: 1 | E16: Me21Y | H16: > 600km and ≤ 900km | I16: < 500V | J16: 230.42 | K16: 262.68 | L16: 69.8 | M16: 79.57 | N16: 37.9 | O16: 43.21 | P16: 75.16 | Q16: 85.68 | R16: 51.73 | S16: 58.97 | T16: 32.82 | U16: 37.41 | V16: 6.42 | W16: 7.32
A17: Megaflex | B17: Me | C17: 2 | D17: 2 | E17: Me22Y | I17: ≥ 500V & < 66kV | J17: 227.22 | K17: 259.03 | L17: 68.83 | M17: 78.47 | N17: 37.38 | O17: 42.61 | P17: 74.13 | Q17: 84.51 | R17: 51 | S17: 58.14 | T17: 32.36 | U17: 36.89 | V17: 5.86 | W17: 6.68
A18: Megaflex | B18: Me | C18: 2 | D18: 3 | E18: Me23Y | I18: ≥ 66kV & ≤ 132kV | J18: 220.03 | K18: 250.83 | L18: 66.65 | M18: 75.98 | N18: 36.19 | O18: 41.26 | P18: 71.76 | Q18: 81.81 | R18: 49.39 | S18: 56.3 | T18: 31.33 | U18: 35.72 | V18: 5.69 | W18: 6.49
A19: Megaflex | B19: Me | C19: 2 | D19: 4 | E19: Me24Y | I19: > 132kV* | J19: 207.38 | K19: 236.41 | L19: 62.83 | M19: 71.63 | N19: 34.11 | O19: 38.89 | P19: 67.66 | Q19: 77.13 | R19: 46.56 | S19: 53.08 | T19: 29.54 | U19: 33.68 | V19: 7.25 | W19: 8.27
A20: Megaflex | B20: Me | C20: 3 | D20: 1 | E20: Me31Y | H20: > 900km | I20: < 500V | J20: 232.73 | K20: 265.31 | L20: 70.51 | M20: 80.38 | N20: 38.29 | O20: 43.65 | P20: 75.92 | Q20: 86.55 | R20: 52.25 | S20: 59.57 | T20: 33.15 | U20: 37.79 | V20: 6.45 | W20: 7.35
A21: Megaflex | B21: Me | C21: 3 | D21: 2 | E21: Me32Y | I21: ≥ 500V & < 66kV | J21: 229.49 | K21: 261.62 | L21: 69.51 | M21: 79.24 | N21: 37.75 | O21: 43.04 | P21: 74.85 | Q21: 85.33 | R21: 51.51 | S21: 58.72 | T21: 32.68 | U21: 37.26 | V21: 5.92 | W21: 6.75
A22: Megaflex | B22: Me | C22: 3 | D22: 3 | E22: Me33Y | I22: ≥ 66kV & ≤ 132kV | J22: 222.24 | K22: 253.35 | L22: 67.32 | M22: 76.74 | N22: 36.56 | O22: 41.68 | P22: 72.49 | Q22: 82.64 | R22: 49.89 | S22: 56.87 | T22: 31.65 | U22: 36.08 | V22: 5.73 | W22: 6.53
A23: Megaflex | B23: Me | C23: 3 | D23: 4 | E23: Me34Y | I23: > 132kV* | J23: 209.42 | K23: 238.74 | L23: 63.47 | M23: 72.36 | N23: 34.49 | O23: 39.32 | P23: 68.35 | Q23: 77.92 | R23: 47.05 | S23: 53.64 | T23: 29.87 | U23: 34.05 | V23: 7.3 | W23: 8.32
I24: ='Megaflex inc'!I24 -> * >132 kV or Transmission connected
H26: Distribution network charges
J27: Network access charge [R/kVA/m] | L27: Network demand charge [R/kVA/m] | N27: Urban low voltage subsidy charge [R/kVA/m]
S28: Reliability service charge [c/kWh]
A29: Tariff | B29: Tariff nameBillcode | C29: Tx zone | D29: Voltage | E29: Billcode | H29: Voltage | K29: VAT incl | M29: VAT incl | O29: VAT incl | Q29: Voltage | T29: VAT incl
A30: Megaflex | B30: Me | C30: 0 | D30: 1 | E30: Me01Y | H30: < 500V | J30: 12.57 | K30: 14.33 | L30: 23.83 | M30: 27.17 | N30: 0 | O30: 0 | Q30: < 500V | S30: 0.29 | T30: 0.33
A31: Megaflex | B31: Me | C31: 0 | D31: 2 | E31: Me02Y | H31: ≥ 500V & < 66kV | J31: 11.53 | K31: 13.14 | L31: 21.86 | M31: 24.92 | N31: 0 | O31: 0 | Q31: ≥ 500V & < 66kV | S31: 0.28 | T31: 0.32
A32: Megaflex | B32: Me | C32: 0 | D32: 3 | E32: Me03Y | H32: ≥ 66kV & ≤ 132kV | J32: 4.12 | K32: 4.7 | L32: 7.62 | M32: 8.69 | N32: 10.09 | O32: 11.5 | Q32: ≥ 66kV & ≤ 132kV | S32: 0.27 | T32: 0.31
A33: Megaflex | B33: Me | C33: 0 | D33: 4 | E33: Me04Y | H33: > 132kV / Transmission connected | J33: 0 | K33: 0 | L33: 0 | M33: 0 | N33: 10.09 | O33: 11.5 | Q33: > 132kV / Transmission connected | S33: 0.25 | T33: 0.29
H36: Customer categories | J36: Service charge [R/account/day] | L36: Administration charge [R/POD/day] | Q36: Reactive energy charge [c/kVArh]
Q37: High season | S37: Low season
A38: Tariff | B38: Tariff nameBillcode | C38: Tx zone | D38: Voltage | E38: Billcode | K38: VAT incl | M38: VAT incl | R38: VAT incl | T38: VAT incl
A39: Megaflex | B39: Me | C39: 0 | D39: 1 | E39: Me01Y | H39: > 1 MVA | J39: 143.59 | K39: 163.69 | L39: 64.72 | M39: 73.78 | Q39: 10.1 | R39: 11.51 | S39: 0 | T39: 0
A40: Megaflex | B40: Me | C40: 0 | D40: 1 | E40: Me01Y | H40: Key customers | J40: 2813.83 | K40: 3207.77 | L40: 89.86 | M40: 102.44
H42: Electrification and rural network subsidy charge [c/kWh]
H44: All seasons
A45: Tariff | B45: Tariff nameBillcode | C45: Tx zone | D45: Voltage | E45: Billcode | I45: VAT incl
A46: Megaflex | B46: Me | C46: 0 | D46: 1 | E46: Me01Y | H46: 5.59 | I46: 6.37

Sheet Genflex Urban inc (hidden)
A2: Non-municipal | G2: Genflex Urban tariff | R2: =Menu!$B$4 -> Non-local authority | AF2: =SUM(J8:T23,V8:V23,#REF!,#REF!,#REF!,#REF!,H26:J26,L26) ->  | AG2: check value
J4: Active energy charge [c/kWh] | V4: Transmission network charges [R/kVA/m]
H5: Transmission zone | J5: High demand season [Jun - Aug] | P5: Low demand season [Sep - May]
I6: Voltage | J6: Peak | L6: Standard | N6: Off Peak | P6: Peak | R6: Standard | T6: Off Peak
A7: Tariff | B7: Tariff nameBillcode | C7: Tx zone | D7: Voltage | E7: Billcode | K7: VAT incl | M7: VAT incl | O7: VAT incl | Q7: VAT incl | S7: VAT incl | U7: VAT incl | W7: VAT incl
A8: Genflex urban loads | B8: GU | C8: 0 | D8: 1 | E8: =B8&C8&D8&IF($A$2="Non-municipal","N",IF($A$2="Municiple","Y","error")) -> GU01N | H8: ≤ 300km | I8: < 500V | J8: 220.91 | K8: =ROUND(J8 * (1 + VAT), 2) -> 251.84 | L8: 67.21 | M8: =ROUND(L8 * (1 + VAT), 2) -> 76.62 | N8: 36.68 | O8: =ROUND(N8 * (1 + VAT), 2) -> 41.82 | P8: 72.34 | Q8: =ROUND(P8 * (1 + VAT), 2) -> 82.47 | R8: 49.92 | S8: =ROUND(R8 * (1 + VAT), 2) -> 56.91 | T8: 31.82 | U8: =ROUND(T8 * (1 + VAT), 2) -> 36.27 | V8: 5.85 | W8: =ROUND(V8 * (1 + VAT), 2) -> 6.67
A9: Genflex urban loads | B9: GU | C9: 0 | D9: 2 | E9: =B9&C9&D9&IF($A$2="Non-municipal","N",IF($A$2="Municiple","Y","error")) -> GU02N | I9: ≥ 500V & < 66kV | J9: 217.43 | K9: 247.87 | L9: 65.87 | M9: 75.09 | N9: 35.77 | O9: 40.78 | P9: 70.93 | Q9: 80.86 | R9: 48.82 | S9: 55.65 | T9: 30.97 | U9: 35.31 | V9: 5.35 | W9: 6.1
A10: Genflex urban loads | B10: GU | C10: 0 | D10: 3 | E10: GU03N | I10: ≥ 66kV & ≤ 132kV | J10: 210.56 | K10: 240.04 | L10: 63.79 | M10: 72.72 | N10: 34.63 | O10: 39.48 | P10: 68.69 | Q10: 78.31 | R10: 47.28 | S10: 53.9 | T10: 29.99 | U10: 34.19 | V10: 5.21 | W10: 5.94
A11: Genflex urban loads | B11: GU | C11: 0 | D11: 4 | E11: GU04N | I11: > 132kV* | J11: 198.45 | K11: 226.23 | L11: 60.11 | M11: 68.53 | N11: 32.65 | O11: 37.22 | P11: 64.74 | Q11: 73.8 | R11: 44.55 | S11: 50.79 | T11: 28.27 | U11: 32.23 | V11: 6.58 | W11: 7.5
A12: Genflex urban loads | B12: GU | C12: 1 | D12: 1 | E12: GU11N | H12: > 300km and ≤ 600km | I12: < 500V | J12: 222.71 | K12: 253.89 | L12: 67.47 | M12: 76.92 | N12: 36.64 | O12: 41.77 | P12: 72.66 | Q12: 82.83 | R12: 50.01 | S12: 57.01 | T12: 31.73 | U12: 36.17 | V12: 5.9 | W12: 6.73
A13: Genflex urban loads | B13: GU | C13: 1 | D13: 2 | E13: GU12N | I13: ≥ 500V & < 66kV | J13: 219.61 | K13: 250.36 | L13: 66.53 | M13: 75.84 | N13: 36.13 | O13: 41.19 | P13: 71.65 | Q13: 81.68 | R13: 49.31 | S13: 56.21 | T13: 31.28 | U13: 35.66 | V13: 5.4 | W13: 6.16
A14: Genflex urban loads | B14: GU | C14: 1 | D14: 3 | E14: GU13N | I14: ≥ 66kV & ≤ 132kV | J14: 212.63 | K14: 242.4 | L14: 64.41 | M14: 73.43 | N14: 34.97 | O14: 39.87 | P14: 69.36 | Q14: 79.07 | R14: 47.73 | S14: 54.41 | T14: 30.28 | U14: 34.52 | V14: 5.25 | W14: 5.99
A15: Genflex urban loads | B15: GU | C15: 1 | D15: 4 | E15: GU14N | I15: > 132kV* | J15: 200.42 | K15: 228.48 | L15: 60.71 | M15: 69.21 | N15: 32.97 | O15: 37.59 | P15: 65.38 | Q15: 74.53 | R15: 45 | S15: 51.3 | T15: 28.54 | U15: 32.54 | V15: 6.65 | W15: 7.58
A16: Genflex urban loads | B16: GU | C16: 2 | D16: 1 | E16: GU21N | H16: > 600km and ≤ 900km | I16: < 500V | J16: 224.93 | K16: 256.42 | L16: 68.13 | M16: 77.67 | N16: 36.99 | O16: 42.17 | P16: 73.37 | Q16: 83.64 | R16: 50.5 | S16: 57.57 | T16: 32.04 | U16: 36.53 | V16: 5.97 | W16: 6.81
A17: Genflex urban loads | B17: GU | C17: 2 | D17: 2 | E17: GU22N | I17: ≥ 500V & < 66kV | J17: 221.81 | K17: 252.86 | L17: 67.2 | M17: 76.61 | N17: 36.49 | O17: 41.6 | P17: 72.36 | Q17: 82.49 | R17: 49.79 | S17: 56.76 | T17: 31.59 | U17: 36.01 | V17: 5.44 | W17: 6.2
A18: Genflex urban loads | B18: GU | C18: 2 | D18: 3 | E18: GU23N | I18: ≥ 66kV & ≤ 132kV | J18: 214.79 | K18: 244.86 | L18: 65.07 | M18: 74.18 | N18: 35.32 | O18: 40.26 | P18: 70.06 | Q18: 79.87 | R18: 48.22 | S18: 54.97 | T18: 30.58 | U18: 34.86 | V18: 5.29 | W18: 6.03
A19: Genflex urban loads | B19: GU | C19: 2 | D19: 4 | E19: GU24N | I19: > 132kV* | J19: 202.44 | K19: 230.78 | L19: 61.33 | M19: 69.92 | N19: 33.31 | O19: 37.97 | P19: 66.04 | Q19: 75.29 | R19: 45.45 | S19: 51.81 | T19: 28.84 | U19: 32.88 | V19: 6.74 | W19: 7.68
A20: Genflex urban loads | B20: GU | C20: 3 | D20: 1 | E20: GU31N | H20: > 900km | I20: < 500V | J20: 227.19 | K20: 259 | L20: 68.83 | M20: 78.47 | N20: 37.38 | O20: 42.61 | P20: 74.12 | Q20: 84.5 | R20: 51.01 | S20: 58.15 | T20: 32.36 | U20: 36.89 | V20: 5.99 | W20: 6.83
A21: Genflex urban loads | B21: GU | C21: 3 | D21: 2 | E21: GU32N | I21: ≥ 500V & < 66kV | J21: 224.02 | K21: 255.38 | L21: 67.86 | M21: 77.36 | N21: 36.84 | O21: 42 | P21: 73.07 | Q21: 83.3 | R21: 50.28 | S21: 57.32 | T21: 31.9 | U21: 36.37 | V21: 5.51 | W21: 6.28
A22: Genflex urban loads | B22: GU | C22: 3 | D22: 3 | E22: GU33N | I22: ≥ 66kV & ≤ 132kV | J22: 216.95 | K22: 247.32 | L22: 65.72 | M22: 74.92 | N22: 35.69 | O22: 40.69 | P22: 70.76 | Q22: 80.67 | R22: 48.71 | S22: 55.53 | T22: 30.9 | U22: 35.23 | V22: 5.32 | W22: 6.06
A23: Genflex urban loads | B23: GU | C23: 3 | D23: 4 | E23: GU34N | I23: > 132kV* | J23: 204.44 | K23: 233.06 | L23: 61.96 | M23: 70.63 | N23: 33.67 | O23: 38.38 | P23: 66.72 | Q23: 76.06 | R23: 45.93 | S23: 52.36 | T23: 29.16 | U23: 33.24 | V23: 6.79 | W23: 7.74
I24: * 132 kV or Transmission connected
H26: Distribution network charges
J27: Network access charge [R/kVA/m] | L27: Network demand charge [R/kVA/m] | N27: Urban low voltage subsidy charge [R/kVA/m]
S28: Reliability service charge [c/kWh]
A29: Tariff | B29: Tariff nameBillcode | C29: Tx zone | D29: Voltage | E29: Billcode | H29: Voltage | K29: VAT incl | M29: VAT incl | O29: VAT incl | Q29: Voltage | T29: VAT incl
A30: Genflex urban loads | B30: GU | C30: 0 | D30: 1 | E30: =B30&C30&D30&IF($A$2="Non-municipal","N",IF($A$2="Municiple","Y","error")) -> GU01N | H30: < 500V | J30: 12.56 | K30: =ROUND(J30 * (1 + VAT), 2) -> 14.32 | L30: 23.81 | M30: =ROUND(L30 * (1 + VAT), 2) -> 27.14 | N30: 0 | O30: =ROUND(N30 * (1 + VAT), 2) -> 0 | Q30: < 500V | S30: 0.29 | T30: =ROUND(S30 * (1 + VAT), 2) -> 0.33
A31: Genflex urban loads | B31: GU | C31: 0 | D31: 2 | E31: =B31&C31&D31&IF($A$2="Non-municipal","N",IF($A$2="Municiple","Y","error")) -> GU02N | H31: ≥ 500V & < 66kV | J31: 11.53 | K31: =ROUND(J31 * (1 + VAT), 2) -> 13.14 | L31: 21.85 | M31: =ROUND(L31 * (1 + VAT), 2) -> 24.91 | N31: 0 | O31: =ROUND(N31 * (1 + VAT), 2) -> 0 | Q31: ≥ 500V & < 66kV | S31: 0.29 | T31: =ROUND(S31 * (1 + VAT), 2) -> 0.33
A32: Genflex urban loads | B32: GU | C32: 0 | D32: 3 | E32: GU03N | H32: ≥ 66kV & ≤ 132kV | J32: 4.11 | K32: =ROUND(J32 * (1 + VAT), 2) -> 4.69 | L32: 7.62 | M32: =ROUND(L32 * (1 + VAT), 2) -> 8.69 | N32: 9.39 | O32: =ROUND(N32 * (1 + VAT), 2) -> 10.7 | Q32: ≥ 66kV & ≤ 132kV | S32: 0.28 | T32: =ROUND(S32 * (1 + VAT), 2) -> 0.32
A33: Genflex urban loads | B33: GU | C33: 0 | D33: 4 | E33: GU04N | H33: > 132kV / Transmission connected | J33: 0 | K33: =ROUND(J33 * (1 + VAT), 2) -> 0 | L33: 0 | M33: =ROUND(L33 * (1 + VAT), 2) -> 0 | N33: 9.39 | O33: =ROUND(N33 * (1 + VAT), 2) -> 10.7 | Q33: > 132kV / Transmission connected | S33: 0.24 | T33: =ROUND(S33 * (1 + VAT), 2) -> 0.27
H36: Customer categories | J36: Service charge [R/account/day] | L36: Administration charge [R/POD/day] | Q36: Reactive energy charge [c/kVArh]
Q37: High season | S37: Low season
A38: Tariff | B38: Tariff nameBillcode | C38: Tx zone | D38: Voltage | E38: Billcode | K38: VAT incl | M38: VAT incl | R38: VAT incl | T38: VAT incl
A39: Genflex urban loads | B39: GU | C39: 0 | D39: 1 | E39: =B39&C39&D39&IF($A$2="Non-municipal","N",IF($A$2="Municiple","Y","error")) -> GU01N | H39: > 1 MVA | J39: 0 | K39: =ROUND(J39 * (1 + VAT), 2) -> 0 | L39: 11.9 | M39: =ROUND(L39 * (1 + VAT), 2) -> 13.57 | Q39: 10.15 | R39: =ROUND(Q39 * (1 + VAT), 2) -> 11.57 | S39: 0 | T39: =ROUND(S39 * (1 + VAT), 2) -> 0
A40: Genflex urban loads | B40: GU | C40: 0 | D40: 1 | E40: =B40&C40&D40&IF($A$2="Non-municipal","N",IF($A$2="Municiple","Y","error")) -> GU01N | H40: Key customers | J40: 0 | K40: =ROUND(J40 * (1 + VAT), 2) -> 0 | L40: 11.9 | M40: =ROUND(L40 * (1 + VAT), 2) -> 13.57
H42: Electrification and rural network subsidy charge [c/kWh] | J42: Affordability subsidy charge [c/kWh] payable by non-local authority tariffs
H44: All seasons | J44: All seasons
A45: Tariff | B45: Tariff nameBillcode | C45: Tx zone | D45: Voltage | E45: Billcode | I45: VAT incl | K45: VAT incl
A46: Genflex urban loads | B46: GU | C46: 0 | D46: 1 | E46: =B46&C46&D46&IF($A$2="Non-municipal","N",IF($A$2="Municiple","Y","error")) -> GU01N | H46: 5.62 | I46: =ROUND(H46 * (1 + VAT), 2) -> 6.41 | J46: 2.24 | K46: =ROUND(J46 * (1 + VAT), 2) -> 2.55

Sheet Nightsave Large inc
A2: Non-municipal | H2: Nightsave Urban Large tariff | Q2: Non-local authority | AG2: check value
J4: Active energy charge [c/kWh] | N4: Energy demand charge [R/kVA/m] | R4: Transmission network charges [R/kVA/m]
H5: Transmission zone | J5: High demand season [Jun - Aug] | L5: Low demand season [Sep - May] | N5: High demand season [Jun - Aug] | P5: Low demand season [Sep - May]
I6: Voltage
A7: Tariff | B7: Tariff nameBillcode | C7: Tx zone | D7: Voltage | E7: Billcode | K7: VAT incl | M7: VAT incl | O7: VAT incl | Q7: VAT incl | S7: VAT incl
A8: Nightsave Large | B8: NL | C8: 0 | D8: 1 | E8: NL01N | H8: ≤ 300km | I8: < 500V | J8: 54.56 | K8: 62.2 | L8: 42.42 | M8: 48.36 | N8: 166.01 | O8: 189.25 | P8: 23.2 | Q8: 26.45 | R8: 6.32 | S8: 7.2
A9: Nightsave Large | B9: NL | C9: 0 | D9: 2 | E9: NL02N | I9: ≥ 500V & < 66kV | J9: 51.67 | K9: 58.9 | L9: 40.33 | M9: 45.98 | N9: 160.68 | O9: 183.18 | P9: 22.46 | Q9: 25.6 | R9: 5.78 | S9: 6.59
A10: Nightsave Large | B10: NL | C10: 0 | D10: 3 | E10: NL03N | I10: ≥ 66kV & ≤ 132kV | J10: 51.29 | K10: 58.47 | L10: 39.84 | M10: 45.42 | N10: 154.83 | O10: 176.51 | P10: 21.64 | Q10: 24.67 | R10: 5.63 | S10: 6.42
A11: Nightsave Large | B11: NL | C11: 0 | D11: 4 | E11: NL04N | I11: > 132kV* | J11: 47.98 | K11: 54.7 | L11: 37.31 | M11: 42.53 | N11: 149.36 | O11: 170.27 | P11: 20.87 | Q11: 23.79 | R11: 7.11 | S11: 8.11
A12: Nightsave Large | B12: NL | C12: 1 | D12: 1 | E12: NL11N | H12: > 300km and ≤ 600km | I12: < 500V | J12: 55.29 | K12: 63.03 | L12: 42.88 | M12: 48.88 | N12: 167.73 | O12: 191.21 | P12: 23.43 | Q12: 26.71 | R12: 6.37 | S12: 7.26
A13: Nightsave Large | B13: NL | C13: 1 | D13: 2 | E13: NL12N | I13: ≥ 500V & < 66kV | J13: 52.75 | K13: 60.14 | L13: 41.15 | M13: 46.91 | N13: 162.31 | O13: 185.03 | P13: 22.66 | Q13: 25.83 | R13: 5.83 | S13: 6.65
A14: Nightsave Large | B14: NL | C14: 1 | D14: 3 | E14: NL13N | I14: ≥ 66kV & ≤ 132kV | J14: 52.36 | K14: 59.69 | L14: 40.65 | M14: 46.34 | N14: 156.37 | O14: 178.26 | P14: 21.85 | Q14: 24.91 | R14: 5.67 | S14: 6.46
A15: Nightsave Large | B15: NL | C15: 1 | D15: 4 | E15: NL14N | I15: > 132kV* | J15: 48.98 | K15: 55.84 | L15: 38.07 | M15: 43.4 | N15: 150.88 | O15: 172 | P15: 21.07 | Q15: 24.02 | R15: 7.18 | S15: 8.19
A16: Nightsave Large | B16: NL | C16: 2 | D16: 1 | E16: NL21N | H16: > 600km and ≤ 900km | I16: < 500V | J16: 55.81 | K16: 63.62 | L16: 43.3 | M16: 49.36 | N16: 169.44 | O16: 193.16 | P16: 23.67 | Q16: 26.98 | R16: 6.45 | S16: 7.35
A17: Nightsave Large | B17: NL | C17: 2 | D17: 2 | E17: NL22N | I17: ≥ 500V & < 66kV | J17: 53.28 | K17: 60.74 | L17: 41.57 | M17: 47.39 | N17: 163.94 | O17: 186.89 | P17: 22.91 | Q17: 26.12 | R17: 5.88 | S17: 6.7
A18: Nightsave Large | B18: NL | C18: 2 | D18: 3 | E18: NL23N | I18: ≥ 66kV & ≤ 132kV | J18: 52.88 | K18: 60.28 | L18: 41.06 | M18: 46.81 | N18: 157.94 | O18: 180.05 | P18: 22.06 | Q18: 25.15 | R18: 5.71 | S18: 6.51
A19: Nightsave Large | B19: NL | C19: 2 | D19: 4 | E19: NL24N | I19: > 132kV* | J19: 49.46 | K19: 56.38 | L19: 38.46 | M19: 43.84 | N19: 152.39 | O19: 173.72 | P19: 21.28 | Q19: 24.26 | R19: 7.28 | S19: 8.3
A20: Nightsave Large | B20: NL | C20: 3 | D20: 1 | E20: NL31N | H20: > 900km | I20: < 500V | J20: 56.4 | K20: 64.3 | L20: 43.74 | M20: 49.86 | N20: 171.09 | O20: 195.04 | P20: 23.9 | Q20: 27.25 | R20: 6.47 | S20: 7.38
A21: Nightsave Large | B21: NL | C21: 3 | D21: 2 | E21: NL32N | I21: ≥ 500V & < 66kV | J21: 53.79 | K21: 61.32 | L21: 41.97 | M21: 47.85 | N21: 165.59 | O21: 188.77 | P21: 23.11 | Q21: 26.35 | R21: 5.95 | S21: 6.78
A22: Nightsave Large | B22: NL | C22: 3 | D22: 3 | E22: NL33N | I22: ≥ 66kV & ≤ 132kV | J22: 53.42 | K22: 60.9 | L22: 41.47 | M22: 47.28 | N22: 159.55 | O22: 181.89 | P22: 22.29 | Q22: 25.41 | R22: 5.75 | S22: 6.56
A23: Nightsave Large | B23: NL | C23: 3 | D23: 4 | E23: NL34N | I23: > 132kV* | J23: 49.99 | K23: 56.99 | L23: 38.88 | M23: 44.32 | N23: 153.93 | O23: 175.48 | P23: 21.49 | Q23: 24.5 | R23: 7.33 | S23: 8.36
I24: ='Megaflex inc'!I24 -> * >132 kV or Transmission connected
H26: Distribution network charges
J27: Network access charge [R/kVA/m] | L27: Network demand charge [R/kVA/m] | N27: Urban low voltage subsidy charge [R/kVA/m]
R28: Reliability service charge [c/kWh]
A29: Tariff | B29: Tariff nameBillcode | C29: Tx zone | D29: Voltage | E29: Billcode | H29: Voltage | K29: VAT incl | M29: VAT incl | O29: VAT incl | Q29: Voltage | S29: VAT incl
A30: Nightsave Large | B30: NL | C30: 0 | D30: 1 | E30: NL01N | H30: < 500V | J30: 12.56 | K30: 14.32 | L30: 23.81 | M30: 27.14 | N30: 0 | O30: 0 | Q30: < 500V | R30: 0.29 | S30: 0.33
A31: Nightsave Large | B31: NL | C31: 0 | D31: 2 | E31: NL02N | H31: ≥ 500V & < 66kV | J31: 11.52 | K31: 13.13 | L31: 21.85 | M31: 24.91 | N31: 0 | O31: 0 | Q31: ≥ 500V & < 66kV | R31: 0.28 | S31: 0.32
A32: Nightsave Large | B32: NL | C32: 0 | D32: 3 | E32: NL03N | H32: ≥ 66kV & ≤ 132kV | J32: 4.11 | K32: 4.69 | L32: 7.61 | M32: 8.68 | N32: 10.14 | O32: 11.56 | Q32: ≥ 66kV & ≤ 132kV | R32: 0.27 | S32: 0.31
A33: Nightsave Large | B33: NL | C33: 0 | D33: 4 | E33: NL04N | H33: > 132kV / Transmission connected | J33: 0 | K33: 0 | L33: 0 | M33: 0 | N33: 10.14 | O33: 11.56 | Q33: > 132kV* | R33: 0.25 | S33: 0.29
Q34: * 132 kV or Transmission connected
H36: Customer categories | I36: Service charge [R/account/day] | K36: Administration charge [R/POD/day]
A38: Tariff | B38: Tariff nameBillcode | C38: Tx zone | D38: Voltage | E38: Billcode | J38: VAT incl | L38: VAT incl
A39: Nightsave Large | B39: NL | C39: 0 | D39: 1 | E39: NL01N | H39: >1 MVA | I39: 144.18 | J39: 164.37 | K39: 64.98 | L39: 74.08
A40: Nightsave Large | B40: NL | C40: 0 | D40: 1 | E40: NL01N | H40: Key customers | I40: 2825.34 | J40: 3220.89 | K40: 90.23 | L40: 102.86
H43: Electrification and rural network subsidy charge [c/kWh] | J43: Affordability subsidy charge [c/kWh] Only payable by non-local authority tariffs
H45: All seasons | J45: All seasons
A46: Tariff | B46: Tariff nameBillcode | C46: Tx zone | D46: Voltage | E46: Billcode | I46: VAT incl | K46: VAT incl
A47: Nightsave Large | B47: NL | C47: 0 | D47: 1 | E47: NL01N | H47: 5.62 | I47: 6.41 | J47: 2.24 | K47: 2.55

Sheet Nightsave Large Munic inc
A2: Municiple | H2: Nightsave Urban Large tariff | Q2: Local authority | AG2: check value
J4: Active energy charge [c/kWh] | N4: Energy demand charge [R/kVA/m] | R4: Transmission network charges [R/kVA/m]
H5: Transmission zone | J5: High demand season [Jun - Aug] | L5: Low demand season [Sep - May] | N5: High demand season [Jun - Aug] | P5: Low demand season [Sep - May]
I6: Voltage
A7: Tariff | B7: Tariff nameBillcode | C7: Tx zone | D7: Voltage | E7: Billcode | K7: VAT incl | M7: VAT incl | O7: VAT incl | Q7: VAT incl | S7: VAT incl
A8: Nightsave Large | B8: NL | C8: 0 | D8: 1 | E8: NL01Y | H8: ≤ 300km | I8: < 500V | J8: 55.89 | K8: 63.71 | L8: 43.46 | M8: 49.54 | N8: 166.88 | O8: 190.24 | P8: 23.32 | Q8: 26.58 | R8: 6.3 | S8: 7.18 | V8: =(N8-'[7]Nightsave Large Munic inc'!$I$8)/'[7]Nightsave Large Munic inc'!$I$8 -> 0.0806190507
A9: Nightsave Large | B9: NL | C9: 0 | D9: 2 | E9: NL02Y | I9: ≥ 500V & < 66kV | J9: 52.93 | K9: 60.34 | L9: 41.31 | M9: 47.09 | N9: 161.52 | O9: 184.13 | P9: 22.58 | Q9: 25.74 | R9: 5.75 | S9: 6.56
A10: Nightsave Large | B10: NL | C10: 0 | D10: 3 | E10: NL03Y | I10: ≥ 66kV & ≤ 132kV | J10: 52.54 | K10: 59.9 | L10: 40.8 | M10: 46.51 | N10: 155.64 | O10: 177.43 | P10: 21.75 | Q10: 24.8 | R10: 5.6 | S10: 6.38
A11: Nightsave Large | B11: NL | C11: 0 | D11: 4 | E11: NL04Y | I11: > 132kV* | J11: 49.15 | K11: 56.03 | L11: 38.22 | M11: 43.57 | N11: 150.14 | O11: 171.16 | P11: 20.97 | Q11: 23.91 | R11: 7.08 | S11: 8.07
A12: Nightsave Large | B12: NL | C12: 1 | D12: 1 | E12: NL11Y | H12: > 300km and ≤ 600km | I12: < 500V | J12: 56.63 | K12: 64.56 | L12: 43.93 | M12: 50.08 | N12: 168.61 | O12: 192.22 | P12: 23.55 | Q12: 26.85 | R12: 6.34 | S12: 7.23
A13: Nightsave Large | B13: NL | C13: 1 | D13: 2 | E13: NL12Y | I13: ≥ 500V & < 66kV | J13: 54.03 | K13: 61.59 | L13: 42.15 | M13: 48.05 | N13: 163.15 | O13: 185.99 | P13: 22.78 | Q13: 25.97 | R13: 5.81 | S13: 6.62
A14: Nightsave Large | B14: NL | C14: 1 | D14: 3 | E14: NL13Y | I14: ≥ 66kV & ≤ 132kV | J14: 53.63 | K14: 61.14 | L14: 41.65 | M14: 47.48 | N14: 157.19 | O14: 179.2 | P14: 21.97 | Q14: 25.05 | R14: 5.64 | S14: 6.43
A15: Nightsave Large | B15: NL | C15: 1 | D15: 4 | E15: NL14Y | I15: > 132kV* | J15: 50.17 | K15: 57.19 | L15: 39 | M15: 44.46 | N15: 151.66 | O15: 172.89 | P15: 21.18 | Q15: 24.15 | R15: 7.15 | S15: 8.15
A16: Nightsave Large | B16: NL | C16: 2 | D16: 1 | E16: NL21Y | H16: > 600km and ≤ 900km | I16: < 500V | J16: 57.17 | K16: 65.17 | L16: 44.35 | M16: 50.56 | N16: 170.32 | O16: 194.16 | P16: 23.79 | Q16: 27.12 | R16: 6.42 | S16: 7.32
A17: Nightsave Large | B17: NL | C17: 2 | D17: 2 | E17: NL22Y | I17: ≥ 500V & < 66kV | J17: 54.57 | K17: 62.21 | L17: 42.59 | M17: 48.55 | N17: 164.8 | O17: 187.87 | P17: 23.03 | Q17: 26.25 | R17: 5.86 | S17: 6.68
A18: Nightsave Large | B18: NL | C18: 2 | D18: 3 | E18: NL23Y | I18: ≥ 66kV & ≤ 132kV | J18: 54.17 | K18: 61.75 | L18: 42.07 | M18: 47.96 | N18: 158.76 | O18: 180.99 | P18: 22.17 | Q18: 25.27 | R18: 5.69 | S18: 6.49
A19: Nightsave Large | B19: NL | C19: 2 | D19: 4 | E19: NL24Y | I19: > 132kV* | J19: 50.67 | K19: 57.76 | L19: 39.39 | M19: 44.9 | N19: 153.19 | O19: 174.64 | P19: 21.4 | Q19: 24.4 | R19: 7.25 | S19: 8.27
A20: Nightsave Large | B20: NL | C20: 3 | D20: 1 | E20: NL31Y | H20: > 900km | I20: < 500V | J20: 57.77 | K20: 65.86 | L20: 44.8 | M20: 51.07 | N20: 171.99 | O20: 196.07 | P20: 24.03 | Q20: 27.39 | R20: 6.45 | S20: 7.35
A21: Nightsave Large | B21: NL | C21: 3 | D21: 2 | E21: NL32Y | I21: ≥ 500V & < 66kV | J21: 55.11 | K21: 62.83 | L21: 43 | M21: 49.02 | N21: 166.44 | O21: 189.74 | P21: 23.23 | Q21: 26.48 | R21: 5.92 | S21: 6.75
A22: Nightsave Large | B22: NL | C22: 3 | D22: 3 | E22: NL33Y | I22: ≥ 66kV & ≤ 132kV | J22: 54.71 | K22: 62.37 | L22: 42.48 | M22: 48.43 | N22: 160.37 | O22: 182.82 | P22: 22.41 | Q22: 25.55 | R22: 5.73 | S22: 6.53
A23: Nightsave Large | B23: NL | C23: 3 | D23: 4 | E23: NL34Y | I23: > 132kV* | J23: 51.22 | K23: 58.39 | L23: 39.83 | M23: 45.41 | N23: 154.74 | O23: 176.4 | P23: 21.6 | Q23: 24.62 | R23: 7.3 | S23: 8.32
I24: ='Nightsave Large inc'!I24 -> * >132 kV or Transmission connected
H26: Distribution network charges
J27: Network access charge [R/kVA/m] | L27: Network demand charge [R/kVA/m] | N27: Urban low voltage subsidy charge [R/kVA/m]
R28: Reliability service charge [c/kWh]
A29: Tariff | B29: Tariff nameBillcode | C29: Tx zone | D29: Voltage | E29: Billcode | H29: Voltage | K29: VAT incl | M29: VAT incl | O29: VAT incl | Q29: Voltage | S29: VAT incl
A30: Nightsave Large | B30: NL | C30: 0 | D30: 1 | E30: NL01Y | H30: < 500V | J30: 12.57 | K30: 14.33 | L30: 23.83 | M30: 27.17 | N30: 0 | O30: 0 | Q30: < 500V | R30: 0.29 | S30: 0.33
A31: Nightsave Large | B31: NL | C31: 0 | D31: 2 | E31: NL02Y | H31: ≥ 500V & < 66kV | J31: 11.53 | K31: 13.14 | L31: 21.86 | M31: 24.92 | N31: 0 | O31: 0 | Q31: ≥ 500V & < 66kV | R31: 0.28 | S31: 0.32
A32: Nightsave Large | B32: NL | C32: 0 | D32: 3 | E32: NL03Y | H32: ≥ 66kV & ≤ 132kV | J32: 4.12 | K32: 4.7 | L32: 7.62 | M32: 8.69 | N32: 10.09 | O32: 11.5 | Q32: ≥ 66kV & ≤ 132kV | R32: 0.27 | S32: 0.31
A33: Nightsave Large | B33: NL | C33: 0 | D33: 4 | E33: NL04Y | H33: > 132kV / Transmission connected | J33: 0 | K33: 0 | L33: 0 | M33: 0 | N33: 10.09 | O33: 11.5 | Q33: > 132kV* | R33: 0.25 | S33: 0.29
Q34: *> 132 kV or Transmission connected
H36: Customer categories | I36: Service charge [R/account/day] | K36: Administration charge [R/POD/day]
A38: Tariff | B38: Tariff nameBillcode | C38: Tx zone | D38: Voltage | E38: Billcode | J38: VAT incl | L38: VAT incl
A39: Nightsave Large | B39: NL | C39: 0 | D39: 1 | E39: NL01Y | H39: >1 MVA | I39: 143.59 | J39: 163.69 | K39: 64.72 | L39: 73.78
A40: Nightsave Large | B40: NL | C40: 0 | D40: 1 | E40: NL01Y | H40: Key customers | I40: 2813.83 | J40: 3207.77 | K40: 89.86 | L40: 102.44
H43: Electrification and rural network subsidy charge [c/kWh]
H45: All seasons
A46: Tariff | B46: Tariff nameBillcode | C46: Tx zone | D46: Voltage | E46: Billcode | I46: VAT incl
A47: Nightsave Large | B47: NL | C47: 0 | D47: 1 | E47: NL01Y | H47: 5.59 | I47: 6.37

Sheet Miniflex inc
A2: Non-municipal | G2: Miniflex tariff | T2: Non-local authority | AG2: check value
J4: Active energy charge [c/kWh] | V4: Network access charges [R/kVA/m]
H5: Transmission zone | J5: High demand season [Jun - Aug] | P5: Low demand season [Sep - May]
I6: Voltage | J6: Peak | L6: Standard | N6: Off Peak | P6: Peak | R6: Standard | T6: Off Peak
A7: Tariff | B7: Tariff nameBillcode | C7: Tx zone | D7: Voltage | E7: Billcode | K7: VAT incl | M7: VAT incl | O7: VAT incl | Q7: VAT incl | S7: VAT incl | U7: VAT incl | W7: VAT incl | AG7: nac test
A8: Miniflex | B8: Mi | C8: 0 | D8: 1 | E8: Mi01N | H8: ≤ 300km | I8: < 500V | J8: 220.91 | K8: 251.84 | L8: 67.21 | M8: 76.62 | N8: 36.69 | O8: 41.83 | P8: 72.34 | Q8: 82.47 | R8: 49.92 | S8: 56.91 | T8: 31.82 | U8: 36.27 | V8: 18.86 | W8: 21.5
A9: Miniflex | B9: Mi | C9: 0 | D9: 2 | E9: Mi02N | I9: ≥ 500V & < 66kV | J9: 217.44 | K9: 247.88 | L9: 65.87 | M9: 75.09 | N9: 35.77 | O9: 40.78 | P9: 70.93 | Q9: 80.86 | R9: 48.82 | S9: 55.65 | T9: 30.97 | U9: 35.31 | V9: 17.28 | W9: 19.7
A10: Miniflex | B10: Mi | C10: 0 | D10: 3 | E10: Mi03N | I10: ≥ 66kV & ≤ 132kV | J10: 210.56 | K10: 240.04 | L10: 63.78 | M10: 72.71 | N10: 34.64 | O10: 39.49 | P10: 68.69 | Q10: 78.31 | R10: 47.27 | S10: 53.89 | T10: 29.99 | U10: 34.19 | V10: 9.71 | W10: 11.07
A11: Miniflex | B11: Mi | C11: 0 | D11: 4 | E11: Mi04N | I11: > 132kV* | J11: 198.45 | K11: 226.23 | L11: 60.11 | M11: 68.53 | N11: 32.65 | O11: 37.22 | P11: 64.74 | Q11: 73.8 | R11: 44.55 | S11: 50.79 | T11: 28.27 | U11: 32.23 | V11: 7.07 | W11: 8.06
A12: Miniflex | B12: Mi | C12: 1 | D12: 1 | E12: Mi11N | H12: > 300km and ≤ 600km | I12: < 500V | J12: 222.71 | K12: 253.89 | L12: 67.48 | M12: 76.93 | N12: 36.64 | O12: 41.77 | P12: 72.65 | Q12: 82.82 | R12: 50.01 | S12: 57.01 | T12: 31.73 | U12: 36.17 | V12: 18.9 | W12: 21.55
A13: Miniflex | B13: Mi | C13: 1 | D13: 2 | E13: Mi12N | I13: ≥ 500V & < 66kV | J13: 219.61 | K13: 250.36 | L13: 66.53 | M13: 75.84 | N13: 36.13 | O13: 41.19 | P13: 71.65 | Q13: 81.68 | R13: 49.3 | S13: 56.2 | T13: 31.28 | U13: 35.66 | V13: 17.33 | W13: 19.76
A14: Miniflex | B14: Mi | C14: 1 | D14: 3 | E14: Mi13N | I14: ≥ 66kV & ≤ 132kV | J14: 212.63 | K14: 242.4 | L14: 64.41 | M14: 73.43 | N14: 34.97 | O14: 39.87 | P14: 69.36 | Q14: 79.07 | R14: 47.73 | S14: 54.41 | T14: 30.28 | U14: 34.52 | V14: 9.75 | W14: 11.12
A15: Miniflex | B15: Mi | C15: 1 | D15: 4 | E15: Mi14N | I15: > 132kV* | J15: 200.43 | K15: 228.49 | L15: 60.72 | M15: 69.22 | N15: 32.96 | O15: 37.57 | P15: 65.37 | Q15: 74.52 | R15: 44.99 | S15: 51.29 | T15: 28.54 | U15: 32.54 | V15: 7.15 | W15: 8.15
A16: Miniflex | B16: Mi | C16: 2 | D16: 1 | E16: Mi21N | H16: > 600km and ≤ 900km | I16: < 500V | J16: 224.93 | K16: 256.42 | L16: 68.13 | M16: 77.67 | N16: 36.99 | O16: 42.17 | P16: 73.38 | Q16: 83.65 | R16: 50.5 | S16: 57.57 | T16: 32.03 | U16: 36.51 | V16: 18.99 | W16: 21.65
A17: Miniflex | B17: Mi | C17: 2 | D17: 2 | E17: Mi22N | I17: ≥ 500V & < 66kV | J17: 221.81 | K17: 252.86 | L17: 67.2 | M17: 76.61 | N17: 36.49 | O17: 41.6 | P17: 72.36 | Q17: 82.49 | R17: 49.8 | S17: 56.77 | T17: 31.59 | U17: 36.01 | V17: 17.38 | W17: 19.81
A18: Miniflex | B18: Mi | C18: 2 | D18: 3 | E18: Mi23N | I18: ≥ 66kV & ≤ 132kV | J18: 214.79 | K18: 244.86 | L18: 65.07 | M18: 74.18 | N18: 35.33 | O18: 40.28 | P18: 70.06 | Q18: 79.87 | R18: 48.22 | S18: 54.97 | T18: 30.59 | U18: 34.87 | V18: 9.8 | W18: 11.17
A19: Miniflex | B19: Mi | C19: 2 | D19: 4 | E19: Mi24N | I19: > 132kV* | J19: 202.45 | K19: 230.79 | L19: 61.32 | M19: 69.9 | N19: 33.31 | O19: 37.97 | P19: 66.04 | Q19: 75.29 | R19: 45.45 | S19: 51.81 | T19: 28.84 | U19: 32.88 | V19: 7.25 | W19: 8.27
A20: Miniflex | B20: Mi | C20: 3 | D20: 1 | E20: Mi31N | H20: > 900km | I20: < 500V | J20: 227.19 | K20: 259 | L20: 68.84 | M20: 78.48 | N20: 37.38 | O20: 42.61 | P20: 74.12 | Q20: 84.5 | R20: 51.01 | S20: 58.15 | T20: 32.37 | U20: 36.9 | V20: 19.01 | W20: 21.67
A21: Miniflex | B21: Mi | C21: 3 | D21: 2 | E21: Mi32N | I21: ≥ 500V & < 66kV | J21: 224.02 | K21: 255.38 | L21: 67.86 | M21: 77.36 | N21: 36.84 | O21: 42 | P21: 73.07 | Q21: 83.3 | R21: 50.28 | S21: 57.32 | T21: 31.9 | U21: 36.37 | V21: 17.45 | W21: 19.89
A22: Miniflex | B22: Mi | C22: 3 | D22: 3 | E22: Mi33N | I22: ≥ 66kV & ≤ 132kV | J22: 216.95 | K22: 247.32 | L22: 65.72 | M22: 74.92 | N22: 35.68 | O22: 40.68 | P22: 70.76 | Q22: 80.67 | R22: 48.71 | S22: 55.53 | T22: 30.9 | U22: 35.23 | V22: 9.84 | W22: 11.22
A23: Miniflex | B23: Mi | C23: 3 | D23: 4 | E23: Mi34N | I23: > 132kV* | J23: 204.43 | K23: 233.05 | L23: 61.96 | M23: 70.63 | N23: 33.66 | O23: 38.37 | P23: 66.72 | Q23: 76.06 | R23: 45.93 | S23: 52.36 | T23: 29.16 | U23: 33.24 | V23: 7.3 | W23: 8.32
I24: ='Nightsave Large Munic inc'!I24 -> * >132 kV or Transmission connected
H26: Customer categories | J26: Service charge [R/account/day] | L26: Administration charge [R/POD/day]
A28: Tariff | B28: Tariff nameBillcode | C28: Tx zone | D28: Voltage | E28: Billcode | K28: VAT incl | M28: VAT incl | P28: Reliability service charge [c/kWh] | R28: Network demand charge [c/kWh] [Peak & Standard] | U28: Urban low voltage subsidy charge [R/kVA/m]
A29: Miniflex | B29: Mi | C29: 0 | D29: 1 | E29: Mi01N | H29: ≤ 100 kVA | J29: 10.25 | K29: 11.69 | L29: 2.25 | M29: 2.57 | O29: Voltage | Q29: VAT incl | S29: VAT incl | W29: VAT incl
A30: Miniflex | B30: Mi | C30: 0 | D30: 1 | E30: Mi01N | H30: > 100 kVA & ≤ 500 kVA | J30: 46.85 | K30: 53.41 | L30: 13.13 | M30: 14.97 | O30: < 500V | P30: 0.29 | Q30: 0.33 | R30: 11.66 | S30: 13.29 | U30: < 500V | V30: 0 | W30: 0
A31: Miniflex | B31: Mi | C31: 0 | D31: 1 | E31: Mi01N | H31: > 500 kVA & ≤ 1 MVA | J31: 144.18 | K31: 164.37 | L31: 26.1 | M31: 29.75 | O31: ≥ 500V & < 66kV | P31: 0.28 | Q31: 0.32 | R31: 4.89 | S31: 5.57 | U31: ≥ 500V & < 66kV | V31: 0 | W31: 0
A32: Miniflex | B32: Mi | C32: 0 | D32: 1 | E32: Mi01N | H32: > 1 MVA | J32: 144.18 | K32: 164.37 | L32: 64.98 | M32: 74.08 | O32: ≥ 66kV & ≤ 132kV | P32: 0.27 | Q32: 0.31 | R32: 1.7 | S32: 1.94 | U32: ≥ 66kV & ≤ 132kV | V32: 10.14 | W32: 11.56
A33: Miniflex | B33: Mi | C33: 0 | D33: 1 | E33: Mi01N | H33: Key customers | J33: 2825.34 | K33: 3220.89 | L33: 90.23 | M33: 102.86 | O33: > 132kV* | P33: 0.25 | Q33: 0.29 | R33: 0 | S33: 0 | U33: > 132kV* | V33: 10.14 | W33: 11.56
O34: * 132 kV or Transmission connected | U34: * 132 kV or Transmission connected
H36: Electrification and rural network subsidy charge [c/kWh] | J36: Affordability subsidy charge [c/kWh] Only payable by non-local authority tariffs | O36: Reactive energy charge [c/kVArh]
H38: All seasons | J38: All seasons | O38: High season | Q38: Low season
A39: Tariff | B39: Tariff nameBillcode | C39: Tx zone | D39: Voltage | E39: Billcode | I39: VAT incl | K39: VAT incl | P39: VAT incl | R39: VAT incl
A40: Miniflex | B40: Mi | C40: 0 | D40: 1 | E40: Mi01N | H40: 5.62 | I40: 6.41 | J40: 2.24 | K40: 2.55 | O40: 4.43 | P40: 5.05 | Q40: 0 | R40: 0
A42: Miniflex | B42: Mi | C42: 0 | D42: 1 | E42: Mi01N
A43: Miniflex | B43: Mi | C43: 1 | D43: 2 | E43: Mi12N
A44: Miniflex | B44: Mi | C44: 2 | D44: 3 | E44: Mi23N
A45: Miniflex | B45: Mi | C45: 3 | D45: 4 | E45: Mi34N

Sheet Miniflex Munic inc
A2: Municiple | G2: Miniflex tariff | T2: Local authority
J4: Active energy charge [c/kWh] | V4: Network access charges [R/kVA/m]
H5: Transmission zone | J5: High demand season [Jun - Aug] | P5: Low demand season [Sep - May]
I6: Voltage | J6: Peak | L6: Standard | N6: Off Peak | P6: Peak | R6: Standard | T6: Off Peak
A7: Tariff | B7: Tariff nameBillcode | C7: Tx zone | D7: Voltage | E7: Billcode | K7: VAT incl | M7: VAT incl | O7: VAT incl | Q7: VAT incl | S7: VAT incl | U7: VAT incl | W7: VAT incl
A8: Miniflex | B8: Mi | C8: 0 | D8: 1 | E8: Mi01Y | H8: ≤ 300km | I8: < 500V | J8: 226.3 | K8: 257.98 | L8: 68.86 | M8: 78.5 | N8: 37.58 | O8: 42.84 | P8: 74.1 | Q8: 84.47 | R8: 51.13 | S8: 58.29 | T8: 32.59 | U8: 37.15 | V8: 18.87 | W8: 21.51
A9: Miniflex | B9: Mi | C9: 0 | D9: 2 | E9: Mi02Y | I9: ≥ 500V & < 66kV | J9: 222.73 | K9: 253.91 | L9: 67.48 | M9: 76.93 | N9: 36.64 | O9: 41.77 | P9: 72.66 | Q9: 82.83 | R9: 50.01 | S9: 57.01 | T9: 31.73 | U9: 36.17 | V9: 17.29 | W9: 19.71
A10: Miniflex | B10: Mi | C10: 0 | D10: 3 | E10: Mi03Y | I10: ≥ 66kV & ≤ 132kV | J10: 215.7 | K10: 245.9 | L10: 65.34 | M10: 74.49 | N10: 35.48 | O10: 40.45 | P10: 70.36 | Q10: 80.21 | R10: 48.43 | S10: 55.21 | T10: 30.72 | U10: 35.02 | V10: 9.71 | W10: 11.07
A11: Miniflex | B11: Mi | C11: 0 | D11: 4 | E11: Mi04Y | I11: > 132kV* | J11: 203.29 | K11: 231.75 | L11: 61.58 | M11: 70.2 | N11: 33.44 | O11: 38.12 | P11: 66.32 | Q11: 75.6 | R11: 45.64 | S11: 52.03 | T11: 28.96 | U11: 33.01 | V11: 7.08 | W11: 8.07
A12: Miniflex | B12: Mi | C12: 1 | D12: 1 | E12: Mi11Y | H12: > 300km and ≤ 600km | I12: < 500V | J12: 228.14 | K12: 260.08 | L12: 69.12 | M12: 78.8 | N12: 37.53 | O12: 42.78 | P12: 74.43 | Q12: 84.85 | R12: 51.23 | S12: 58.4 | T12: 32.5 | U12: 37.05 | V12: 18.91 | W12: 21.56
A13: Miniflex | B13: Mi | C13: 1 | D13: 2 | E13: Mi12Y | I13: ≥ 500V & < 66kV | J13: 224.96 | K13: 256.45 | L13: 68.15 | M13: 77.69 | N13: 37.01 | O13: 42.19 | P13: 73.39 | Q13: 83.66 | R13: 50.51 | S13: 57.58 | T13: 32.04 | U13: 36.53 | V13: 17.34 | W13: 19.77
A14: Miniflex | B14: Mi | C14: 1 | D14: 3 | E14: Mi13Y | I14: ≥ 66kV & ≤ 132kV | J14: 217.81 | K14: 248.3 | L14: 65.98 | M14: 75.22 | N14: 35.82 | O14: 40.83 | P14: 71.05 | Q14: 81 | R14: 48.9 | S14: 55.75 | T14: 31.01 | U14: 35.35 | V14: 9.76 | W14: 11.13
A15: Miniflex | B15: Mi | C15: 1 | D15: 4 | E15: Mi14Y | I15: > 132kV* | J15: 205.31 | K15: 234.05 | L15: 62.2 | M15: 70.91 | N15: 33.77 | O15: 38.5 | P15: 66.96 | Q15: 76.33 | R15: 46.1 | S15: 52.55 | T15: 29.24 | U15: 33.33 | V15: 7.15 | W15: 8.15
A16: Miniflex | B16: Mi | C16: 2 | D16: 1 | E16: Mi21Y | H16: > 600km and ≤ 900km | I16: < 500V | J16: 230.42 | K16: 262.68 | L16: 69.8 | M16: 79.57 | N16: 37.9 | O16: 43.21 | P16: 75.16 | Q16: 85.68 | R16: 51.73 | S16: 58.97 | T16: 32.82 | U16: 37.41 | V16: 19 | W16: 21.66
A17: Miniflex | B17: Mi | C17: 2 | D17: 2 | E17: Mi22Y | I17: ≥ 500V & < 66kV | J17: 227.22 | K17: 259.03 | L17: 68.83 | M17: 78.47 | N17: 37.38 | O17: 42.61 | P17: 74.13 | Q17: 84.51 | R17: 51 | S17: 58.14 | T17: 32.36 | U17: 36.89 | V17: 17.39 | W17: 19.82
A18: Miniflex | B18: Mi | C18: 2 | D18: 3 | E18: Mi23Y | I18: ≥ 66kV & ≤ 132kV | J18: 220.03 | K18: 250.83 | L18: 66.65 | M18: 75.98 | N18: 36.19 | O18: 41.26 | P18: 71.76 | Q18: 81.81 | R18: 49.39 | S18: 56.3 | T18: 31.33 | U18: 35.72 | V18: 9.8 | W18: 11.17
A19: Miniflex | B19: Mi | C19: 2 | D19: 4 | E19: Mi24Y | I19: > 132kV* | J19: 207.38 | K19: 236.41 | L19: 62.83 | M19: 71.63 | N19: 34.11 | O19: 38.89 | P19: 67.66 | Q19: 77.13 | R19: 46.56 | S19: 53.08 | T19: 29.54 | U19: 33.68 | V19: 7.25 | W19: 8.27
A20: Miniflex | B20: Mi | C20: 3 | D20: 1 | E20: Mi31Y | H20: > 900km | I20: < 500V | J20: 232.73 | K20: 265.31 | L20: 70.51 | M20: 80.38 | N20: 38.29 | O20: 43.65 | P20: 75.92 | Q20: 86.55 | R20: 52.25 | S20: 59.57 | T20: 33.15 | U20: 37.79 | V20: 19.02 | W20: 21.68
A21: Miniflex | B21: Mi | C21: 3 | D21: 2 | E21: Mi32Y | I21: ≥ 500V & < 66kV | J21: 229.49 | K21: 261.62 | L21: 69.51 | M21: 79.24 | N21: 37.75 | O21: 43.04 | P21: 74.85 | Q21: 85.33 | R21: 51.51 | S21: 58.72 | T21: 32.68 | U21: 37.26 | V21: 17.46 | W21: 19.9
A22: Miniflex | B22: Mi | C22: 3 | D22: 3 | E22: Mi33Y | I22: ≥ 66kV & ≤ 132kV | J22: 222.24 | K22: 253.35 | L22: 67.32 | M22: 76.74 | N22: 36.56 | O22: 41.68 | P22: 72.49 | Q22: 82.64 | R22: 49.89 | S22: 56.87 | T22: 31.65 | U22: 36.08 | V22: 9.84 | W22: 11.22
A23: Miniflex | B23: Mi | C23: 3 | D23: 4 | E23: Mi34Y | I23: > 132kV* | J23: 209.42 | K23: 238.74 | L23: 63.47 | M23: 72.36 | N23: 34.49 | O23: 39.32 | P23: 68.35 | Q23: 77.92 | R23: 47.05 | S23: 53.64 | T23: 29.87 | U23: 34.05 | V23: 7.3 | W23: 8.32
I24: ='Miniflex inc'!I24 -> * >132 kV or Transmission connected
H26: Customer categories | J26: Service charge [R/account/day] | L26: Administration charge [R/POD/day]
A28: Tariff | B28: Tariff nameBillcode | C28: Tx zone | D28: Voltage | E28: Billcode | K28: VAT incl | M28: VAT incl | P28: Reliability service charge [c/kWh] | R28: Network demand charge [c/kWh] [Peak & Standard] | U28: Urban low voltage subsidy charge [R/kVA/m]
A29: Miniflex | B29: Mi | C29: 0 | D29: 1 | E29: Mi01Y | H29: ≤ 100 kVA | J29: 10.21 | K29: 11.64 | L29: 2.24 | M29: 2.55 | O29: Voltage | Q29: VAT incl | S29: VAT incl | W29: VAT incl
A30: Miniflex | B30: Mi | C30: 0 | D30: 1 | E30: Mi01Y | H30: > 100 kVA & ≤ 500 kVA | J30: 46.66 | K30: 53.19 | L30: 13.08 | M30: 14.91 | O30: < 500V | P30: 0.29 | Q30: 0.33 | R30: 11.67 | S30: 13.3 | U30: < 500V | V30: 0 | W30: 0
A31: Miniflex | B31: Mi | C31: 0 | D31: 1 | E31: Mi01Y | H31: > 500 kVA & ≤ 1 MVA | J31: 143.59 | K31: 163.69 | L31: 26 | M31: 29.64 | O31: ≥ 500V & < 66kV | P31: 0.28 | Q31: 0.32 | R31: 4.9 | S31: 5.59 | U31: ≥ 500V & < 66kV | V31: 0 | W31: 0
A32: Miniflex | B32: Mi | C32: 0 | D32: 1 | E32: Mi01Y | H32: > 1 MVA | J32: 143.59 | K32: 163.69 | L32: 64.72 | M32: 73.78 | O32: ≥ 66kV & ≤ 132kV | P32: 0.27 | Q32: 0.31 | R32: 1.7 | S32: 1.94 | U32: ≥ 66kV & ≤ 132kV | V32: 10.09 | W32: 11.5
A33: Miniflex | B33: Mi | C33: 0 | D33: 1 | E33: Mi01Y | H33: Key customers | J33: 2813.83 | K33: 3207.77 | L33: 89.86 | M33: 102.44 | O33: > 132kV* | P33: 0.25 | Q33: 0.29 | R33: 0 | S33: 0 | U33: > 132kV* | V33: 10.09 | W33: 11.5
O34: * 132 kV or Transmission connected | U34: * 132 kV or Transmission connected
H36: Electrification and rural network subsidy charge [c/kWh] | L36: Reactive energy charge [c/kVArh]
H38: All seasons | L38: High season | N38: Low season
A39: Tariff | B39: Tariff nameBillcode | C39: Tx zone | D39: Voltage | E39: Billcode | I39: VAT incl | M39: VAT incl | O39: VAT incl
A40: Miniflex | B40: Mi | C40: 0 | D40: 1 | E40: Mi01Y | H40: 5.59 | I40: 6.37 | L40: 4.42 | M40: 5.04 | N40: 0 | O40: 0
A42: Miniflex | B42: Mi | C42: 0 | D42: 1 | E42: Mi01Y
A43: Miniflex | B43: Mi | C43: 1 | D43: 2 | E43: Mi12Y
A44: Miniflex | B44: Mi | C44: 2 | D44: 3 | E44: Mi23Y
A45: Miniflex | B45: Mi | C45: 3 | D45: 4 | E45: Mi34Y

Sheet Nightsave Small inc
A2: Non-municipal | G2: Nightsave Urban Small tariff | R2: Non-local authority | AG2: check value
J4: Active energy charge [c/kWh] | N4: Energy demand charge [R/kVA/m] | R4: Transmission network charges [R/kVA/m]
H5: Transmission zone | J5: High demand season [Jun - Aug] | L5: Low demand season [Sep - May] | N5: High demand season [Jun - Aug] | P5: Low demand season [Sep - May]
I6: Voltage
A7: Tariff | B7: Tariff nameBillcode | C7: Tx zone | D7: Voltage | E7: Billcode | K7: VAT incl | M7: VAT incl | O7: VAT incl | Q7: VAT incl | S7: VAT incl
A8: Nightsave Small | B8: NS | C8: 0 | D8: 1 | E8: NS01N | H8: ≤ 300km | I8: < 500V | J8: 54.56 | K8: 62.2 | L8: 42.42 | M8: 48.36 | N8: 116.59 | O8: 132.91 | P8: 15.02 | Q8: 17.12 | R8: 6.32 | S8: 7.2
A9: Nightsave Small | B9: NS | C9: 0 | D9: 2 | E9: NS02N | I9: ≥ 500V & < 66kV | J9: 51.67 | K9: 58.9 | L9: 40.33 | M9: 45.98 | N9: 112.84 | O9: 128.64 | P9: 14.52 | Q9: 16.55 | R9: 5.78 | S9: 6.59
A10: Nightsave Small | B10: NS | C10: 0 | D10: 3 | E10: NS03N | I10: ≥ 66kV & ≤ 132kV | J10: 51.29 | K10: 58.47 | L10: 39.84 | M10: 45.42 | N10: 108.69 | O10: 123.91 | P10: 13.98 | Q10: 15.94 | R10: 5.63 | S10: 6.42
A11: Nightsave Small | B11: NS | C11: 0 | D11: 4 | E11: NS04N | I11: > 132kV* | J11: 47.98 | K11: 54.7 | L11: 37.31 | M11: 42.53 | N11: 104.89 | O11: 119.57 | P11: 13.49 | Q11: 15.38 | R11: 7.11 | S11: 8.11
A12: Nightsave Small | B12: NS | C12: 1 | D12: 1 | E12: NS11N | H12: > 300km and ≤ 600km | I12: < 500V | J12: 55.29 | K12: 63.03 | L12: 42.88 | M12: 48.88 | N12: 117.78 | O12: 134.27 | P12: 15.15 | Q12: 17.27 | R12: 6.37 | S12: 7.26
A13: Nightsave Small | B13: NS | C13: 1 | D13: 2 | E13: NS12N | I13: ≥ 500V & < 66kV | J13: 52.75 | K13: 60.14 | L13: 41.15 | M13: 46.91 | N13: 113.98 | O13: 129.94 | P13: 14.66 | Q13: 16.71 | R13: 5.83 | S13: 6.65
A14: Nightsave Small | B14: NS | C14: 1 | D14: 3 | E14: NS13N | I14: ≥ 66kV & ≤ 132kV | J14: 52.36 | K14: 59.69 | L14: 40.65 | M14: 46.34 | N14: 109.81 | O14: 125.18 | P14: 14.13 | Q14: 16.11 | R14: 5.67 | S14: 6.46
A15: Nightsave Small | B15: NS | C15: 1 | D15: 4 | E15: NS14N | I15: > 132kV* | J15: 48.98 | K15: 55.84 | L15: 38.07 | M15: 43.4 | N15: 105.94 | O15: 120.77 | P15: 13.63 | Q15: 15.54 | R15: 7.18 | S15: 8.19
A16: Nightsave Small | B16: NS | C16: 2 | D16: 1 | E16: NS21N | H16: > 600km and ≤ 900km | I16: < 500V | J16: 55.81 | K16: 63.62 | L16: 43.3 | M16: 49.36 | N16: 118.94 | O16: 135.59 | P16: 15.29 | Q16: 17.43 | R16: 6.45 | S16: 7.35
A17: Nightsave Small | B17: NS | C17: 2 | D17: 2 | E17: NS22N | I17: ≥ 500V & < 66kV | J17: 53.28 | K17: 60.74 | L17: 41.57 | M17: 47.39 | N17: 115.14 | O17: 131.26 | P17: 14.81 | Q17: 16.88 | R17: 5.88 | S17: 6.7
A18: Nightsave Small | B18: NS | C18: 2 | D18: 3 | E18: NS23N | I18: ≥ 66kV & ≤ 132kV | J18: 52.88 | K18: 60.28 | L18: 41.06 | M18: 46.81 | N18: 110.91 | O18: 126.44 | P18: 14.27 | Q18: 16.27 | R18: 5.71 | S18: 6.51
A19: Nightsave Small | B19: NS | C19: 2 | D19: 4 | E19: NS24N | I19: > 132kV* | J19: 49.46 | K19: 56.38 | L19: 38.46 | M19: 43.84 | N19: 106.98 | O19: 121.96 | P19: 13.76 | Q19: 15.69 | R19: 7.28 | S19: 8.3
A20: Nightsave Small | B20: NS | C20: 3 | D20: 1 | E20: NS31N | H20: > 900km | I20: < 500V | J20: 56.4 | K20: 64.3 | L20: 43.74 | M20: 49.86 | N20: 120.15 | O20: 136.97 | P20: 15.45 | Q20: 17.61 | R20: 6.47 | S20: 7.38
A21: Nightsave Small | B21: NS | C21: 3 | D21: 2 | E21: NS32N | I21: ≥ 500V & < 66kV | J21: 53.79 | K21: 61.32 | L21: 41.97 | M21: 47.85 | N21: 116.27 | O21: 132.55 | P21: 14.96 | Q21: 17.05 | R21: 5.95 | S21: 6.78
A22: Nightsave Small | B22: NS | C22: 3 | D22: 3 | E22: NS33N | I22: ≥ 66kV & ≤ 132kV | J22: 53.42 | K22: 60.9 | L22: 41.47 | M22: 47.28 | N22: 112.04 | O22: 127.73 | P22: 14.42 | Q22: 16.44 | R22: 5.75 | S22: 6.56
A23: Nightsave Small | B23: NS | C23: 3 | D23: 4 | E23: NS34N | I23: > 132kV* | J23: 49.99 | K23: 56.99 | L23: 38.88 | M23: 44.32 | N23: 108.1 | O23: 123.23 | P23: 13.92 | Q23: 15.87 | R23: 7.33 | S23: 8.36
I24: ='Miniflex Munic inc '!I24 -> * >132 kV or Transmission connected
H26: Distribution network charges
J27: Network access charge [R/kVA/m] | L27: Network demand charge [R/kVA/m] | N27: Urban low voltage subsidy charge [R/kVA/m]
R28: Reliability service charge [c/kWh]
A29: Tariff | B29: Tariff nameBillcode | C29: Tx zone | D29: Voltage | E29: Billcode | H29: Voltage | K29: VAT incl | M29: VAT incl | O29: VAT incl | Q29: Voltage | S29: VAT incl
A30: Nightsave Small | B30: NS | C30: 0 | D30: 1 | E30: NS01N | H30: < 500V | J30: 12.56 | K30: 14.32 | L30: 23.81 | M30: 27.14 | N30: 0 | O30: 0 | Q30: < 500V | R30: 0.29 | S30: 0.33
A31: Nightsave Small | B31: NS | C31: 0 | D31: 2 | E31: NS02N | H31: ≥ 500V & < 66kV | J31: 11.52 | K31: 13.13 | L31: 21.85 | M31: 24.91 | N31: 0 | O31: 0 | Q31: ≥ 500V & < 66kV | R31: 0.28 | S31: 0.32
A32: Nightsave Small | B32: NS | C32: 0 | D32: 3 | E32: NS03N | H32: ≥ 66kV & ≤ 132kV | J32: 4.11 | K32: 4.69 | L32: 7.61 | M32: 8.68 | N32: 10.14 | O32: 11.56 | Q32: ≥ 66kV & ≤ 132kV | R32: 0.27 | S32: 0.31
A33: Nightsave Small | B33: NS | C33: 0 | D33: 4 | E33: NS04N | H33: > 132kV / Transmission connected | J33: 0 | K33: 0 | L33: 0 | M33: 0 | N33: 10.14 | O33: 11.56 | Q33: > 132kV* | R33: 0.25 | S33: 0.29
Q34: =I24 -> * >132 kV or Transmission connected
H36: Customer categories | I36: Service charge [R/account/day] | K36: Administration charge [R/POD/day]
A38: Tariff | B38: Tariff nameBillcode | C38: Tx zone | D38: Voltage | E38: Billcode | J38: VAT incl | L38: VAT incl
A39: Nightsave Small | B39: NS | C39: 0 | D39: 1 | E39: NS01N | H39: ≤ 100 kVA | I39: 10.25 | J39: 11.69 | K39: 2.25 | L39: 2.57
A40: Nightsave Small | B40: NS | C40: 0 | D40: 1 | E40: NS01N | H40: > 100 kVA & ≤ 500 kVA | I40: 46.85 | J40: 53.41 | K40: 13.13 | L40: 14.97
A41: Nightsave Small | B41: NS | C41: 0 | D41: 1 | E41: NS01N | H41: > 500 kVA & ≤ 1 MVA | I41: 144.18 | J41: 164.37 | K41: 26.1 | L41: 29.75
A42: Nightsave Small | B42: NS | C42: 0 | D42: 1 | E42: NS01N | H42: Key customers | I42: ='Miniflex inc'!J33 -> 2825.34 | J42: ='Miniflex inc'!K33 -> 3220.89 | K42: ='Miniflex inc'!L33 -> 90.23 | L42: ='Miniflex inc'!M33 -> 102.86
H44: Electrification and rural network subsidy charge [c/kWh] | J44: Affordability subsidy charge [c/kWh] Only payable by non-local authority tariffs
J46: All seasons
A47: Tariff | B47: Tariff nameBillcode | C47: Tx zone | D47: Voltage | E47: Billcode | I47: VAT incl | K47: VAT incl
A48: Nightsave Small | B48: NS | C48: 0 | D48: 1 | E48: NS01N | H48: 5.62 | I48: 6.41 | J48: 2.24 | K48: 2.55

Sheet Nightsave Small Munic inc
A2: Municiple | G2: Nightsave Urban Small tariff | R2: Local authority | AG2: check value
J4: Active energy charge [c/kWh] | N4: Energy demand charge [R/kVA/m] | R4: Transmission network charges [R/kVA/m]
H5: Transmission zone | J5: High demand season [Jun - Aug] | L5: Low demand season [Sep - May] | N5: High demand season [Jun - Aug] | P5: Low demand season [Sep - May]
I6: Voltage
A7: Tariff | B7: Tariff nameBillcode | C7: Tx zone | D7: Voltage | E7: Billcode | K7: VAT incl | M7: VAT incl | O7: VAT incl | Q7: VAT incl | S7: VAT incl
A8: Nightsave Small | B8: NS | C8: 0 | D8: 1 | E8: NS01Y | H8: ≤ 300km | I8: < 500V | J8: 55.89 | K8: 63.71 | L8: 43.46 | M8: 49.54 | N8: 117.19 | O8: 133.6 | P8: 15.11 | Q8: 17.23 | R8: 6.3 | S8: 7.18
A9: Nightsave Small | B9: NS | C9: 0 | D9: 2 | E9: NS02Y | I9: ≥ 500V & < 66kV | J9: 52.93 | K9: 60.34 | L9: 41.31 | M9: 47.09 | N9: 113.43 | O9: 129.31 | P9: 14.59 | Q9: 16.63 | R9: 5.75 | S9: 6.56
A10: Nightsave Small | B10: NS | C10: 0 | D10: 3 | E10: NS03Y | I10: ≥ 66kV & ≤ 132kV | J10: 52.54 | K10: 59.9 | L10: 40.8 | M10: 46.51 | N10: 109.26 | O10: 124.56 | P10: 14.05 | Q10: 16.02 | R10: 5.6 | S10: 6.38
A11: Nightsave Small | B11: NS | C11: 0 | D11: 4 | E11: NS04Y | I11: > 132kV* | J11: 49.15 | K11: 56.03 | L11: 38.22 | M11: 43.57 | N11: 105.43 | O11: 120.19 | P11: 13.56 | Q11: 15.46 | R11: 7.08 | S11: 8.07
A12: Nightsave Small | B12: NS | C12: 1 | D12: 1 | E12: NS11Y | H12: > 300km and ≤ 600km | I12: < 500V | J12: 56.63 | K12: 64.56 | L12: 43.93 | M12: 50.08 | N12: 118.4 | O12: 134.98 | P12: 15.23 | Q12: 17.36 | R12: 6.34 | S12: 7.23
A13: Nightsave Small | B13: NS | C13: 1 | D13: 2 | E13: NS12Y | I13: ≥ 500V & < 66kV | J13: 54.03 | K13: 61.59 | L13: 42.15 | M13: 48.05 | N13: 114.58 | O13: 130.62 | P13: 14.73 | Q13: 16.79 | R13: 5.81 | S13: 6.62
A14: Nightsave Small | B14: NS | C14: 1 | D14: 3 | E14: NS13Y | I14: ≥ 66kV & ≤ 132kV | J14: 53.63 | K14: 61.14 | L14: 41.65 | M14: 47.48 | N14: 110.39 | O14: 125.84 | P14: 14.2 | Q14: 16.19 | R14: 5.64 | S14: 6.43
A15: Nightsave Small | B15: NS | C15: 1 | D15: 4 | E15: NS14Y | I15: > 132kV* | J15: 50.17 | K15: 57.19 | L15: 39 | M15: 44.46 | N15: 106.49 | O15: 121.4 | P15: 13.7 | Q15: 15.62 | R15: 7.15 | S15: 8.15
A16: Nightsave Small | B16: NS | C16: 2 | D16: 1 | E16: NS21Y | H16: > 600km and ≤ 900km | I16: < 500V | J16: 57.17 | K16: 65.17 | L16: 44.35 | M16: 50.56 | N16: 119.57 | O16: 136.31 | P16: 15.37 | Q16: 17.52 | R16: 6.42 | S16: 7.32
A17: Nightsave Small | B17: NS | C17: 2 | D17: 2 | E17: NS22Y | I17: ≥ 500V & < 66kV | J17: 54.57 | K17: 62.21 | L17: 42.59 | M17: 48.55 | N17: 115.73 | O17: 131.93 | P17: 14.88 | Q17: 16.96 | R17: 5.86 | S17: 6.68
A18: Nightsave Small | B18: NS | C18: 2 | D18: 3 | E18: NS23Y | I18: ≥ 66kV & ≤ 132kV | J18: 54.17 | K18: 61.75 | L18: 42.07 | M18: 47.96 | N18: 111.49 | O18: 127.1 | P18: 14.34 | Q18: 16.35 | R18: 5.69 | S18: 6.49
A19: Nightsave Small | B19: NS | C19: 2 | D19: 4 | E19: NS24Y | I19: > 132kV* | J19: 50.67 | K19: 57.76 | L19: 39.39 | M19: 44.9 | N19: 107.54 | O19: 122.6 | P19: 13.83 | Q19: 15.77 | R19: 7.25 | S19: 8.27
A20: Nightsave Small | B20: NS | C20: 3 | D20: 1 | E20: NS31Y | H20: > 900km | I20: < 500V | J20: 57.77 | K20: 65.86 | L20: 44.8 | M20: 51.07 | N20: 120.78 | O20: 137.69 | P20: 15.53 | Q20: 17.7 | R20: 6.45 | S20: 7.35
A21: Nightsave Small | B21: NS | C21: 3 | D21: 2 | E21: NS32Y | I21: ≥ 500V & < 66kV | J21: 55.11 | K21: 62.83 | L21: 43 | M21: 49.02 | N21: 116.88 | O21: 133.24 | P21: 15.03 | Q21: 17.13 | R21: 5.92 | S21: 6.75
A22: Nightsave Small | B22: NS | C22: 3 | D22: 3 | E22: NS33Y | I22: ≥ 66kV & ≤ 132kV | J22: 54.71 | K22: 62.37 | L22: 42.48 | M22: 48.43 | N22: 112.62 | O22: 128.39 | P22: 14.49 | Q22: 16.52 | R22: 5.73 | S22: 6.53
A23: Nightsave Small | B23: NS | C23: 3 | D23: 4 | E23: NS34Y | I23: > 132kV* | J23: 51.22 | K23: 58.39 | L23: 39.83 | M23: 45.41 | N23: 108.67 | O23: 123.88 | P23: 13.99 | Q23: 15.95 | R23: 7.3 | S23: 8.32
I24: ='Nightsave Small inc'!I24 -> * >132 kV or Transmission connected
H26: Distribution network charges
J27: Network access charge [R/kVA/m] | L27: Network demand charge [R/kVA/m] | N27: Urban low voltage subsidy charge [R/kVA/m]
R28: Reliability service charge [c/kWh]
A29: Tariff | B29: Tariff nameBillcode | C29: Tx zone | D29: Voltage | E29: Billcode | H29: Voltage | K29: VAT incl | M29: VAT incl | O29: VAT incl | Q29: Voltage | S29: VAT incl
A30: Nightsave Small | B30: NS | C30: 0 | D30: 1 | E30: NS01Y | H30: < 500V | J30: 12.57 | K30: 14.33 | L30: 23.83 | M30: 27.17 | N30: 0 | O30: 0 | Q30: < 500V | R30: 0.29 | S30: 0.33
A31: Nightsave Small | B31: NS | C31: 0 | D31: 2 | E31: NS02Y | H31: ≥ 500V & < 66kV | J31: 11.53 | K31: 13.14 | L31: 21.86 | M31: 24.92 | N31: 0 | O31: 0 | Q31: ≥ 500V & < 66kV | R31: 0.28 | S31: 0.32
A32: Nightsave Small | B32: NS | C32: 0 | D32: 3 | E32: NS03Y | H32: ≥ 66kV & ≤ 132kV | J32: 4.12 | K32: 4.7 | L32: 7.62 | M32: 8.69 | N32: 10.09 | O32: 11.5 | Q32: ≥ 66kV & ≤ 132kV | R32: 0.27 | S32: 0.31
A33: Nightsave Small | B33: NS | C33: 0 | D33: 4 | E33: NS04Y | H33: > 132kV / Transmission connected | J33: 0 | K33: 0 | L33: 0 | M33: 0 | N33: 10.09 | O33: 11.5 | Q33: > 132kV* | R33: 0.25 | S33: 0.29
Q34: * 132 kV or Transmission connected
H36: Customer categories | I36: Service charge [R/account/day] | K36: Administration charge [R/POD/day]
A38: Tariff | B38: Tariff nameBillcode | C38: Tx zone | D38: Voltage | E38: Billcode | J38: VAT incl | L38: VAT incl
A39: Nightsave Small | B39: NS | C39: 0 | D39: 1 | E39: NS01Y | H39: ≤ 100 kVA | I39: 10.21 | J39: 11.64 | K39: 2.24 | L39: 2.55
A40: Nightsave Small | B40: NS | C40: 0 | D40: 1 | E40: NS01Y | H40: > 100 kVA & ≤ 500 kVA | I40: 46.66 | J40: 53.19 | K40: 13.08 | L40: 14.91
A41: Nightsave Small | B41: NS | C41: 0 | D41: 1 | E41: NS01Y | H41: > 500 kVA & ≤ 1 MVA | I41: 143.59 | J41: 163.69 | K41: 26 | L41: 29.64
A42: Nightsave Small | B42: NS | C42: 0 | D42: 1 | E42: NS01Y | H42: Key customers | I42: ='Miniflex Munic inc '!J33 -> 2813.83 | J42: ='Miniflex Munic inc '!K33 -> 3207.77 | K42: ='Miniflex Munic inc '!L33 -> 89.86 | L42: ='Miniflex Munic inc '!M33 -> 102.44
H44: Electrification and rural network subsidy charge [c/kWh]
A47: Tariff | B47: Tariff nameBillcode | C47: Tx zone | D47: Voltage | E47: Billcode | I47: VAT incl
A48: Nightsave Small | B48: NS | C48: 0 | D48: 1 | E48: NS01Y | H48: 5.59 | I48: 6.37

Sheet Ruraflex inc
A2: Non-municipal | G2: Ruraflex tariff | T2: Non-local authority | AG2: check value
J4: Active energy charge [c/kWh] | V4: Network access charges [R/kVA/m]
H5: Transmission zone | J5: High demand season [Jun - Aug] | P5: Low demand season [Sep - May]
I6: Voltage | J6: Peak | L6: Standard | N6: Off Peak | P6: Peak | R6: Standard | T6: Off Peak
A7: Tariff | B7: Tariff nameBillcode | C7: Tx zone | D7: Voltage | E7: Billcode | K7: VAT incl | M7: VAT incl | O7: VAT incl | Q7: VAT incl | S7: VAT incl | U7: VAT incl | W7: VAT incl
A8: Ruraflex | B8: Ru | C8: 0 | D8: 1 | E8: Ru01N | H8: ≤ 300km | I8: < 500V | J8: 228.74 | K8: 260.76 | L8: 69.3 | M8: 79 | N8: 37.63 | O8: 42.9 | P8: 74.62 | Q8: 85.07 | R8: 51.35 | S8: 58.54 | T8: 32.58 | U8: 37.14 | V8: 13.2 | W8: 15.05
A9: Ruraflex | B9: Ru | C9: 0 | D9: 2 | E9: Ru02N | I9: ≥ 500V & ≤ 22kV | J9: 226.48 | K9: 258.19 | L9: 68.61 | M9: 78.22 | N9: 37.25 | O9: 42.47 | P9: 73.88 | Q9: 84.22 | R9: 50.84 | S9: 57.96 | T9: 32.25 | U9: 36.77 | V9: 12.1 | W9: 13.79
A10: Ruraflex | B10: Ru | E10: RuN | J10: 0 | L10: 0 | N10: 0 | P10: 0 | R10: 0 | T10: 0 | V10: 0
A11: Ruraflex | B11: Ru | E11: RuN | J11: 0 | L11: 0 | N11: 0 | P11: 0 | R11: 0 | T11: 0 | V11: 0
A12: Ruraflex | B12: Ru | C12: 1 | D12: 1 | E12: Ru11N | H12: > 300km and ≤ 600km | I12: < 500V | J12: 231.03 | K12: 263.37 | L12: 69.99 | M12: 79.79 | N12: 38.01 | O12: 43.33 | P12: 75.36 | Q12: 85.91 | R12: 51.87 | S12: 59.13 | T12: 32.91 | U12: 37.52 | V12: 13.25 | W12: 15.11
A13: Ruraflex | B13: Ru | C13: 1 | D13: 2 | E13: Ru12N | I13: ≥ 500V & ≤ 22kV | J13: 228.73 | K13: 260.75 | L13: 69.29 | M13: 78.99 | N13: 37.63 | O13: 42.9 | P13: 74.62 | Q13: 85.07 | R13: 51.34 | S13: 58.53 | T13: 32.58 | U13: 37.14 | V13: 12.18 | W13: 13.89
A14: Ruraflex | B14: Ru | E14: RuN | J14: 0 | L14: 0 | N14: 0 | P14: 0 | R14: 0 | T14: 0 | V14: 0
A15: Ruraflex | B15: Ru | E15: RuN | J15: 0 | L15: 0 | N15: 0 | P15: 0 | R15: 0 | T15: 0 | V15: 0
A16: Ruraflex | B16: Ru | C16: 2 | D16: 1 | E16: Ru21N | H16: > 600km and ≤ 900km | I16: < 500V | J16: 233.34 | K16: 266.01 | L16: 70.69 | M16: 80.59 | N16: 38.38 | O16: 43.75 | P16: 76.12 | Q16: 86.78 | R16: 52.38 | S16: 59.71 | T16: 33.24 | U16: 37.89 | V16: 13.32 | W16: 15.18
A17: Ruraflex | B17: Ru | C17: 2 | D17: 2 | E17: Ru22N | I17: ≥ 500V & ≤ 22kV | J17: 231.02 | K17: 263.36 | L17: 69.98 | M17: 79.78 | N17: 38.01 | O17: 43.33 | P17: 75.36 | Q17: 85.91 | R17: 51.87 | S17: 59.13 | T17: 32.91 | U17: 37.52 | V17: 12.23 | W17: 13.94
A18: Ruraflex | B18: Ru | E18: RuN | J18: 0 | L18: 0 | N18: 0 | P18: 0 | R18: 0 | T18: 0 | V18: 0
A19: Ruraflex | B19: Ru | E19: RuN | J19: 0 | L19: 0 | N19: 0 | P19: 0 | R19: 0 | T19: 0 | V19: 0
A20: Ruraflex | B20: Ru | C20: 3 | D20: 1 | E20: Ru31N | H20: > 900km | I20: < 500V | J20: 235.67 | K20: 268.66 | L20: 71.4 | M20: 81.4 | N20: 38.76 | O20: 44.19 | P20: 76.87 | Q20: 87.63 | R20: 52.91 | S20: 60.32 | T20: 33.57 | U20: 38.27 | V20: 13.37 | W20: 15.24
A21: Ruraflex | B21: Ru | C21: 3 | D21: 2 | E21: Ru32N | I21: ≥ 500V & ≤ 22kV | J21: 233.33 | K21: 266 | L21: 70.69 | M21: 80.59 | N21: 38.38 | O21: 43.75 | P21: 76.12 | Q21: 86.78 | R21: 52.38 | S21: 59.71 | T21: 33.24 | U21: 37.89 | V21: 12.24 | W21: 13.95
N22: 0
N23: 0
H26: Customer categories | J26: Service charge [R/account/day] | L26: Administration charge [R/POD/day] | Q26: Reliability service charge [c/kWh] | S26: Network demand charge [c/kWh] [All time of use periods]
O27: Voltage | R27: VAT incl | T27: VAT incl
A28: Tariff | B28: Tariff nameBillcode | C28: Tx zone | D28: Voltage | E28: Billcode | K28: VAT incl | M28: VAT incl | O28: < 500V | Q28: 0.29 | R28: 0.33 | S28: 18.8 | T28: 21.43
A29: Ruraflex | B29: Ru | C29: 0 | D29: 1 | E29: Ru01N | H29: ≤ 100 kVA | J29: 12.99 | K29: 14.81 | L29: 3.69 | M29: 4.21 | O29: ≥ 500V & < 22kV | Q29: 0.29 | R29: 0.33 | S29: 16.48 | T29: 18.79
A30: Ruraflex | B30: Ru | C30: 0 | D30: 1 | E30: Ru01N | H30: > 100 kVA & ≤ 500 kVA | J30: 44.32 | K30: 50.52 | L30: 20.54 | M30: 23.42
A31: Ruraflex | B31: Ru | C31: 0 | D31: 1 | E31: Ru01N | H31: > 500 kVA & ≤ 1 MVA | J31: 136.33 | K31: 155.42 | L31: 31.53 | M31: 35.94 | O31: Reactive energy charge [c/kVArh]
A32: Ruraflex | B32: Ru | C32: 0 | D32: 1 | E32: Ru01N | H32: > 1 MVA | J32: 136.33 | K32: 155.42 | L32: 58.51 | M32: 66.7 | O32: High season | Q32: Low season
A33: Ruraflex | B33: Ru | C33: 0 | D33: 1 | E33: Ru01N | H33: Key customers | J33: 2671.9 | K33: 3045.97 | L33: 58.51 | M33: 66.7 | P33: VAT incl | R33: VAT incl
O34: 6.35 | P34: 7.24 | Q34: 0 | R34: 0

Sheet Ruraflex Munic inc
A2: Municiple | G2: Ruraflex tariff | T2: Local authority | AG2: check value
J4: Active energy charge [c/kWh] | V4: Network access charges [R/kVA/m]
H5: Transmission zone | J5: High demand season [Jun - Aug] | P5: Low demand season [Sep - May]
I6: Voltage | J6: Peak | L6: Standard | N6: Off Peak | P6: Peak | R6: Standard | T6: Off Peak
A7: Tariff | B7: Tariff nameBillcode | C7: Tx zone | D7: Voltage | E7: Billcode | K7: VAT incl | M7: VAT incl | O7: VAT incl | Q7: VAT incl | S7: VAT incl | U7: VAT incl | W7: VAT incl
A8: Ruraflex | B8: Ru | C8: 0 | D8: 1 | E8: Ru01Y | H8: ≤ 300km | I8: < 500V | J8: 234.32 | K8: 267.12 | L8: 70.98 | M8: 80.92 | N8: 38.55 | O8: 43.95 | P8: 76.44 | Q8: 87.14 | R8: 52.61 | S8: 59.98 | T8: 33.37 | U8: 38.04 | V8: 13.32 | W8: 15.18
A9: Ruraflex | B9: Ru | C9: 0 | D9: 2 | E9: Ru02Y | I9: ≥ 500V & ≤ 22kV | J9: 231.99 | K9: 264.47 | L9: 70.28 | M9: 80.12 | N9: 38.16 | O9: 43.5 | P9: 75.69 | Q9: 86.29 | R9: 52.07 | S9: 59.36 | T9: 33.03 | U9: 37.65 | V9: 12.22 | W9: 13.93
A10: Ruraflex | B10: Ru | E10: RuY | J10: 0 | L10: 0 | N10: 0 | P10: 0 | R10: 0 | T10: 0 | V10: 0
A11: Ruraflex | B11: Ru | E11: RuY | J11: 0 | L11: 0 | N11: 0 | P11: 0 | R11: 0 | T11: 0 | V11: 0
A12: Ruraflex | B12: Ru | C12: 1 | D12: 1 | E12: Ru11Y | H12: > 300km and ≤ 600km | I12: < 500V | J12: 236.66 | K12: 269.79 | L12: 71.7 | M12: 81.74 | N12: 38.92 | O12: 44.37 | P12: 77.2 | Q12: 88.01 | R12: 53.13 | S12: 60.57 | T12: 33.71 | U12: 38.43 | V12: 13.38 | W12: 15.25
A13: Ruraflex | B13: Ru | C13: 1 | D13: 2 | E13: Ru12Y | I13: ≥ 500V & ≤ 22kV | J13: 234.31 | K13: 267.11 | L13: 70.97 | M13: 80.91 | N13: 38.55 | O13: 43.95 | P13: 76.44 | Q13: 87.14 | R13: 52.6 | S13: 59.96 | T13: 33.37 | U13: 38.04 | V13: 12.3 | W13: 14.02
A14: Ruraflex | B14: Ru | E14: RuY | J14: 0 | L14: 0 | N14: 0 | P14: 0 | R14: 0 | T14: 0 | V14: 0
A15: Ruraflex | B15: Ru | E15: RuY | J15: 0 | L15: 0 | N15: 0 | P15: 0 | R15: 0 | T15: 0 | V15: 0
A16: Ruraflex | B16: Ru | C16: 2 | D16: 1 | E16: Ru21Y | H16: > 600km and ≤ 900km | I16: < 500V | J16: 239.03 | K16: 272.49 | L16: 72.4 | M16: 82.54 | N16: 39.32 | O16: 44.82 | P16: 77.97 | Q16: 88.89 | R16: 53.65 | S16: 61.16 | T16: 34.05 | U16: 38.82 | V16: 13.45 | W16: 15.33
A17: Ruraflex | B17: Ru | C17: 2 | D17: 2 | E17: Ru22Y | I17: ≥ 500V & ≤ 22kV | J17: 236.65 | K17: 269.78 | L17: 71.69 | M17: 81.73 | N17: 38.92 | O17: 44.37 | P17: 77.2 | Q17: 88.01 | R17: 53.13 | S17: 60.57 | T17: 33.71 | U17: 38.43 | V17: 12.35 | W17: 14.08
A18: Ruraflex | B18: Ru | E18: RuY | J18: 0 | L18: 0 | N18: 0 | P18: 0 | R18: 0 | T18: 0 | V18: 0
A19: Ruraflex | B19: Ru | E19: RuY | J19: 0 | L19: 0 | N19: 0 | P19: 0 | R19: 0 | T19: 0 | V19: 0
A20: Ruraflex | B20: Ru | C20: 3 | D20: 1 | E20: Ru31Y | H20: > 900km | I20: < 500V | J20: 241.42 | K20: 275.22 | L20: 73.14 | M20: 83.38 | N20: 39.7 | O20: 45.26 | P20: 78.74 | Q20: 89.76 | R20: 54.2 | S20: 61.79 | T20: 34.38 | U20: 39.19 | V20: 13.5 | W20: 15.39
A21: Ruraflex | B21: Ru | C21: 3 | D21: 2 | E21: Ru32Y | I21: ≥ 500V & ≤ 22kV | J21: 239.02 | K21: 272.48 | L21: 72.4 | M21: 82.54 | N21: 39.32 | O21: 44.82 | P21: 77.97 | Q21: 88.89 | R21: 53.65 | S21: 61.16 | T21: 34.05 | U21: 38.82 | V21: 12.36 | W21: 14.09
N22: 0
N23: 0
H26: Customer categories | J26: Service charge [R/account/day] | L26: Administration charge [R/POD/day] | Q26: Reliability service charge [c/kWh] | S26: Network demand charge [c/kWh] [All time of use periods]
O27: Voltage | R27: VAT incl | T27: VAT incl
A28: Tariff | B28: Tariff nameBillcode | C28: Tx zone | D28: Voltage | E28: Billcode | K28: VAT incl | M28: VAT incl | O28: < 500V | Q28: 0.29 | R28: 0.33 | S28: 19 | T28: 21.66
A29: Ruraflex | B29: Ru | C29: 0 | D29: 1 | E29: Ru01Y | H29: ≤ 100 kVA | J29: 12.95 | K29: 14.76 | L29: 3.68 | M29: 4.2 | O29: ≥ 500V & < 22kV | Q29: 0.29 | R29: 0.33 | S29: 16.64 | T29: 18.97
A30: Ruraflex | B30: Ru | C30: 0 | D30: 1 | E30: Ru01Y | H30: > 100 kVA & ≤ 500 kVA | J30: 44.14 | K30: 50.32 | L30: 20.46 | M30: 23.32
A31: Ruraflex | B31: Ru | C31: 0 | D31: 1 | E31: Ru01Y | H31: > 500 kVA & ≤ 1 MVA | J31: 135.78 | K31: 154.79 | L31: 31.4 | M31: 35.8 | O31: Reactive energy charge [c/kVArh]
A32: Ruraflex | B32: Ru | C32: 0 | D32: 1 | E32: Ru01Y | H32: > 1 MVA | J32: 135.78 | K32: 154.79 | L32: 58.28 | M32: 66.44 | O32: High season | Q32: Low season
A33: Ruraflex | B33: Ru | C33: 0 | D33: 1 | E33: Ru01Y | H33: Key customers | J33: 2661 | K33: 3033.54 | L33: 58.28 | M33: 66.44 | P33: VAT incl | R33: VAT incl
O34: 6.32 | P34: 7.2 | Q34: 0 | R34: 0

Sheet Genflex Rural inc (hidden)
A2: Non-municipal | G2: Genflex Rural tariff | T2: Non-local authority | AF2: =SUM(#REF!,#REF!,#REF!,#REF!,#REF!,#REF!,#REF!,#REF!,#REF!,#REF!,#REF!,#REF!) ->  | AG2: check value
J4: Active energy charge [c/kWh] | V4: Network access charges [R/kVA/m]
H5: Transmission zone | J5: High demand season [Jun - Aug] | P5: Low demand season [Sep - May]
I6: Voltage | J6: Peak | L6: Standard | N6: Off Peak | P6: Peak | R6: Standard | T6: Off Peak
A7: Tariff | B7: Tariff nameBillcode | C7: Tx zone | D7: Voltage | E7: Billcode | K7: VAT incl | M7: VAT incl | O7: VAT incl | Q7: VAT incl | S7: VAT incl | U7: VAT incl | W7: VAT incl
A8: Genflex rural | B8: GR | C8: 0 | D8: 1 | E8: =B8&C8&D8&IF($A$2="Non-municipal","N",IF($A$2="Municiple","Y","error")) -> GR01N | H8: ≤ 300km | I8: < 500V | J8: 228.74 | K8: =ROUND(J8 * (1 + VAT), 2) -> 260.76 | L8: 69.3 | M8: =ROUND(L8 * (1 + VAT), 2) -> 79 | N8: 37.63 | O8: =ROUND(N8 * (1 + VAT), 2) -> 42.9 | P8: 74.62 | Q8: =ROUND(P8 * (1 + VAT), 2) -> 85.07 | R8: 51.36 | S8: =ROUND(R8 * (1 + VAT), 2) -> 58.55 | T8: 32.58 | U8: =ROUND(T8 * (1 + VAT), 2) -> 37.14 | V8: 13.19 | W8: =ROUND(V8 * (1 + VAT), 2) -> 15.04
A9: Genflex rural | B9: GR | C9: 0 | D9: 2 | E9: =B9&C9&D9&IF($A$2="Non-municipal","N",IF($A$2="Municiple","Y","error")) -> GR02N | I9: ≥ 500V & ≤ 22kV | J9: 226.47 | K9: 258.18 | L9: 68.61 | M9: 78.22 | N9: 37.25 | O9: 42.47 | P9: 73.88 | Q9: 84.22 | R9: 50.84 | S9: 57.96 | T9: 32.25 | U9: 36.77 | V9: 10.08 | W9: 11.49
A10: Genflex rural | B10: GR | E10: GRN | J10: 0 | L10: 0 | N10: 0 | P10: 0 | R10: 0 | T10: 0 | V10: 0
A11: Genflex rural | B11: GR | E11: GRN | J11: 0 | L11: 0 | N11: 0 | P11: 0 | R11: 0 | T11: 0 | V11: 0
A12: Genflex rural | B12: GR | C12: 1 | D12: 1 | E12: GR11N | H12: > 300km and ≤ 600km | I12: < 500V | J12: 231.03 | K12: 263.37 | L12: 69.99 | M12: 79.79 | N12: 38 | O12: 43.32 | P12: 75.37 | Q12: 85.92 | R12: 51.87 | S12: 59.13 | T12: 32.91 | U12: 37.52 | V12: 13.95 | W12: 15.9
A13: Genflex rural | B13: GR | C13: 1 | D13: 2 | E13: GR12N | I13: ≥ 500V & ≤ 22kV | J13: 228.73 | K13: 260.75 | L13: 69.29 | M13: 78.99 | N13: 37.63 | O13: 42.9 | P13: 74.62 | Q13: 85.07 | R13: 51.35 | S13: 58.54 | T13: 32.58 | U13: 37.14 | V13: 10.16 | W13: 11.58
A14: Genflex rural | B14: GR | E14: GRN | J14: 0 | L14: 0 | N14: 0 | P14: 0 | R14: 0 | T14: 0 | V14: 0
A15: Genflex rural | B15: GR | E15: GRN | J15: 0 | L15: 0 | N15: 0 | P15: 0 | R15: 0 | T15: 0 | V15: 0
A16: Genflex rural | B16: GR | C16: 2 | D16: 1 | E16: GR21N | H16: > 600km and ≤ 900km | I16: < 500V | J16: 233.34 | K16: 266.01 | L16: 70.68 | M16: 80.58 | N16: 38.39 | O16: 43.76 | P16: 76.11 | Q16: 86.77 | R16: 52.38 | S16: 59.71 | T16: 33.24 | U16: 37.89 | V16: 14.03 | W16: 15.99
A17: Genflex rural | B17: GR | C17: 2 | D17: 2 | E17: GR22N | I17: ≥ 500V & ≤ 22kV | J17: 231.02 | K17: 263.36 | L17: 69.98 | M17: 79.78 | N17: 38 | O17: 43.32 | P17: 75.37 | Q17: 85.92 | R17: 51.87 | S17: 59.13 | T17: 32.91 | U17: 37.52 | V17: 10.24 | W17: 11.67
A18: Genflex rural | B18: GR | E18: GRN | J18: 0 | L18: 0 | N18: 0 | P18: 0 | R18: 0 | T18: 0 | V18: 0
A19: Genflex rural | B19: GR | E19: GRN | J19: 0 | L19: 0 | N19: 0 | P19: 0 | R19: 0 | T19: 0 | V19: 0
A20: Genflex rural | B20: GR | C20: 3 | D20: 1 | E20: GR31N | H20: > 900km | I20: < 500V | J20: 235.67 | K20: 268.66 | L20: 71.4 | M20: 81.4 | N20: 38.76 | O20: 44.19 | P20: 76.87 | Q20: 87.63 | R20: 52.91 | S20: 60.32 | T20: 33.57 | U20: 38.27 | V20: 14.11 | W20: 16.09
A21: Genflex rural | B21: GR | C21: 3 | D21: 2 | E21: GR32N | I21: ≥ 500V & ≤ 22kV | J21: 233.33 | K21: 266 | L21: 70.68 | M21: 80.58 | N21: 38.39 | O21: 43.76 | P21: 76.11 | Q21: 86.77 | R21: 52.38 | S21: 59.71 | T21: 33.24 | U21: 37.89 | V21: 10.32 | W21: 11.76
N22: 0
N23: 0
H26: Customer categories | J26: Service charge [R/account/day] | L26: Administration charge [R/POD/day] | Q26: Reliability service charge [c/kWh] | S26: Network demand charge [c/kWh] [All time of use periods]
O27: Voltage | R27: VAT incl | T27: VAT incl
A28: Tariff | B28: Tariff nameBillcode | C28: Tx zone | D28: Voltage | E28: Billcode | K28: VAT incl | M28: VAT incl | O28: < 500V | Q28: 0.29 | R28: =ROUND(Q28 * (1 + VAT), 2) -> 0.33 | S28: 18.81 | T28: =ROUND(S28 * (1 + VAT), 2) -> 21.44
A29: Genflex rural | B29: GR | C29: 0 | D29: 1 | E29: =B29&C29&D29&IF($A$2="Non-municipal","N",IF($A$2="Municiple","Y","error")) -> GR01N | H29: ≤ 100 kVA | J29: 12.99 | K29: =ROUND(J29 * (1 + VAT), 2) -> 14.81 | L29: 3.7 | M29: =ROUND(L29 * (1 + VAT), 2) -> 4.22 | O29: ≥ 500V & < 22kV | Q29: 0.29 | R29: =ROUND(Q29 * (1 + VAT), 2) -> 0.33 | S29: 16.48 | T29: =ROUND(S29 * (1 + VAT), 2) -> 18.79
A30: Genflex rural | B30: GR | C30: 0 | D30: 1 | E30: =B30&C30&D30&IF($A$2="Non-municipal","N",IF($A$2="Municiple","Y","error")) -> GR01N | H30: > 100 kVA & ≤ 500 kVA | J30: 44.32 | K30: =ROUND(J30 * (1 + VAT), 2) -> 50.52 | L30: 20.54 | M30: =ROUND(L30 * (1 + VAT), 2) -> 23.42
A31: Genflex rural | B31: GR | C31: 0 | D31: 1 | E31: =B31&C31&D31&IF($A$2="Non-municipal","N",IF($A$2="Municiple","Y","error")) -> GR01N | H31: > 500 kVA & ≤ 1 MVA | J31: 136.33 | K31: =ROUND(J31 * (1 + VAT), 2) -> 155.42 | L31: 31.53 | M31: =ROUND(L31 * (1 + VAT), 2) -> 35.94 | O31: Reactive energy charge [c/kVArh]
A32: Genflex rural | B32: GR | C32: 0 | D32: 1 | E32: =B32&C32&D32&IF($A$2="Non-municipal","N",IF($A$2="Municiple","Y","error")) -> GR01N | H32: > 1 MVA | J32: 136.33 | K32: =ROUND(J32 * (1 + VAT), 2) -> 155.42 | L32: 58.52 | M32: =ROUND(L32 * (1 + VAT), 2) -> 66.71 | O32: High season | Q32: Low season
A33: Genflex rural | B33: GR | C33: 0 | D33: 1 | E33: =B33&C33&D33&IF($A$2="Non-municipal","N",IF($A$2="Municiple","Y","error")) -> GR01N | H33: Key customers | J33: 2671.9 | K33: =ROUND(J33 * (1 + VAT), 2) -> 3045.97 | L33: 58.52 | M33: =ROUND(L33 * (1 + VAT), 2) -> 66.71 | P33: VAT incl | R33: VAT incl
O34: 6.35 | P34: =ROUND(O34 * (1 + VAT), 2) -> 7.24 | Q34: 0 | R34: =ROUND(Q34 * (1 + VAT), 2) -> 0

Sheet Nightsave Rural inc
A2: Non-municipal | G2: Nightsave Rural tariff | Q2: Non-local authority | AG2: check value
J4: Active energy charge [c/kWh] | N4: Energy demand charges [R/kVA/m] | R4: Network access charges [R/kVA/m]
H5: Transmission zone | J5: High demand season [Jun - Aug] | L5: Low demand season [Sep - May] | N5: High demand season [Jun - Aug] | P5: Low demand season [Sep - May]
I6: Voltage
A7: Tariff | B7: Tariff nameBillcode | C7: Tx zone | D7: Voltage | E7: Billcode | K7: VAT incl | M7: VAT incl | O7: VAT incl | Q7: VAT incl | S7: VAT incl
A8: Nightsave Rural | B8: NR | C8: 0 | D8: 1 | E8: NR01N | H8: ≤ 300km | I8: < 500V | J8: 55.79 | K8: 63.6 | L8: 43.35 | M8: 49.42 | N8: 186.94 | O8: 213.11 | P8: 98.94 | Q8: 112.79 | R8: 9.45 | S8: 10.77
A9: Nightsave Rural | B9: NR | C9: 0 | D9: 2 | E9: NR02N | I9: ≥ 500V & ≤ 22kV | J9: 55.13 | K9: 62.85 | L9: 42.87 | M9: 48.87 | N9: 181.14 | O9: 206.5 | P9: 95.42 | Q9: 108.78 | R9: 8.68 | S9: 9.9
A10: Nightsave Rural | B10: NR | E10: NRN | J10: 0 | L10: 0 | N10: 0 | O10: 0 | P10: 0 | Q10: 0 | R10: 0
A11: Nightsave Rural | B11: NR | E11: NRN | J11: 0 | L11: 0 | N11: 0 | O11: 0 | P11: 0 | Q11: 0 | R11: 0
A12: Nightsave Rural | B12: NR | C12: 1 | D12: 1 | E12: NR11N | H12: > 300km and ≤ 600km | I12: < 500V | J12: 56.34 | K12: 64.23 | L12: 43.78 | M12: 49.91 | N12: 189.19 | O12: 215.68 | P12: 100.31 | Q12: 114.35 | R12: 9.48 | S12: 10.81
A13: Nightsave Rural | B13: NR | C13: 1 | D13: 2 | E13: NR12N | I13: ≥ 500V & ≤ 22kV | J13: 55.7 | K13: 63.5 | L13: 43.3 | M13: 49.36 | N13: 183.36 | O13: 209.03 | P13: 96.75 | Q13: 110.3 | R13: 8.72 | S13: 9.94
A14: Nightsave Rural | B14: NR | E14: NRN | J14: 0 | L14: 0 | N14: 0 | O14: 0 | P14: 0 | Q14: 0 | R14: 0
A15: Nightsave Rural | B15: NR | E15: NRN | J15: 0 | L15: 0 | N15: 0 | O15: 0 | P15: 0 | Q15: 0 | R15: 0
A16: Nightsave Rural | B16: NR | C16: 2 | D16: 1 | E16: NR21N | H16: > 600km and ≤ 900km | I16: < 500V | J16: 56.91 | K16: 64.88 | L16: 44.22 | M16: 50.41 | N16: 191.46 | O16: 218.26 | P16: 101.66 | Q16: 115.89 | R16: 9.57 | S16: 10.91
A17: Nightsave Rural | B17: NR | C17: 2 | D17: 2 | E17: NR22N | I17: ≥ 500V & ≤ 22kV | J17: 56.24 | K17: 64.11 | L17: 43.73 | M17: 49.85 | N17: 185.55 | O17: 211.53 | P17: 98.09 | Q17: 111.82 | R17: 8.78 | S17: 10.01
A18: Nightsave Rural | B18: NR | E18: NRN | J18: 0 | L18: 0 | N18: 0 | O18: 0 | P18: 0 | Q18: 0 | R18: 0
A19: Nightsave Rural | B19: NR | E19: NRN | J19: 0 | L19: 0 | N19: 0 | O19: 0 | P19: 0 | Q19: 0 | R19: 0
A20: Nightsave Rural | B20: NR | C20: 3 | D20: 1 | E20: NR31N | H20: > 900km | I20: < 500V | J20: 57.47 | K20: 65.52 | L20: 44.66 | M20: 50.91 | N20: 193.78 | O20: 220.91 | P20: 103.06 | Q20: 117.49 | R20: 9.58 | S20: 10.92
A21: Nightsave Rural | B21: NR | C21: 3 | D21: 2 | E21: NR32N | I21: ≥ 500V & ≤ 22kV | J21: 56.79 | K21: 64.74 | L21: 44.15 | M21: 50.33 | N21: 187.82 | O21: 214.11 | P21: 99.46 | Q21: 113.38 | R21: 8.79 | S21: 10.02
H26: Customer categories | J26: Service charge [R/account/day] | L26: Administration charge [R/POD/day]
A28: Tariff | B28: Tariff nameBillcode | C28: Tx zone | D28: Voltage | E28: Billcode | K28: VAT incl | M28: VAT incl
A29: Nightsave Rural | B29: NR | C29: 0 | D29: 1 | E29: NR01N | H29: ≤ 100 kVA | J29: 12.99 | K29: 14.81 | L29: 3.69 | M29: 4.21
A30: Nightsave Rural | B30: NR | C30: 0 | D30: 1 | E30: NR01N | H30: > 100 kVA & ≤ 500 kVA | J30: 44.32 | K30: 50.52 | L30: 20.54 | M30: 23.42 | P30: Reliability service charge [c/kWh] | R30: Network demand charge [c/kWh] [All time of use periods]
A31: Nightsave Rural | B31: NR | C31: 0 | D31: 1 | E31: NR01N | H31: > 500 kVA & ≤ 1 MVA | J31: 136.33 | K31: 155.42 | L31: 31.53 | M31: 35.94 | O31: Voltage | Q31: VAT incl | S31: VAT incl
A32: Nightsave Rural | B32: NR | C32: 0 | D32: 1 | E32: NR01N | H32: > 1 MVA | J32: 136.33 | K32: 155.42 | L32: 58.51 | M32: 66.7 | O32: < 500V | P32: 0.29 | Q32: 0.33 | R32: 18.8 | S32: 21.43
A33: Nightsave Rural | B33: NR | C33: 0 | D33: 1 | E33: NR01N | H33: Key customers | J33: 2671.9 | K33: 3045.97 | L33: 58.51 | M33: 66.7 | O33: ≥ 500V & ≤ 22kV | P33: 0.29 | Q33: 0.33 | R33: 16.48 | S33: 18.79
A34: Nightsave Rural | B34: NR | C34: 0 | D34: 2 | E34: NR02N

Sheet Nightsave Rural Munic inc
A2: Municiple | G2: Nightsave Rural tariff | R2: Local authority | AG2: check value
J4: Active energy charge [c/kWh] | N4: Energy demand charges [R/kVA/m] | R4: Network access charges [R/kVA/m]
H5: Transmission zone | J5: High demand season [Jun - Aug] | L5: Low demand season [Sep - May] | N5: High demand season [Jun - Aug] | P5: Low demand season [Sep - May]
I6: Voltage
A7: Tariff | B7: Tariff nameBillcode | C7: Tx zone | D7: Voltage | E7: Billcode | K7: VAT incl | M7: VAT incl | O7: VAT incl | Q7: VAT incl | S7: VAT incl
A8: Nightsave Rural | B8: NR | C8: 0 | D8: 1 | E8: NR01Y | H8: ≤ 300km | I8: < 500V | J8: 57.15 | K8: 65.15 | L8: 44.41 | M8: 50.63 | N8: 187.04 | O8: 213.23 | P8: 98.99 | Q8: 112.85 | R8: 9.55 | S8: 10.89
A9: Nightsave Rural | B9: NR | C9: 0 | D9: 2 | E9: NR02Y | I9: ≥ 500V & ≤ 22kV | J9: 56.48 | K9: 64.39 | L9: 43.92 | M9: 50.07 | N9: 181.24 | O9: 206.61 | P9: 95.47 | Q9: 108.84 | R9: 8.77 | S9: 10
A10: Nightsave Rural | B10: NR | E10: NRY | J10: 0 | L10: 0 | N10: 0 | O10: 0 | P10: 0 | Q10: 0 | R10: 0
A11: Nightsave Rural | B11: NR | E11: NRY | J11: 0 | L11: 0 | N11: 0 | O11: 0 | P11: 0 | Q11: 0 | R11: 0
A12: Nightsave Rural | B12: NR | C12: 1 | D12: 1 | E12: NR11Y | H12: > 300km and ≤ 600km | I12: < 500V | J12: 57.73 | K12: 65.81 | L12: 44.86 | M12: 51.14 | N12: 189.3 | O12: 215.8 | P12: 100.37 | Q12: 114.42 | R12: 9.57 | S12: 10.91
A13: Nightsave Rural | B13: NR | C13: 1 | D13: 2 | E13: NR12Y | I13: ≥ 500V & ≤ 22kV | J13: 57.04 | K13: 65.03 | L13: 44.35 | M13: 50.56 | N13: 183.46 | O13: 209.14 | P13: 96.8 | Q13: 110.35 | R13: 8.81 | S13: 10.04
A14: Nightsave Rural | B14: NR | E14: NRY | J14: 0 | L14: 0 | N14: 0 | O14: 0 | P14: 0 | Q14: 0 | R14: 0
A15: Nightsave Rural | B15: NR | E15: NRY | J15: 0 | L15: 0 | N15: 0 | O15: 0 | P15: 0 | Q15: 0 | R15: 0
A16: Nightsave Rural | B16: NR | C16: 2 | D16: 1 | E16: NR21Y | H16: > 600km and ≤ 900km | I16: < 500V | J16: 58.29 | K16: 66.45 | L16: 45.29 | M16: 51.63 | N16: 191.57 | O16: 218.39 | P16: 101.72 | Q16: 115.96 | R16: 9.66 | S16: 11.01
A17: Nightsave Rural | B17: NR | C17: 2 | D17: 2 | E17: NR22Y | I17: ≥ 500V & ≤ 22kV | J17: 57.61 | K17: 65.68 | L17: 44.79 | M17: 51.06 | N17: 185.66 | O17: 211.65 | P17: 98.14 | Q17: 111.88 | R17: 8.86 | S17: 10.1
A18: Nightsave Rural | B18: NR | E18: NRY | J18: 0 | L18: 0 | N18: 0 | O18: 0 | P18: 0 | Q18: 0 | R18: 0
A19: Nightsave Rural | B19: NR | E19: NRY | J19: 0 | L19: 0 | N19: 0 | O19: 0 | P19: 0 | Q19: 0 | R19: 0
A20: Nightsave Rural | B20: NR | C20: 3 | D20: 1 | E20: NR31Y | H20: > 900km | I20: < 500V | J20: 58.87 | K20: 67.11 | L20: 45.74 | M20: 52.14 | N20: 193.89 | O20: 221.03 | P20: 103.12 | Q20: 117.56 | R20: 9.67 | S20: 11.02
A21: Nightsave Rural | B21: NR | C21: 3 | D21: 2 | E21: NR32Y | I21: ≥ 500V & ≤ 22kV | J21: 58.18 | K21: 66.33 | L21: 45.22 | M21: 51.55 | N21: 187.93 | O21: 214.24 | P21: 99.51 | Q21: 113.44 | R21: 8.87 | S21: 10.11
H26: Customer categories | J26: Service charge [R/account/day] | L26: Administration charge [R/POD/day]
A28: Tariff | B28: Tariff nameBillcode | C28: Tx zone | D28: Voltage | E28: Billcode | K28: VAT incl | M28: VAT incl
A29: Nightsave Rural | B29: NR | C29: 0 | D29: 1 | E29: NR01Y | H29: ≤ 100 kVA | J29: 12.95 | K29: 14.76 | L29: 3.68 | M29: 4.2
A30: Nightsave Rural | B30: NR | C30: 0 | D30: 1 | E30: NR01Y | H30: > 100 kVA & ≤ 500 kVA | J30: 44.14 | K30: 50.32 | L30: 20.46 | M30: 23.32 | P30: Reliability service charge [c/kWh] | R30: Network demand charge [c/kWh] [All time of use periods]
A31: Nightsave Rural | B31: NR | C31: 0 | D31: 1 | E31: NR01Y | H31: > 500 kVA & ≤ 1 MVA | J31: 135.78 | K31: 154.79 | L31: 31.4 | M31: 35.8 | O31: Voltage | Q31: VAT incl | S31: VAT incl
A32: Nightsave Rural | B32: NR | C32: 0 | D32: 1 | E32: NR01Y | H32: > 1 MVA | J32: 135.78 | K32: 154.79 | L32: 58.28 | M32: 66.44 | O32: < 500V | P32: 0.29 | Q32: 0.33 | R32: 19 | S32: 21.66
A33: Nightsave Rural | B33: NR | C33: 0 | D33: 1 | E33: NR01Y | H33: Key customers | J33: 2661 | K33: 3033.54 | L33: 58.28 | M33: 66.44 | O33: ≥ 500V & ≤ 22kV | P33: 0.29 | Q33: 0.33 | R33: 16.64 | S33: 18.97

Sheet Businessrate inc
A2: Non-municipal | H2: Businessrate tariffs | P2: Non-local authority
J4: Energy charge [c/kWh] | L4: Reliability service charge [c/kWh] | N4: Network demand charge [c/kWh] | P4: Network access charge [R/POD/day] | R4: Service and administration charge [R/POD/day] | Z4: Electrification and rural network subsidy charge [c/kWh] | AB4: Affordability subsidy charge [c/kWh] payable by non-local authority tariffs
Z6: All seasons | AB6: All seasons
A7: Tariff | B7: Tariff nameBillcode | C7: Tx zone | D7: Voltage | E7: Billcode | K7: VAT incl | M7: VAT incl | O7: VAT incl | Q7: VAT incl | S7: VAT incl | AA7: VAT incl | AC7: VAT incl
A8: Businessrate 1 | B8: B1 | C8: 0 | D8: 1 | E8: B101N | H8: Businessrate 1 | J8: 75.64 | K8: 86.23 | L8: 0.29 | M8: 0.33 | N8: 10.68 | O8: 12.18 | P8: 15.33 | Q8: 17.48 | R8: 13.25 | S8: 15.11 | Z8: 0 | AA8: 0 | AB8: 0 | AC8: 0
A9: Businessrate 2 | B9: B2 | C9: 0 | D9: 1 | E9: B201N | H9: Businessrate 2 | J9: 75.64 | K9: 86.23 | L9: 0.29 | M9: 0.33 | N9: 10.68 | O9: 12.18 | P9: 25.83 | Q9: 29.45 | R9: 13.25 | S9: 15.11 | Z9: 0 | AA9: 0 | AB9: 0 | AC9: 0
A10: Businessrate 3 | B10: B3 | C10: 0 | D10: 1 | E10: B301N | H10: Businessrate 3 | J10: 75.64 | K10: 86.23 | L10: 0.29 | M10: 0.33 | N10: 10.68 | O10: 12.18 | P10: 44.64 | Q10: 50.89 | R10: 13.25 | S10: 15.11 | Z10: 0 | AA10: 0 | AB10: 0 | AC10: 0
A11: Businessrate 4 | B11: B4 | C11: 0 | D11: 1 | E11: B401N | H11: Businessrate 4 | J11: 203.54 | K11: 232.04 | L11: 0.29 | M11: 0.33 | N11: 10.68 | O11: 12.18 | Z11: 0 | AA11: 0 | AB11: 0 | AC11: 0

Sheet Businessrate Munic inc
A2: Municiple | H2: Businessrate tariffs | P2: Local authority
J4: Energy charge [c/kWh] | L4: Reliability service charge [c/kWh] | N4: Network demand charge [c/kWh] | P4: Network access charge [R/POD/day] | R4: Service and administration charge [R/POD/day] | Z4: Electrification and rural network subsidy charge [c/kWh] | AB4: Affordability subsidy charge [c/kWh] payable by non-local authority tariffs
Z6: All seasons | AB6: All seasons
A7: Tariff | B7: Tariff nameBillcode | C7: Tx zone | D7: Voltage | E7: Billcode | K7: VAT incl | M7: VAT incl | O7: VAT incl | Q7: VAT incl | S7: VAT incl | AA7: VAT incl | AC7: VAT incl
A8: Businessrate 1 | B8: B1 | C8: 0 | D8: 1 | E8: B101Y | H8: Businessrate 1 | J8: 77.48 | K8: 88.33 | L8: 0.29 | M8: 0.33 | N8: 10.74 | O8: 12.24 | P8: 15.41 | Q8: 17.57 | R8: 13.19 | S8: 15.04 | Z8: 0 | AA8: 0 | AB8: 0 | AC8: 0
A9: Businessrate 2 | B9: B2 | C9: 0 | D9: 1 | E9: B201Y | H9: Businessrate 2 | J9: 77.48 | K9: 88.33 | L9: 0.29 | M9: 0.33 | N9: 10.74 | O9: 12.24 | P9: 25.97 | Q9: 29.61 | R9: 13.19 | S9: 15.04 | Z9: 0 | AA9: 0 | AB9: 0 | AC9: 0
A10: Businessrate 3 | B10: B3 | C10: 0 | D10: 1 | E10: B301Y | H10: Businessrate 3 | J10: 77.48 | K10: 88.33 | L10: 0.29 | M10: 0.33 | N10: 10.74 | O10: 12.24 | P10: 44.88 | Q10: 51.16 | R10: 13.19 | S10: 15.04 | Z10: 0 | AA10: 0 | AB10: 0 | AC10: 0
A11: Businessrate 4 | B11: B4 | C11: 0 | D11: 1 | E11: B401Y | H11: Businessrate 4 | J11: 208.5 | K11: 237.69 | L11: 0.29 | M11: 0.33 | N11: 10.74 | O11: 12.24 | Z11: 0 | AA11: 0 | AB11: 0 | AC11: 0

Sheet Homepower inc
A2: Non-municipal | H2: Homepower | O2: Non-local authority
J5: Energy charge [c/kWh] | N5: Network access charge [R/POD/day]
A6: Tariff | B6: Tariff nameBillcode | C6: Tx zone | D6: Voltage | E6: Billcode | J6: Block 1 [>0 - 600 kWh] | K6: VAT incl | L6: Block 2 [>600 kWh] | M6: VAT incl | O6: VAT incl
A7: Homepower 1 | B7: H1 | C7: 0 | D7: 1 | E7: H101N | H7: Homepower 1 | J7: 88.65 | K7: 101.06 | L7: 139.97 | M7: 159.57 | N7: 3.8 | O7: 4.33
A8: Homepower 2 | B8: H2 | C8: 0 | D8: 1 | E8: H201N | H8: Homepower 2 | J8: 88.65 | K8: 101.06 | L8: 136.47 | M8: 155.58 | N8: 7.12 | O8: 8.12
A9: Homepower 3 | B9: H3 | C9: 0 | D9: 1 | E9: H301N | H9: Homepower 3 | J9: 88.65 | K9: 101.06 | L9: 136.47 | M9: 155.58 | N9: 14.69 | O9: 16.75
A10: Homepower 4 | B10: H4 | C10: 0 | D10: 1 | E10: H401N | H10: Homepower 4 | J10: 88.65 | K10: 101.06 | L10: 142.55 | M10: 162.51 | N10: 2.32 | O10: 2.64
J12: Energy charge [c/kWh] | L12: Network access charge [R/kVA]
K13: VAT incl | M13: VAT incl
A14: Homepower Bulk < 500V | B14: HB | C14: 0 | D14: 1 | E14: HB01N | H14: Homepower Bulk* | J14: 116.38 | K14: 132.67 | L14: 24.08 | M14: 27.45
H15: * The network access charge is based on the NMD or on the maximum demand if measured.

Sheet Homepower Munic inc
A2: Municiple | H2: Homepower tariffs | N2: Local authority
J4: Energy charge [c/kWh] | L4: Energy charge [c/kWh] | N4: Network access charge [R/POD/day]
A5: Tariff | B5: Tariff nameBillcode | C5: Tx zone | D5: Voltage | E5: Billcode | J5: Block 1 [>0 - 600 kWh] | K5: VAT incl | L5: Block 2 [>600 kWh] | M5: VAT incl | O5: VAT incl
A6: Homepower 1 | B6: H1 | C6: 0 | D6: 1 | E6: H101Y | H6: Homepower 1 | J6: 88.7 | K6: 101.12 | L6: 140.05 | M6: 159.66 | N6: 3.8 | O6: 4.33
A7: Homepower 2 | B7: H2 | C7: 0 | D7: 1 | E7: H201Y | H7: Homepower 2 | J7: 88.7 | K7: 101.12 | L7: 136.54 | M7: 155.66 | N7: 7.12 | O7: 8.12
A8: Homepower 3 | B8: H3 | C8: 0 | D8: 1 | E8: H301Y | H8: Homepower 3 | J8: 88.7 | K8: 101.12 | L8: 136.54 | M8: 155.66 | N8: 14.7 | O8: 16.76
A9: Homepower 4 | B9: H4 | C9: 0 | D9: 1 | E9: H401Y | H9: Homepower 4 | J9: 88.7 | K9: 101.12 | L9: 142.63 | M9: 162.6 | N9: 2.32 | O9: 2.64

Sheet Public Lighting inc
A2: Non-municipal | H2: Public Lighting tariffs Non-local authority
K4: All Night | M4: 24 Hours
A5: Tariff | B5: Tariff nameBillcode | C5: Tx zone | D5: Voltage | E5: Billcode | L5: VAT incl | N5: VAT incl
A6: Public lighting 24 hours | B6: Pu | C6: 0 | D6: 1 | E6: Pu01N | H6: Public Lighting | I6: Energy charge [c/kWh] | K6: 62.23 | L6: 70.94 | M6: 83.33 | N6: 95
A7: Public lighting All Night | B7: Pa | C7: 0 | D7: 1 | E7: Pa01N | I7: Energy charge [R/100W/month] | K7: 19.48 | L7: 22.21 | M7: 56.13 | N7: 63.99
A9: Public lighting Urban fixed | B9: Pt | C9: 0 | D9: 1 | E9: Pt01N | H9: Public Lighting - Urban Fixed | I9: Fixed charge [R/POD/day] | K9: 4.09 | L9: 4.66
H11: Maintenance charges | K11: R/month
L12: VAT incl
A13: Public Lighting - Maintenance charge - per lumanaire | B13: Plu | C13: 0 | D13: 1 | E13: Plu01N | J13: Per lumanaire | K13: 33 | L13: 37.62
A14: Public Lighting - Maintenance charge - per high-mast lumanaire | B14: Plhm | C14: 0 | D14: 1 | E14: Plhm01N | J14: Per high-mast lumanaire | K14: 768.26 | L14: 875.82

Sheet Homelight inc
A2: Non-municipal | H2: Homelight tariffs Non-local authority
H4: Homelight 60A | J4: Energy charge [c/kWh]
A5: Tariff | B5: Tariff nameBillcode | C5: Tx zone | D5: Voltage | E5: Billcode | K5: VAT incl
A6: Homelight 1 60A | B6: HL16 | C6: 0 | D6: 1 | E6: HL1601N | H6: Block 1 [> 0 - 600 kWh] | J6: 83.87 | K6: 95.61
A7: Homelight 2 60A | B7: HL26 | C7: 0 | D7: 1 | E7: HL2601N | H7: Block 2 [>600 kWh] | J7: 142.55 | K7: 162.51
H10: Homelight 20A | J10: Energy charge [c/kWh]
K11: VAT incl
A12: Homelight 1 20A | B12: HL12 | C12: 0 | D12: 1 | E12: HL1201N | H12: Block 1 [> 0 - 350 kWh] | J12: 77.32 | K12: 88.14
A13: Homelight 2 20A | B13: HL22 | C13: 0 | D13: 1 | E13: HL2201N | H13: Block 2 [>350 kWh] | J13: 84.57 | K13: 96.41

Sheet Public Lighting Munic inc
A2: Municipal | H2: Public Lighting tariffs Local authority | AC2: check value
K4: All Night | M4: 24 Hours
A5: Tariff | B5: Tariff nameBillcode | C5: Tx zone | D5: Voltage | E5: Billcode | L5: VAT incl | N5: VAT incl
A6: Public lighting 24 hours | B6: Pu | C6: 0 | D6: 1 | E6: Pu01Y | H6: Public Lighting | I6: Energy charge [c/kWh] | K6: 63.76 | L6: 72.69 | M6: 85.37 | N6: 97.32
A7: Public lighting All Night | B7: Pa | C7: 0 | D7: 1 | E7: Pa01Y | I7: Energy charge [R/100W/month] | K7: 19.48 | L7: 22.21 | M7: 56.13 | N7: 63.99
A9: Public lighting Urban fixed | B9: Pt | C9: 0 | D9: 1 | E9: Pt01Y | H9: Public Lighting - Urban Fixed | I9: Fixed charge [R/POD/day] | K9: 4.192433762 | L9: 4.78
H11: Maintenance charges | K11: R/month
L12: VAT incl
A13: Public Lighting - Maintenance charge - per lumanaire | B13: Plu | C13: 0 | D13: 1 | E13: Plu01Y | J13: Per lumanaire | K13: 33.64 | L13: 38.35
A14: Public Lighting - Maintenance charge - per high-mast lumanaire | B14: Plhm | C14: 0 | D14: 1 | E14: Plhm01Y | J14: Per high-mast lumanaire | K14: 785.73 | L14: 895.73

Sheet Landrate inc
A2: Non-municipal | H2: Landrate tariffs | R2: Non-local authority
J4: Energy charge [c/kWh] | L4: Reliability service charge [c/kWh] | N4: Network demand charge [c/kWh] | P4: Network access charge [R/POD/day] | R4: Service charge [R/POD/day]
A5: Tariff | B5: Tariff nameBillcode | C5: Tx zone | D5: Voltage | E5: Billcode | K5: VAT incl | M5: VAT incl | O5: VAT incl | Q5: VAT incl | S5: VAT incl
A6: Landrate 1 | B6: L1 | C6: 0 | D6: 1 | E6: L101N | H6: Landrate 1 | J6: 75.27 | K6: 85.81 | L6: 0.29 | M6: 0.33 | N6: 18.8 | O6: 21.43 | P6: 20.1 | Q6: 22.91 | R6: 16.69 | S6: 19.03
A7: Landrate 2 | B7: L2 | C7: 0 | D7: 1 | E7: L201N | H7: Landrate 2 | J7: 75.27 | K7: 85.81 | L7: 0.29 | M7: 0.33 | N7: 18.8 | O7: 21.43 | P7: 30.9 | Q7: 35.23 | R7: 16.69 | S7: 19.03
A8: Landrate 3 | B8: L3 | C8: 0 | D8: 1 | E8: L301N | H8: Landrate 3 | J8: 75.27 | K8: 85.81 | L8: 0.29 | M8: 0.33 | N8: 18.8 | O8: 21.43 | P8: 49.4 | Q8: 56.32 | R8: 16.69 | S8: 19.03
A9: Landrate 4 | B9: L4 | C9: 0 | D9: 1 | E9: L401N | H9: Landrate 4 | J9: 162.56 | K9: 185.32 | L9: 0.29 | M9: 0.33 | N9: 18.8 | O9: 21.43 | P9: 16.01 | Q9: 18.25 | R9: 0 | S9: 0
A10: Landlight | B10: Lt | C10: 0 | D10: 1 | E10: Lt01N | H10: Landlight | J10: 277.96 | K10: 316.87
A11: Landrate Dx | B11: Ld | C11: 0 | D11: 1 | E11: Ld01N | H11: Landrate Dx | R11: 35.80224318 | S11: 40.81

Sheet Landrate Munic inc
A2: Municiple | H2: Landrate tariffs | S2: Local authority
J4: Energy charge [c/kWh] | L4: Reliability service charge [c/kWh] | N4: Network demand charge [c/kWh] | P4: Network access charge [R/POD/day] | R4: Service charge [R/POD/day]
A5: Tariff | B5: Tariff nameBillcode | C5: Tx zone | D5: Voltage | E5: Billcode | K5: VAT incl | M5: VAT incl | O5: VAT incl | Q5: VAT incl | S5: VAT incl
A6: Landrate 1 | B6: L1 | C6: 0 | D6: 1 | E6: L101Y | H6: Landrate 1 | J6: 77.1 | K6: 87.89 | L6: 0.29 | M6: 0.33 | N6: 19 | O6: 21.66 | P6: 20.29 | Q6: 23.13 | R6: 16.62 | S6: 18.95
A7: Landrate 2 | B7: L2 | C7: 0 | D7: 1 | E7: L201Y | H7: Landrate 2 | J7: 77.1 | K7: 87.89 | L7: 0.29 | M7: 0.33 | N7: 19 | O7: 21.66 | P7: 31.2 | Q7: 35.57 | R7: 16.62 | S7: 18.95
A8: Landrate 3 | B8: L3 | C8: 0 | D8: 1 | E8: L301Y | H8: Landrate 3 | J8: 77.1 | K8: 87.89 | L8: 0.29 | M8: 0.33 | N8: 19 | O8: 21.66 | P8: 49.89 | Q8: 56.87 | R8: 16.62 | S8: 18.95
A9: Landrate 4 | B9: L4 | C9: 0 | D9: 1 | E9: L401Y | H9: Landrate 4 | J9: 166.52 | K9: 189.83 | L9: 0.29 | M9: 0.33 | N9: 19 | O9: 21.66 | P9: 16.17 | Q9: 18.43
A10: Landrate Dx | B10: Ld | C10: 0 | D10: 1 | E10: Ld01Y | H10: Landrate Dx | R10: 35.95898283 | S10: 40.99

Sheet Homeflex REDESIGN inc (hidden)
B2: Homeflex | O2: Non-local authority | AC2: =SUM(F6,J6:J16,L6:N16) -> 1059.44 | AD2: check value
F4: Peak energy charge [c/kWh] | H4: Off peak energy charge [c/kWh] | J4: Service & administration charge [c/kWh] | L4: Network demand charge [c/kWh] | N4: Network access charge [R/POD/day]
G5: VAT incl | I5: VAT incl | K5: VAT incl | M5: VAT incl | O5: VAT incl
D6: Homeflex 1 | E6: High Demand | F6: 210.7 | G6: =ROUND(F6 * (1 + VAT), 2) -> 240.2 | H6: 48.1 | I6: =ROUND(H6 * (1 + VAT), 2) -> 54.83 | J6: 25.74 | K6: 29.34 | L6: 34.04 | M6: 38.81 | N6: 4.05 | O6: 4.62
E7: Low Demand | F7: 69.2 | G7: =ROUND(F7 * (1 + VAT), 2) -> 78.89 | H7: 38.16 | I7: 43.5 | J7: 25.74 | K7: 29.34 | L7: 34.04 | M7: 38.81 | N7: =N6 -> 4.05 | O7: 4.62
D8: Homeflex 2 | E8: High Demand | F8: 210.7 | G8: 240.2 | H8: 48.1 | I8: 54.83 | J8: 25.74 | K8: 29.34 | L8: 34.04 | M8: 38.81 | N8: 7.53 | O8: 8.58
E9: Low Demand | F9: 69.2 | G9: 78.89 | H9: 38.16 | I9: 43.5 | J9: 25.74 | K9: 29.34 | L9: 34.04 | M9: 38.81 | N9: =N8 -> 7.53 | O9: 8.58
D10: Homeflex 3 | E10: High Demand | F10: 210.7 | G10: 240.2 | H10: 48.1 | I10: 54.83 | J10: 25.74 | K10: 29.34 | L10: 34.04 | M10: 38.81 | N10: 16.01 | O10: 18.25
E11: Low Demand | F11: 69.2 | G11: 78.89 | H11: 38.16 | I11: 43.5 | J11: 25.74 | K11: 29.34 | L11: 34.04 | M11: 38.81 | N11: =N10 -> 16.01 | O11: 18.25
D12: Homeflex 4 | E12: High Demand | F12: 210.7 | G12: 240.2 | H12: 48.1 | I12: 54.83 | J12: 25.74 | K12: 29.34 | L12: 34.04 | M12: 38.81 | N12: 2.42 | O12: 2.76
E13: Low Demand | F13: 69.2 | G13: 78.89 | H13: 38.16 | I13: 43.5 | J13: 25.74 | K13: 29.34 | L13: 34.04 | M13: 38.81 | N13: =N12 -> 2.42 | O13: 2.76
F14: The network access charge is a R/kVA charge and is based on the Notified Maximum Demand (NMD).

Sheet TOuS Original (hidden)
B4: Reliability service charge urban | D4: Charge [c/kWh]
E5: VAT incl
B6: < 500V | D6: 0.27 | E6: =ROUND(D6 * (1 + VAT), 2) -> 0.31
B7: ≥ 500V & < 66kV | D7: 0.26 | E7: =ROUND(D7 * (1 + VAT), 2) -> 0.3
B8: ≥ 66kV & ≤ 132kV | D8: 0.25 | E8: =ROUND(D8 * (1 + VAT), 2) -> 0.29
B9: > 132kV | D9: 0.23 | E9: =ROUND(D9 * (1 + VAT), 2) -> 0.26
B12: Reliability service charge rural | D12: Charge [c/kWh]
E13: VAT incl
B14: < 500V | D14: 0.27 | E14: =ROUND(D14 * (1 + VAT), 2) -> 0.31
B15: ≥ 500V & ≤ 22kV | D15: 0.27 | E15: =ROUND(D15 * (1 + VAT), 2) -> 0.31
C18: Transmission zone | D18: Voltage | E18: R/kVA
F19: VAT incl
B20: ETUoS urban | C20: ≤ 300km | D20: < 500V | E20: 11.36438596 | F20: =ROUND(E20 * (1 + VAT), 2) -> 12.96
D21: ≥ 500V & < 66kV | E21: 11.19400536 | F21: 12.76
D22: ≥ 66kV & ≤ 132kV | E22: 10.8362061 | F22: 12.35
C23: > 300km & ≤ 600km | D23: < 500V | E23: 11.46661432 | F23: 13.07
D24: ≥ 500V & < 66kV | E24: 11.31327178 | F24: 12.9
D25: ≥ 66kV & ≤ 132kV | E25: 10.95547252 | F25: 12.49
C26: > 600km & ≤ 900km | D26: < 500V | E26: 11.58588074 | F26: 13.21
D27: ≥ 500V & < 66kV | E27: 11.4325382 | F27: 13.03
D28: ≥ 66kV & ≤ 132kV | E28: 11.05770088 | F28: 12.61
C29: > 900km | D29: < 500V | E29: 11.70514716 | F29: 13.34
D30: ≥ 500V & < 66kV | E30: 11.55180462 | F30: 13.17
D31: ≥ 66kV & ≤ 132kV | E31: 11.1769673 | F31: 12.74
C34: Transmission zone | D34: Voltage | E34: R/kVA
F35: VAT incl
B36: ETUoS rural | C36: ≤ 300km | D36: < 500V | E36: 11.7732994 | F36: =ROUND(E36 * (1 + VAT), 2) -> 13.42
D37: ≥ 500V & < 66kV | E37: 11.67107104 | F37: 13.31
C38: > 300km & ≤ 600km | D38: < 500V | E38: 11.89256582 | F38: 13.56
D39: ≥ 500V & < 66kV | E39: 11.79033746 | F39: 13.44
C40: > 600km & ≤ 900km | D40: < 500V | E40: 12.01183224 | F40: 13.69
D41: ≥ 500V & < 66kV | E41: 11.90960388 | F41: 13.58
C42: > 900km | D42: < 500V | E42: 12.13109866 | F42: 13.83
D43: ≥ 500V & < 66kV | E43: 12.0288703 | F43: 13.71
B46: Distribution network charges urban
D47: Network access charge [R/kVA/m] | F47: Network demand charge [R/kVA/m] | H47: Urban low voltage subsidy charge [R/kVA/m]
B49: Voltage | E49: VAT incl | G49: VAT incl | I49: VAT incl
B50: < 500V | D50: =#REF! ->  | E50: =ROUND(D50 * (1 + VAT), 2) ->  | F50: =#REF! ->  | G50: =ROUND(F50 * (1 + VAT), 2) ->  | H50: =#REF! ->  | I50: =ROUND(H50 * (1 + VAT), 2) -> 
B51: ≥ 500V & < 66kV | D51: =#REF! ->  | E51: =ROUND(D51 * (1 + VAT), 2) ->  | F51: =#REF! ->  | G51: =ROUND(F51 * (1 + VAT), 2) ->  | H51: =#REF! ->  | I51: =ROUND(H51 * (1 + VAT), 2) -> 
B52: ≥ 66kV & ≤ 132kV | D52: =#REF! ->  | E52: =ROUND(D52 * (1 + VAT), 2) ->  | F52: =#REF! ->  | G52: =ROUND(F52 * (1 + VAT), 2) ->  | H52: =#REF! ->  | I52: =ROUND(H52 * (1 + VAT), 2) -> 
B53: > 132kV | D53: =#REF! ->  | E53: =ROUND(D53 * (1 + VAT), 2) ->  | F53: =#REF! ->  | G53: =ROUND(F53 * (1 + VAT), 2) ->  | H53: =#REF! ->  | I53: =ROUND(H53 * (1 + VAT), 2) -> 
B56: Distribution network charges rural
D57: Network access charge [R/kVA/m] | F57: Network demand charge [c/kWh]
B59: Voltage | E59: VAT incl | G59: VAT incl
B60: < 500V | D60: 6.201664795 | E60: =ROUND(D60 * (1 + VAT), 2) -> 7.07 | F60: 19.67324725 | G60: =ROUND(F60 * (1 + VAT), 2) -> 22.43
B61: ≥ 500V & ≤ 22kV | D61: 2.297555913 | E61: =ROUND(D61 * (1 + VAT), 2) -> 2.62 | F61: 17.23886725 | G61: =ROUND(F61 * (1 + VAT), 2) -> 19.65
B64: Distribution network charges for Generators
D65: Network access charge [R/MW/m]
B67: Voltage | E67: VAT incl
B68: < 500V
B69: ≥ 500V & < 66kV
B70: ≥ 66kV & ≤ 132kV | D70: 9.4 | E70: =ROUND(D70 * (1 + VAT), 2) -> 10.72
B73: Electrification and rural network subsidy charge [c/kWh]
D74: Rural network subsidy charge [c/kWh] | F74: Electrification networks subsidy charge [c/kWh] | H74: Total electrification and rural network subsidy charge [c/kWh]
B76: Tariff | E76: VAT incl | G76: VAT incl | I76: VAT incl
B77: Megaflex, Miniflex, Nightsave Urban Large, Nightsave Urban Small, Businessrate
D78: 2.68 | E78: =ROUND(D78 * (1 + VAT), 2) -> 3.06 | F78: 0.91 | G78: =ROUND(F78 * (1 + VAT), 2) -> 1.04 | H78: 3.59 | I78: =ROUND(H78 * (1 + VAT), 2) -> 4.09
B83: Service and admin charges
B84: Customer categories | D84: Service charge [R/account/day] | F84: Administration charge [R/POD/day]
E86: VAT incl | G86: VAT incl
B87: ≤ 100 kVA | D87: 9.49 | E87: =ROUND(D87 * (1 + VAT), 2) -> 10.82 | F87: 2.08 | G87: =ROUND(F87 * (1 + VAT), 2) -> 2.37
B88: > 100 kVA & ≤ 500 kVA | D88: 43.38 | E88: =ROUND(D88 * (1 + VAT), 2) -> 49.45 | F88: 12.16 | G88: =ROUND(F88 * (1 + VAT), 2) -> 13.86
B89: > 500 kVA & ≤ 1 MVA | D89: 133.5 | E89: =ROUND(D89 * (1 + VAT), 2) -> 152.19 | F89: 24.17 | G89: =ROUND(F89 * (1 + VAT), 2) -> 27.55
B90: > 1 MVA | D90: 133.5 | E90: =ROUND(D90 * (1 + VAT), 2) -> 152.19 | F90: 60.17 | G90: =ROUND(F90 * (1 + VAT), 2) -> 68.59
B91: Key customers | D91: 2616.06 | E91: =ROUND(D91 * (1 + VAT), 2) -> 2982.31 | F91: 83.55 | G91: =ROUND(F91 * (1 + VAT), 2) -> 95.25
B94: Distribution loss factors | F94: Transmission loss factors for loads
B95: Voltage | C95: Urban loss factor | D95: Rural loss factor | F95: Distance from Johannesburg | G95: Zone | H95: Loss factor
B96: < 500V | C96: ='Loss Factors'!O5 -> 1.1111 | D96: ='Loss Factors'!P5 -> 1.1527 | F96: 0 to 300 km | G96: 0 | H96: ='Loss Factors'!T5 -> 1.0107
B97: ≥ 500V & < 66kV | C97: ='Loss Factors'!O6 -> 1.0957 | D97: ='Loss Factors'!P6 -> 1.1412 | F97: 301 to 600 km | G97: 1 | H97: ='Loss Factors'!T6 -> 1.0208
B98: ≥ 66kV & ≤ 132kV | C98: ='Loss Factors'!O7 -> 1.0611 | F98: 601 to 900 km | G98: 2 | H98: ='Loss Factors'!T7 -> 1.031
B99: > 132kV | C99: ='Loss Factors'!O8 -> 1 | F99: > 900 km | G99: 3 | H99: ='Loss Factors'!T8 -> 1.0413
K104: TUoS [ > 132kV] | M104: Charge R/kVA
N105: VAT incl
L106: ≤ 300km | M106: =#REF! ->  | N106: =ROUND(M106 * (1 + VAT), 2) -> 
L107: > 300km & ≤ 600km | M107: =#REF! ->  | N107: =ROUND(M107 * (1 + VAT), 2) -> 
L108: > 600km & ≤ 900km | M108: =#REF! ->  | N108: =ROUND(M108 * (1 + VAT), 2) -> 
L109: > 900km | M109: =#REF! ->  | N109: =ROUND(M109 * (1 + VAT), 2) -> 

Sheet TOuS
A2: Non-municipal
H3: TUoS (> 132 KV or direct Transmission connected) network charge for loads
H6: Electrification and rural network subsidy charge [c/kWh]
J7: Electrification and rural network subsidy charge [c/kWh]
A9: Tariff | B9: Tariff nameBillcode | C9: Tx zone | D9: Voltage | E9: Billcode | H9: Tariff | K9: VAT incl
H10: Megaflex, Miniflex, Nightsave Urban Large, Nightsave Urban Small, Businessrate
A11: Megaflex | B11: Me | C11: 0 | D11: 1 | E11: Me01N | J11: 5.62 | K11: 6.41
H15: Service and admin charges
H16: Utilised capacity/maximum export capacity | J16: Service charge [R/account/day] | L16: Administration charge [R/POD/day]
H19: [kVA/MVA = loads]
A20: Tariff | B20: Tariff nameBillcode | C20: Tx zone | D20: Voltage | E20: Billcode | H20: [kW/MW = generators] | K20: VAT incl | M20: VAT incl
A21: Miniflex | B21: Mi | C21: 0 | D21: 1 | E21: Mi01N | H21: ≤ 100 kVA/kW | J21: 10.25 | K21: 11.69 | L21: 2.25 | M21: 2.57
A22: Miniflex | B22: Mi | C22: 0 | D22: 1 | E22: Mi01N | H22: > 100 kVA/kW & ≤ 500 kVA/kW | J22: 46.85 | K22: 53.41 | L22: 13.13 | M22: 14.97
A23: Miniflex | B23: Mi | C23: 0 | D23: 1 | E23: Mi01N | H23: > 500 kVA/kW & ≤ 1 MVA/MW | J23: 144.18 | K23: 164.37 | L23: 26.1 | M23: 29.75
A24: Miniflex | B24: Mi | C24: 0 | D24: 1 | E24: Mi01N | H24: > 1 MVA/MW | J24: 144.18 | K24: 164.37 | L24: 64.98 | M24: 74.08
A25: Miniflex | B25: Mi | C25: 0 | D25: 1 | E25: Mi01N | H25: Key customers or Transmission connected generators | J25: 2825.34 | K25: 3220.89 | L25: 90.23 | M25: 102.86
B28: Non-municipal | H28: Transmission loss factors for loads
A29: Tariff | B29: Tariff nameBillcode | C29: Tx zone | D29: Voltage | E29: Billcode | H29: Distance from Johannesburg | I29: Zone | J29: Loss factor
A30: Transmission loss factor | B30: TxLoss | C30: 0 | D30: 4 | E30: TxLoss04N | H30: ≤ 300km | I30: 0 | J30: 1.0107
A31: Transmission loss factor | B31: TxLoss | C31: 1 | D31: 4 | E31: TxLoss14N | H31: > 300km & ≤ 600km | I31: 1 | J31: 1.0208
A32: Transmission loss factor | B32: TxLoss | C32: 2 | D32: 4 | E32: TxLoss24N | H32: > 600km & ≤ 900km | I32: 2 | J32: 1.031
A33: Transmission loss factor | B33: TxLoss | C33: 3 | D33: 4 | E33: TxLoss34N | H33: > 900km | I33: 3 | J33: 1.0413
H36: Loss factors for Transmission connected generators | J36: Loss factor
A37: Tariff | B37: Tariff nameBillcode | C37: Tx zone | D37: Voltage | E37: Billcode
A38: TUoS network charges for Transmission connected generators | B38: GenTUOS | C38: Cape | D38: 4 | E38: GenTUOSCape4N | I38: Cape | J38: 0.971
A39: TUoS network charges for Transmission connected generators | B39: GenTUOS | C39: Karoo | D39: 4 | E39: GenTUOSKaroo4N | I39: Karoo | J39: 0.995
A40: TUoS network charges for Transmission connected generators | B40: GenTUOS | C40: Kwazulu-Natal | D40: 4 | E40: GenTUOSKwazulu-Natal4N | I40: Kwazulu-Natal | J40: 1.004
A41: TUoS network charges for Transmission connected generators | B41: GenTUOS | C41: Vaal | D41: 4 | E41: GenTUOSVaal4N | I41: Vaal | J41: 1.02
A42: TUoS network charges for Transmission connected generators | B42: GenTUOS | C42: Waterburg | D42: 4 | E42: GenTUOSWaterburg4N | I42: Waterberg | J42: 1.023
A43: TUoS network charges for Transmission connected generators | B43: GenTUOS | C43: Mpumalanga | D43: 4 | E43: GenTUOSMpumalanga4N | I43: Mpumalanga | J43: 1.021
H46: TUoS [ > 132kV] | J46: Network access charge [R/kVA]
A47: Tariff | B47: Tariff nameBillcode | C47: Tx zone | D47: Voltage | E47: Billcode | K47: VAT incl
A48: WEPS | B48: We | C48: 0 | D48: 1 | E48: We01N | I48: ≤ 300km | J48: 7.11 | K48: 8.11
A49: WEPS | B49: We | C49: 0 | D49: 2 | E49: We02N | I49: > 300km & ≤ 600km | J49: 7.18 | K49: 8.19
A50: WEPS | B50: We | C50: 0 | D50: 3 | E50: We03N | I50: > 600km & ≤ 900km | J50: 7.28 | K50: 8.3
A51: WEPS | B51: We | C51: 0 | D51: 4 | E51: We04N | I51: > 900km | J51: 7.33 | K51: 8.36
H54: TUoS network charges for Transmission connected generators | J54: Network charge [R/kW]
A55: Tariff | B55: Tariff nameBillcode | C55: Tx zone | D55: Voltage | E55: Billcode | K55: VAT incl
A56: TUoS network charges for Transmission connected generators | B56: GenTUOS | C56: Cape | D56: 4 | E56: GenTUOSCape4N | I56: Cape | J56: 0 | K56: 0
A57: TUoS network charges for Transmission connected generators | B57: GenTUOS | C57: Karoo | D57: 4 | E57: GenTUOSKaroo4N | I57: Karoo | J57: 0 | K57: 0
A58: TUoS network charges for Transmission connected generators | B58: GenTUOS | C58: Kwazulu-Natal | D58: 4 | E58: GenTUOSKwazulu-Natal4N | I58: Kwazulu-Natal | J58: 1.49 | K58: 1.7
A59: TUoS network charges for Transmission connected generators | B59: GenTUOS | C59: Vaal | D59: 4 | E59: GenTUOSVaal4N | I59: Vaal | J59: 4.97 | K59: 5.67
A60: TUoS network charges for Transmission connected generators | B60: GenTUOS | C60: Waterburg | D60: 4 | E60: GenTUOSWaterburg4N | I60: Waterberg | J60: 6.37 | K60: 7.26
A61: TUoS network charges for Transmission connected generators | B61: GenTUOS | C61: Mpumalanga | D61: 4 | E61: GenTUOSMpumalanga4N | I61: Mpumalanga | J61: 5.9 | K61: 6.73
H64: Transmission connected reliability service charge | J64: Reliability charge [c/kWh]
A66: Tariff | B66: Tariff nameBillcode | C66: Tx zone | D66: Voltage | E66: Billcode | K66: VAT incl
A67: TUoS network charges for Transmission connected generators | B67: GenTUOS | C67: Cape | D67: 4 | E67: GenTUOSCape4N | H67: Generators | J67: 0.25 | K67: 0.29
A68: TUoS network charges for Transmission connected generators | B68: GenTUOS | C68: Cape | D68: 4 | E68: GenTUOSCape4N | H68: Loads | J68: 0.25 | K68: 0.29

Sheet DUoS
A2: Non-Municipal
H4: DUoS
H7: Reliability service charge Urbanp | J7: Charge [c/kWh]
A8: Tariff | B8: Tariff nameBillcode | C8: Tx zone | D8: Voltage | E8: Billcode | K8: VAT incl
A9: Gen-DUoS urban | B9: NEGenDUoSU | C9: 0 | D9: 1 | E9: NEGenDUoSU01N | H9: < 500V | J9: 0.29 | K9: 0.33
A10: Gen-DUoS urban | B10: NEGenDUoSU | C10: 0 | D10: 2 | E10: NEGenDUoSU02N | H10: ≥ 500V & < 66kV | J10: 0.28 | K10: 0.32
A11: Gen-DUoS urban | B11: NEGenDUoSU | C11: 0 | D11: 3 | E11: NEGenDUoSU03N | H11: ≥ 66kV & ≤ 132kV | J11: 0.27 | K11: 0.31
H15: Reliability service charge Ruralp | J15: Charge [c/kWh]
A16: Tariff | B16: Tariff nameBillcode | C16: Tx zone | D16: Voltage | E16: Billcode | K16: VAT incl
A17: Gen-DUoS rural | B17: NEGenDUoSR | C17: 0 | D17: 1 | E17: NEGenDUoSR01N | H17: < 500V | J17: 0.29 | K17: 0.33
A18: Gen-DUoS rural | B18: NEGenDUoSR | C18: 0 | D18: 2 | E18: NEGenDUoSR02N | H18: ≥ 500V & ≤ 22kV | J18: 0.29 | K18: 0.33
I21: Transmission zone | J21: Voltage | K21: [R/kVA]
A22: Tariff | B22: Tariff nameBillcode | C22: Tx zone | D22: Voltage | E22: Billcode | L22: VAT incl
H23: ETUoS urban | I23: ≤ 300km | J23: < 500V | K23: 6.32 | L23: 7.2
J24: ≥ 500V & < 66kV | K24: 5.78 | L24: 6.59
J25: ≥ 66kV & ≤ 132kV | K25: 5.63 | L25: 6.42
I26: > 300km & ≤ 600km | J26: < 500V | K26: 6.37 | L26: 7.26
J27: ≥ 500V & < 66kV | K27: 5.83 | L27: 6.65
J28: ≥ 66kV & ≤ 132kV | K28: 5.67 | L28: 6.46
I29: > 600km & ≤ 900km | J29: < 500V | K29: 6.45 | L29: 7.35
J30: ≥ 500V & < 66kV | K30: 5.88 | L30: 6.7
J31: ≥ 66kV & ≤ 132kV | K31: 5.71 | L31: 6.51
I32: > 900km | J32: < 500V | K32: 6.47 | L32: 7.38
J33: ≥ 500V & < 66kV | K33: 5.95 | L33: 6.78
J34: ≥ 66kV & ≤ 132kV | K34: 5.75 | L34: 6.56
I37: Transmission zone | J37: Voltage | K37: [R/kVA]
A38: Tariff | B38: Tariff nameBillcode | C38: Tx zone | D38: Voltage | E38: Billcode | L38: VAT incl
H39: ETUoS rural | I39: ≤ 300km | J39: < 500V | K39: 13.2 | L39: 15.05
J40: ≥ 500V & < 66kV | K40: 12.1 | L40: 13.79
I41: > 300km & ≤ 600km | J41: < 500V | K41: 13.25 | L41: 15.11
J42: ≥ 500V & < 66kV | K42: 12.18 | L42: 13.89
I43: > 600km & ≤ 900km | J43: < 500V | K43: 13.32 | L43: 15.18
J44: ≥ 500V & < 66kV | K44: 12.23 | L44: 13.94
I45: > 900km | J45: < 500V | K45: 13.37 | L45: 15.24
J46: ≥ 500V & < 66kV | K46: 12.24 | L46: 13.95
H49: Distribution network charges urban
J50: Network access charge [R/kVA/m] | L50: Network demand charge [R/kVA/m] | N50: Urban low voltage subsidy charge [R/kVA/m]
A52: Tariff | B52: Tariff nameBillcode | C52: Tx zone | D52: Voltage | E52: Billcode | H52: Voltage | K52: VAT incl | M52: VAT incl | O52: VAT incl
A53: Gen-DUoS urban | B53: NEGenDUoSU | C53: 0 | D53: 1 | E53: NEGenDUoSU01N | H53: < 500V | J53: 12.56 | K53: 14.32 | L53: 23.81 | M53: 27.14 | N53: 0 | O53: 0
A54: Gen-DUoS urban | B54: NEGenDUoSU | C54: 0 | D54: 2 | E54: NEGenDUoSU02N | H54: ≥ 500V & < 66kV | J54: 11.52 | K54: 13.13 | L54: 21.85 | M54: 24.91 | N54: 0 | O54: 0
A55: Gen-DUoS urban | B55: NEGenDUoSU | C55: 0 | D55: 3 | E55: NEGenDUoSU03N | H55: ≥ 66kV & ≤ 132kV | J55: 4.11 | K55: 4.69 | L55: 7.61 | M55: 8.68 | N55: 10.14 | O55: 11.56
A56: Gen-DUoS urban | B56: NEGenDUoSU | C56: 0 | D56: 4 | E56: NEGenDUoSU04N | H56: > 132kV | J56: 0 | K56: 0 | L56: 0 | M56: 0 | N56: 10.14 | O56: 11.56
H59: Distribution network charges rural
J60: Network access charge [R/kVA/m] | L60: Network demand charge [c/kWh]
A62: Tariff | B62: Tariff nameBillcode | C62: Tx zone | D62: Voltage | E62: Billcode | H62: Voltage | K62: VAT incl | M62: VAT incl
A63: Gen-DUoS rural | B63: NEGenDUoSR | C63: 0 | D63: 1 | E63: NEGenDUoSR01N | H63: < 500V | J63: 13.2 | K63: 15.05 | L63: 18.8 | M63: 21.43
A64: Gen-DUoS rural | B64: NEGenDUoSR | C64: 0 | D64: 2 | E64: NEGenDUoSR02N | H64: ≥ 500V & ≤ 22kV | J64: 12.1 | K64: 13.79 | L64: 16.48 | M64: 18.79
H67: Distribution network charges for Generators
J68: Network access charge [R/kW/m]
A70: Tariff | B70: Tariff nameBillcode | C70: Tx zone | D70: Voltage | E70: Billcode | H70: Voltage | K70: VAT incl
A71: Gen-DUoS urban | B71: NEGenDUoSU | C71: 0 | D71: 1 | E71: NEGenDUoSU01N | H71: < 500V
A72: Gen-DUoS urban | B72: NEGenDUoSU | C72: 0 | D72: 2 | E72: NEGenDUoSU02N | H72: ≥ 500V & < 66kV
A73: Gen-DUoS urban | B73: NEGenDUoSU | C73: 0 | D73: 3 | E73: NEGenDUoSU03N | H73: ≥ 66kV & ≤ 132kV | J73: 10.15 | K73: 11.57
H76: Electrification and rural network subsidy charge [c/kWh] | R76: Electrification and rural network subsidy charge [c/kWh]
J77: Rural network subsidy charge [c/kWh] | L77: Electrification networks subsidy charge [c/kWh] | N77: Total electrification and rural network subsidy charge [c/kWh] | T77: Total electrification and rural network subsidy charge [c/kWh]
A79: Tariff | B79: Tariff nameBillcode | C79: Tx zone | D79: Voltage | E79: Billcode | H79: Tariff | K79: VAT incl | M79: VAT incl | O79: VAT incl | R79: Tariff | U79: VAT incl
H80: Megaflex, Miniflex, Nightsave Urban Large, Nightsave Urban Small, Businessrate | R80: Megaflex, Miniflex, Nightsave Urban Large, Nightsave Urban Small, Businessrate
A81: Megaflex | B81: Me | C81: 0 | D81: 1 | E81: Me01N | J81: 3.73 | K81: 4.25 | L81: 1.89 | M81: 2.15 | N81: 5.62 | O81: 6.41 | T81: 5.62 | U81: 6.41
H86: Service and administration charges (urban )
H87: Customer categories utilised capacity / maximum export capacity | J87: Service charge [R/account/day] | L87: Administration charge [R/POD/day]
H90: [kVA or MVA = loads]
A91: Tariff | B91: Tariff nameBillcode | C91: Tx zone | D91: Voltage | E91: Billcode | H91: [kW or MW = generators] | K91: VAT incl | M91: VAT incl
A92: Miniflex | B92: Mi | C92: 0 | D92: 1 | E92: Mi01N | H92: ≤ 100 kVA/kW | J92: 10.25 | K92: 11.69 | L92: 2.25 | M92: 2.57
A93: Miniflex | B93: Mi | C93: 0 | D93: 1 | E93: Mi01N | H93: > 100 kVA/kW & ≤ 500 kVA/kW | J93: 46.85 | K93: 53.41 | L93: 13.13 | M93: 14.97
A94: Miniflex | B94: Mi | C94: 0 | D94: 1 | E94: Mi01N | H94: > 500 kVA/kW & ≤ 1 MVA/MW | J94: 144.18 | K94: 164.37 | L94: 26.1 | M94: 29.75
A95: Miniflex | B95: Mi | C95: 0 | D95: 1 | E95: Mi01N | H95: > 1 MVA/MW | J95: 144.18 | K95: 164.37 | L95: 64.98 | M95: 74.08
A96: Miniflex | B96: Mi | C96: 0 | D96: 1 | E96: Mi01N | H96: Key customers or Transmission connected generators | J96: 2825.34 | K96: 3220.89 | L96: 90.23 | M96: 102.86
H99: Service and administration charges (rural)
H100: Customer categories utilised capacity / maximum export capacity | J100: Service charge [R/account/day] | L100: Administration charge [R/POD/day]
H103: [kVA or MVA = loads]
A104: Tariff | B104: Tariff nameBillcode | C104: Tx zone | D104: Voltage | E104: Billcode | H104: [kW or MW = generators] | K104: VAT incl | M104: VAT incl
A105: Ruraflex | B105: Ru | C105: 0 | D105: 1 | E105: Ru01N | H105: ≤ 100 kVA/kW | J105: 12.99 | K105: 14.81 | L105: 3.69 | M105: 4.21
A106: Ruraflex | B106: Ru | C106: 0 | D106: 1 | E106: Ru01N | H106: > 100 kVA/kW & ≤ 500 kVA/kW | J106: 44.32 | K106: 50.52 | L106: 20.54 | M106: 23.42
A107: Ruraflex | B107: Ru | C107: 0 | D107: 1 | E107: Ru01N | H107: > 500 kVA/kW & ≤ 1 MVA/MW | J107: 136.33 | K107: 155.42 | L107: 31.53 | M107: 35.94
A108: Ruraflex | B108: Ru | C108: 0 | D108: 1 | E108: Ru01N | H108: > 1 MVA/MW | J108: 136.33 | K108: 155.42 | L108: 58.51 | M108: 66.7
A109: Ruraflex | B109: Ru | C109: 0 | D109: 1 | E109: Ru01N | H109: Key customers or Transmission connected generators | J109: 2671.9 | K109: 3045.97 | L109: 58.51 | M109: 66.7
H111: Distribution loss factors | L111: Transmission loss factors for loads
A112: Tariff | B112: Tariff nameBillcode | C112: Tx zone | D112: Voltage | E112: Billcode | H112: Voltage | I112: Urban loss factor | J112: Rural loss factor | L112: Distance from Johannesburg | M112: Zone | N112: Loss factor
A113: Distribution loss factor - Urban | B113: DxLossUrb | C113: 0 | D113: 1 | E113: DxLossUrb01N | H113: < 500V | I113: 1.1111 | J113: 1.1527 | L113: ≤ 300km | M113: 0 | N113: 1.0107
A114: Distribution loss factor - Urban | B114: DxLossUrb | C114: 0 | D114: 2 | E114: DxLossUrb02N | H114: ≥ 500V & < 66kV | I114: 1.0957 | J114: 1.1412 | L114: > 300km & ≤ 600km | M114: 1 | N114: 1.0208
A115: Distribution loss factor - Urban | B115: DxLossUrb | C115: 0 | D115: 3 | E115: DxLossUrb03N | H115: ≥ 66kV & ≤ 132kV | I115: 1.0611 | L115: > 600km & ≤ 900km | M115: 2 | N115: 1.031
A116: Distribution loss factor - Urban | B116: DxLossUrb | C116: 0 | D116: 4 | E116: DxLossUrb04N | H116: > 132kV | I116: 1 | L116: > 900km | M116: 3 | N116: 1.0413
A118: Distribution loss factor - Rural | B118: DxLossRur | C118: 0 | D118: 1 | E118: DxLossRur01N
A119: Distribution loss factor - Rural | B119: DxLossRur | C119: 0 | D119: 2 | E119: DxLossRur02N
A122: Transmission loss factor | B122: TxLoss | C122: 0 | D122: 4 | E122: TxLoss04N
A123: Transmission loss factor | B123: TxLoss | C123: 1 | D123: 4 | E123: TxLoss14N
A124: Transmission loss factor | B124: TxLoss | C124: 2 | D124: 4 | E124: TxLoss24N
A125: Transmission loss factor | B125: TxLoss | C125: 3 | D125: 4 | E125: TxLoss34N

Sheet Loss Factors
AL1: 0.14
A2: Non-municipal
N3: Distribution loss factors | R3: Transmission loss factors for loads
A4: Tariff | B4: Tariff nameBillcode | C4: Tx zone | D4: Voltage | E4: Billcode | G4: Tariff | H4: Tariff nameBillcode | I4: Tx zone | J4: Voltage | K4: Billcode | N4: Voltage | O4: Urban loss factor | P4: Rural loss factor | R4: Distance from Johannesburg | S4: Zone | T4: Loss factor
A5: Distribution loss factor - Urban | B5: DxLossUrb | C5: 0 | D5: 1 | E5: DxLossUrb01N | G5: Transmission loss factor | H5: TxLoss | I5: 0 | J5: 4 | K5: TxLoss04N | N5: < 500V | O5: 1.1111 | P5: 1.1527 | R5: ≤ 300km | S5: 0 | T5: 1.0107
A6: Distribution loss factor - Urban | B6: DxLossUrb | C6: 0 | D6: 2 | E6: DxLossUrb02N | G6: Transmission loss factor | H6: TxLoss | I6: 1 | J6: 4 | K6: TxLoss14N | N6: ≥ 500V & < 66kV | O6: 1.0957 | P6: 1.1412 | R6: > 300km & ≤ 600km | S6: 1 | T6: 1.0208
A7: Distribution loss factor - Urban | B7: DxLossUrb | C7: 0 | D7: 3 | E7: DxLossUrb03N | G7: Transmission loss factor | H7: TxLoss | I7: 2 | J7: 4 | K7: TxLoss24N | N7: ≥ 66kV & ≤ 132kV | O7: 1.0611 | R7: > 600km & ≤ 900km | S7: 2 | T7: 1.031
A8: Distribution loss factor - Urban | B8: DxLossUrb | C8: 0 | D8: 4 | E8: DxLossUrb04N | G8: Transmission loss factor | H8: TxLoss | I8: 3 | J8: 4 | K8: TxLoss34N | N8: > 132kV/Transmission connected | O8: 1 | R8: > 900km | S8: 3 | T8: 1.0413
A10: Distribution loss factor - Rural | B10: DxLossRur | C10: 0 | D10: 1 | E10: DxLossRur01N | P10: 2012/13
A11: Distribution loss factor - Rural | B11: DxLossRur | C11: 0 | D11: 2 | E11: DxLossRur02N | N11: Loss factors for Transmission connected generators | P11: Loss factor
A12: Tariff | B12: Tariff nameBillcode | C12: Tx zone | D12: Voltage | E12: Billcode
A13: TUoS network charges for Transmission connected generators | B13: GenTUOS | C13: Cape | D13: 4 | E13: GenTUOSCape4N | O13: Cape | P13: 0.971
A14: TUoS network charges for Transmission connected generators | B14: GenTUOS | C14: Karoo | D14: 4 | E14: GenTUOSKaroo4N | O14: Karoo | P14: 0.995
A15: TUoS network charges for Transmission connected generators | B15: GenTUOS | C15: Kwazulu-Natal | D15: 4 | E15: GenTUOSKwazulu-Natal4N | O15: Kwazulu-Natal | P15: 1.004
A16: TUoS network charges for Transmission connected generators | B16: GenTUOS | C16: Vaal | D16: 4 | E16: GenTUOSVaal4N | O16: Vaal | P16: 1.02
A17: TUoS network charges for Transmission connected generators | B17: GenTUOS | C17: Waterburg | D17: 4 | E17: GenTUOSWaterburg4N | O17: Waterburg | P17: 1.023
A18: TUoS network charges for Transmission connected generators | B18: GenTUOS | C18: Mpumalanga | D18: 4 | E18: GenTUOSMpumalanga4N | O18: Mpumalanga | P18: 1.021

Sheet Excess NAC
A2: Non-municipal | S2: Urban - Excess NAC Megaflex [non local authorities] | X2: Urban - Excess NAC Nightsave Urban Large [non local authorities] | AD2: Urban - Excess NAC Miniflex [non local authorities]
U4: Excess network charge [R/kVA/m] | AA4: Excess network charge [R/kVA/m] | AG4: Excess network charge [R/kVA/m]
S5: Transmission zone | Y5: Transmission zone | AE5: Transmission zone
T6: Voltage | Z6: Voltage | AF6: Voltage
A7: Tariff | B7: Tariff nameBillcode | C7: Tx zone | D7: Voltage | E7: Billcode | G7: Tariff | H7: Tariff nameBillcode | I7: Tx zone | J7: Voltage | K7: Billcode | M7: Tariff | N7: Tariff nameBillcode | O7: Tx zone | P7: Voltage | Q7: Billcode | V7: VAT incl | AB7: VAT incl | AH7: VAT incl
A8: Excess NAC Megaflex | B8: ExNACMe | C8: 0 | D8: 1 | E8: ExNACMe01N | G8: Excess NAC Nightsave Large | H8: ExNACNL | I8: 0 | J8: 1 | K8: ExNACNL01N | M8: Excess NAC Miniflex | N8: ExNACMi | O8: 0 | P8: 1 | Q8: ExNACMi01N | S8: ≤ 300km | T8: < 500V | U8: 0 | V8: 0 | Y8: ≤ 300km | Z8: < 500V | AA8: 0 | AB8: 0 | AE8: ≤ 300km | AF8: < 500V | AG8: 0 | AH8: 0
A9: Excess NAC Megaflex | B9: ExNACMe | C9: 0 | D9: 2 | E9: ExNACMe02N | G9: Excess NAC Nightsave Large | H9: ExNACNL | I9: 0 | J9: 2 | K9: ExNACNL02N | M9: Excess NAC Miniflex | N9: ExNACMi | O9: 0 | P9: 2 | Q9: ExNACMi02N | T9: ≥ 500V & < 66kV | U9: 0 | V9: 0 | Z9: ≥ 500V & < 66kV | AA9: 0 | AB9: 0 | AF9: ≥ 500V & < 66kV | AG9: 0 | AH9: 0
A10: Excess NAC Megaflex | B10: ExNACMe | C10: 0 | D10: 3 | E10: ExNACMe03N | G10: Excess NAC Nightsave Large | H10: ExNACNL | I10: 0 | J10: 3 | K10: ExNACNL03N | M10: Excess NAC Miniflex | N10: ExNACMi | O10: 0 | P10: 3 | Q10: ExNACMi03N | T10: ≥ 66kV & ≤ 132kV | U10: 0 | V10: 0 | Z10: ≥ 66kV & ≤ 132kV | AA10: 0 | AB10: 0 | AF10: ≥ 66kV & ≤ 132kV | AG10: 0 | AH10: 0
A11: Excess NAC Megaflex | B11: ExNACMe | C11: 0 | D11: 4 | E11: ExNACMe04N | G11: Excess NAC Nightsave Large | H11: ExNACNL | I11: 0 | J11: 4 | K11: ExNACNL04N | M11: Excess NAC Miniflex | N11: ExNACMi | O11: 0 | P11: 4 | Q11: ExNACMi04N | T11: > 132kV* | U11: 0 | V11: 0 | Z11: > 132kV* | AA11: 0 | AB11: 0 | AF11: > 132kV* | AG11: 0 | AH11: 0
A12: Excess NAC Megaflex | B12: ExNACMe | C12: 1 | D12: 1 | E12: ExNACMe11N | G12: Excess NAC Nightsave Large | H12: ExNACNL | I12: 1 | J12: 1 | K12: ExNACNL11N | M12: Excess NAC Miniflex | N12: ExNACMi | O12: 1 | P12: 1 | Q12: ExNACMi11N | S12: > 300km and ≤ 600km | T12: < 500V | U12: 0 | V12: 0 | Y12: > 300km and ≤ 600km | Z12: < 500V | AA12: 0 | AB12: 0 | AE12: > 300km and ≤ 600km | AF12: < 500V | AG12: 0 | AH12: 0
A13: Excess NAC Megaflex | B13: ExNACMe | C13: 1 | D13: 2 | E13: ExNACMe12N | G13: Excess NAC Nightsave Large | H13: ExNACNL | I13: 1 | J13: 2 | K13: ExNACNL12N | M13: Excess NAC Miniflex | N13: ExNACMi | O13: 1 | P13: 2 | Q13: ExNACMi12N | T13: ≥ 500V & < 66kV | U13: 0 | V13: 0 | Z13: ≥ 500V & < 66kV | AA13: 0 | AB13: 0 | AF13: ≥ 500V & < 66kV | AG13: 0 | AH13: 0
A14: Excess NAC Megaflex | B14: ExNACMe | C14: 1 | D14: 3 | E14: ExNACMe13N | G14: Excess NAC Nightsave Large | H14: ExNACNL | I14: 1 | J14: 3 | K14: ExNACNL13N | M14: Excess NAC Miniflex | N14: ExNACMi | O14: 1 | P14: 3 | Q14: ExNACMi13N | T14: ≥ 66kV & ≤ 132kV | U14: 0 | V14: 0 | Z14: ≥ 66kV & ≤ 132kV | AA14: 0 | AB14: 0 | AF14: ≥ 66kV & ≤ 132kV | AG14: 0 | AH14: 0
A15: Excess NAC Megaflex | B15: ExNACMe | C15: 1 | D15: 4 | E15: ExNACMe14N | G15: Excess NAC Nightsave Large | H15: ExNACNL | I15: 1 | J15: 4 | K15: ExNACNL14N | M15: Excess NAC Miniflex | N15: ExNACMi | O15: 1 | P15: 4 | Q15: ExNACMi14N | T15: > 132kV* | U15: 0 | V15: 0 | Z15: > 132kV* | AA15: 0 | AB15: 0 | AF15: > 132kV* | AG15: 0 | AH15: 0
A16: Excess NAC Megaflex | B16: ExNACMe | C16: 2 | D16: 1 | E16: ExNACMe21N | G16: Excess NAC Nightsave Large | H16: ExNACNL | I16: 2 | J16: 1 | K16: ExNACNL21N | M16: Excess NAC Miniflex | N16: ExNACMi | O16: 2 | P16: 1 | Q16: ExNACMi21N | S16: > 600km and ≤ 900km | T16: < 500V | U16: 0 | V16: 0 | Y16: > 600km and ≤ 900km | Z16: < 500V | AA16: 0 | AB16: 0 | AE16: > 600km and ≤ 900km | AF16: < 500V | AG16: 0 | AH16: 0
A17: Excess NAC Megaflex | B17: ExNACMe | C17: 2 | D17: 2 | E17: ExNACMe22N | G17: Excess NAC Nightsave Large | H17: ExNACNL | I17: 2 | J17: 2 | K17: ExNACNL22N | M17: Excess NAC Miniflex | N17: ExNACMi | O17: 2 | P17: 2 | Q17: ExNACMi22N | T17: ≥ 500V & < 66kV | U17: 0 | V17: 0 | Z17: ≥ 500V & < 66kV | AA17: 0 | AB17: 0 | AF17: ≥ 500V & < 66kV | AG17: 0 | AH17: 0
A18: Excess NAC Megaflex | B18: ExNACMe | C18: 2 | D18: 3 | E18: ExNACMe23N | G18: Excess NAC Nightsave Large | H18: ExNACNL | I18: 2 | J18: 3 | K18: ExNACNL23N | M18: Excess NAC Miniflex | N18: ExNACMi | O18: 2 | P18: 3 | Q18: ExNACMi23N | T18: ≥ 66kV & ≤ 132kV | U18: 0 | V18: 0 | Z18: ≥ 66kV & ≤ 132kV | AA18: 0 | AB18: 0 | AF18: ≥ 66kV & ≤ 132kV | AG18: 0 | AH18: 0
A19: Excess NAC Megaflex | B19: ExNACMe | C19: 2 | D19: 4 | E19: ExNACMe24N | G19: Excess NAC Nightsave Large | H19: ExNACNL | I19: 2 | J19: 4 | K19: ExNACNL24N | M19: Excess NAC Miniflex | N19: ExNACMi | O19: 2 | P19: 4 | Q19: ExNACMi24N | T19: > 132kV* | U19: 0 | V19: 0 | Z19: > 132kV* | AA19: 0 | AB19: 0 | AF19: > 132kV* | AG19: 0 | AH19: 0
A20: Excess NAC Megaflex | B20: ExNACMe | C20: 3 | D20: 1 | E20: ExNACMe31N | G20: Excess NAC Nightsave Large | H20: ExNACNL | I20: 3 | J20: 1 | K20: ExNACNL31N | M20: Excess NAC Miniflex | N20: ExNACMi | O20: 3 | P20: 1 | Q20: ExNACMi31N | S20: > 900km | T20: < 500V | U20: 0 | V20: 0 | Y20: > 900km | Z20: < 500V | AA20: 0 | AB20: 0 | AE20: > 900km | AF20: < 500V | AG20: 0 | AH20: 0
A21: Excess NAC Megaflex | B21: ExNACMe | C21: 3 | D21: 2 | E21: ExNACMe32N | G21: Excess NAC Nightsave Large | H21: ExNACNL | I21: 3 | J21: 2 | K21: ExNACNL32N | M21: Excess NAC Miniflex | N21: ExNACMi | O21: 3 | P21: 2 | Q21: ExNACMi32N | T21: ≥ 500V & < 66kV | U21: 0 | V21: 0 | Z21: ≥ 500V & < 66kV | AA21: 0 | AB21: 0 | AF21: ≥ 500V & < 66kV | AG21: 0 | AH21: 0
A22: Excess NAC Megaflex | B22: ExNACMe | C22: 3 | D22: 3 | E22: ExNACMe33N | G22: Excess NAC Nightsave Large | H22: ExNACNL | I22: 3 | J22: 3 | K22: ExNACNL33N | M22: Excess NAC Miniflex | N22: ExNACMi | O22: 3 | P22: 3 | Q22: ExNACMi33N | T22: ≥ 66kV & ≤ 132kV | U22: 0 | V22: 0 | Z22: ≥ 66kV & ≤ 132kV | AA22: 0 | AB22: 0 | AF22: ≥ 66kV & ≤ 132kV | AG22: 0 | AH22: 0
A23: Excess NAC Megaflex | B23: ExNACMe | C23: 3 | D23: 4 | E23: ExNACMe34N | G23: Excess NAC Nightsave Large | H23: ExNACNL | I23: 3 | J23: 4 | K23: ExNACNL34N | M23: Excess NAC Miniflex | N23: ExNACMi | O23: 3 | P23: 4 | Q23: ExNACMi34N | T23: > 132kV* | U23: 0 | V23: 0 | Z23: > 132kV* | AA23: 0 | AB23: 0 | AF23: > 132kV* | AG23: 0 | AH23: 0
T24: * 132 kV or Transmission connected | Z24: * 132 kV or Transmission connected | AF24: * 132 kV or Transmission connected
S25: Urban - Excess NAC Nightsave Urban Small [non local authorities] | X25: Rural - Excess NAC Nightsave Rural [non local authorities] | AD25: Rural - Excess NAC Ruraflex [non local authorities]
U27: Excess network charge [R/kVA/m] | AA27: Excess network charge [R/kVA/m] | AG27: Excess network charge [R/kVA/m]
S28: Transmission zone | Y28: Transmission zone | AE28: Transmission zone
T29: Voltage | Z29: Voltage | AF29: Voltage
A30: Tariff | B30: Tariff nameBillcode | C30: Tx zone | D30: Voltage | E30: Billcode | G30: Tariff | H30: Tariff nameBillcode | I30: Tx zone | J30: Voltage | K30: Billcode | M30: Tariff | N30: Tariff nameBillcode | O30: Tx zone | P30: Voltage | Q30: Billcode | V30: VAT incl | AB30: VAT incl | AH30: VAT incl
A31: Excess NAC Nightsave Small | B31: ExNACNS | C31: 0 | D31: 1 | E31: ExNACNS01N | G31: Excess NAC Nightsave Rural | H31: ExNACNR | I31: 0 | J31: 1 | K31: ExNACNR01N | M31: Excess NAC Ruraflex | N31: ExNACRu | O31: 0 | P31: 1 | Q31: ExNACRu01N | S31: ≤ 300km | T31: < 500V | U31: 0 | V31: 0 | Y31: ≤ 300km | Z31: < 500V | AA31: 0 | AB31: 0 | AE31: ≤ 300km | AF31: < 500V | AG31: 0 | AH31: 0
A32: Excess NAC Nightsave Small | B32: ExNACNS | C32: 0 | D32: 2 | E32: ExNACNS02N | G32: Excess NAC Nightsave Rural | H32: ExNACNR | I32: 0 | J32: 2 | K32: ExNACNR02N | M32: Excess NAC Ruraflex | N32: ExNACRu | O32: 0 | P32: 2 | Q32: ExNACRu02N | T32: ≥ 500V & < 66kV | U32: 0 | V32: 0 | Z32: ≥ 500V & ≤ 22kV | AA32: 0 | AB32: 0 | AF32: ≥ 500V & ≤ 22kV | AG32: 0 | AH32: 0
A33: Excess NAC Nightsave Small | B33: ExNACNS | C33: 0 | D33: 3 | E33: ExNACNS03N | G33: Excess NAC Nightsave Rural | H33: ExNACNR | I33: 0 | J33: 3 | K33: ExNACNR03N | M33: Excess NAC Ruraflex | N33: ExNACRu | O33: 0 | P33: 3 | Q33: ExNACRu03N | T33: ≥ 66kV & ≤ 132kV | U33: 0 | V33: 0
A34: Excess NAC Nightsave Small | B34: ExNACNS | C34: 0 | D34: 4 | E34: ExNACNS04N | G34: Excess NAC Nightsave Rural | H34: ExNACNR | I34: 0 | J34: 4 | K34: ExNACNR04N | M34: Excess NAC Ruraflex | N34: ExNACRu | O34: 0 | P34: 4 | Q34: ExNACRu04N | T34: > 132kV* | U34: 0 | V34: 0
A35: Excess NAC Nightsave Small | B35: ExNACNS | C35: 1 | D35: 1 | E35: ExNACNS11N | G35: Excess NAC Nightsave Rural | H35: ExNACNR | I35: 1 | J35: 1 | K35: ExNACNR11N | M35: Excess NAC Ruraflex | N35: ExNACRu | O35: 1 | P35: 1 | Q35: ExNACRu11N | S35: > 300km and ≤ 600km | T35: < 500V | U35: 0 | V35: 0 | Y35: > 300km and ≤ 600km | Z35: < 500V | AA35: 0 | AB35: 0 | AE35: > 300km and ≤ 600km | AF35: < 500V | AG35: 0 | AH35: 0
A36: Excess NAC Nightsave Small | B36: ExNACNS | C36: 1 | D36: 2 | E36: ExNACNS12N | G36: Excess NAC Nightsave Rural | H36: ExNACNR | I36: 1 | J36: 2 | K36: ExNACNR12N | M36: Excess NAC Ruraflex | N36: ExNACRu | O36: 1 | P36: 2 | Q36: ExNACRu12N | T36: ≥ 500V & < 66kV | U36: 0 | V36: 0 | Z36: ≥ 500V & ≤ 22kV | AA36: 0 | AB36: 0 | AF36: ≥ 500V & ≤ 22kV | AG36: 0 | AH36: 0
A37: Excess NAC Nightsave Small | B37: ExNACNS | C37: 1 | D37: 3 | E37: ExNACNS13N | G37: Excess NAC Nightsave Rural | H37: ExNACNR | I37: 1 | J37: 3 | K37: ExNACNR13N | M37: Excess NAC Ruraflex | N37: ExNACRu | O37: 1 | P37: 3 | Q37: ExNACRu13N | T37: ≥ 66kV & ≤ 132kV | U37: 0 | V37: 0
A38: Excess NAC Nightsave Small | B38: ExNACNS | C38: 1 | D38: 4 | E38: ExNACNS14N | G38: Excess NAC Nightsave Rural | H38: ExNACNR | I38: 1 | J38: 4 | K38: ExNACNR14N | M38: Excess NAC Ruraflex | N38: ExNACRu | O38: 1 | P38: 4 | Q38: ExNACRu14N | T38: > 132kV* | U38: 0 | V38: 0
A39: Excess NAC Nightsave Small | B39: ExNACNS | C39: 2 | D39: 1 | E39: ExNACNS21N | G39: Excess NAC Nightsave Rural | H39: ExNACNR | I39: 2 | J39: 1 | K39: ExNACNR21N | M39: Excess NAC Ruraflex | N39: ExNACRu | O39: 2 | P39: 1 | Q39: ExNACRu21N | S39: > 600km and ≤ 900km | T39: < 500V | U39: 0 | V39: 0 | Y39: > 600km and ≤ 900km | Z39: < 500V | AA39: 0 | AB39: 0 | AE39: > 600km and ≤ 900km | AF39: < 500V | AG39: 0 | AH39: 0
A40: Excess NAC Nightsave Small | B40: ExNACNS | C40: 2 | D40: 2 | E40: ExNACNS22N | G40: Excess NAC Nightsave Rural | H40: ExNACNR | I40: 2 | J40: 2 | K40: ExNACNR22N | M40: Excess NAC Ruraflex | N40: ExNACRu | O40: 2 | P40: 2 | Q40: ExNACRu22N | T40: ≥ 500V & < 66kV | U40: 0 | V40: 0 | Z40: ≥ 500V & ≤ 22kV | AA40: 0 | AB40: 0 | AF40: ≥ 500V & ≤ 22kV | AG40: 0 | AH40: 0
A41: Excess NAC Nightsave Small | B41: ExNACNS | C41: 2 | D41: 3 | E41: ExNACNS23N | G41: Excess NAC Nightsave Rural | H41: ExNACNR | I41: 2 | J41: 3 | K41: ExNACNR23N | M41: Excess NAC Ruraflex | N41: ExNACRu | O41: 2 | P41: 3 | Q41: ExNACRu23N | T41: ≥ 66kV & ≤ 132kV | U41: 0 | V41: 0
A42: Excess NAC Nightsave Small | B42: ExNACNS | C42: 2 | D42: 4 | E42: ExNACNS24N | G42: Excess NAC Nightsave Rural | H42: ExNACNR | I42: 2 | J42: 4 | K42: ExNACNR24N | M42: Excess NAC Ruraflex | N42: ExNACRu | O42: 2 | P42: 4 | Q42: ExNACRu24N | T42: > 132kV* | U42: 0 | V42: 0
A43: Excess NAC Nightsave Small | B43: ExNACNS | C43: 3 | D43: 1 | E43: ExNACNS31N | G43: Excess NAC Nightsave Rural | H43: ExNACNR | I43: 3 | J43: 1 | K43: ExNACNR31N | M43: Excess NAC Ruraflex | N43: ExNACRu | O43: 3 | P43: 1 | Q43: ExNACRu31N | S43: > 900km | T43: < 500V | U43: 0 | V43: 0 | Y43: > 900km | Z43: < 500V | AA43: 0 | AB43: 0 | AE43: > 900km | AF43: < 500V | AG43: 0 | AH43: 0
A44: Excess NAC Nightsave Small | B44: ExNACNS | C44: 3 | D44: 2 | E44: ExNACNS32N | G44: Excess NAC Nightsave Rural | H44: ExNACNR | I44: 3 | J44: 2 | K44: ExNACNR32N | M44: Excess NAC Ruraflex | N44: ExNACRu | O44: 3 | P44: 2 | Q44: ExNACRu32N | T44: ≥ 500V & < 66kV | U44: 0 | V44: 0 | Z44: ≥ 500V & ≤ 22kV | AA44: 0 | AB44: 0 | AF44: ≥ 500V & ≤ 22kV | AG44: 0 | AH44: 0
A45: Excess NAC Nightsave Small | B45: ExNACNS | C45: 3 | D45: 3 | E45: ExNACNS33N | G45: Excess NAC Nightsave Rural | H45: ExNACNR | I45: 3 | J45: 3 | K45: ExNACNR33N | M45: Excess NAC Ruraflex | N45: ExNACRu | O45: 3 | P45: 3 | Q45: ExNACRu33N | T45: ≥ 66kV & ≤ 132kV | U45: 0 | V45: 0
A46: Excess NAC Nightsave Small | B46: ExNACNS | C46: 3 | D46: 4 | E46: ExNACNS34N | G46: Excess NAC Nightsave Rural | H46: ExNACNR | I46: 3 | J46: 4 | K46: ExNACNR34N | M46: Excess NAC Ruraflex | N46: ExNACRu | O46: 3 | P46: 4 | Q46: ExNACRu34N | T46: > 132kV* | U46: 0 | V46: 0
T47: * 132 kV or Transmission connected

Sheet Excess NAC Munic
A2: Municiple | S2: Urban - Excess NAC Megaflex [non local authorities] | X2: Urban - Excess NAC Nightsave Urban Large [non local authorities] | AD2: Urban - Excess NAC Miniflex [non local authorities]
U4: Excess network charge [R/kVA/m] | AA4: Excess network charge [R/kVA/m] | AG4: Excess network charge [R/kVA/m]
S5: Transmission zone | Y5: Transmission zone | AE5: Transmission zone
T6: Voltage | Z6: Voltage | AF6: Voltage
A7: Tariff | B7: Tariff nameBillcode | C7: Tx zone | D7: Voltage | E7: Billcode | G7: Tariff | H7: Tariff nameBillcode | I7: Tx zone | J7: Voltage | K7: Billcode | M7: Tariff | N7: Tariff nameBillcode | O7: Tx zone | P7: Voltage | Q7: Billcode | V7: VAT incl | AB7: VAT incl | AH7: VAT incl
A8: Excess NAC Megaflex | B8: ExNACMe | C8: 0 | D8: 1 | E8: ExNACMe01Y | G8: Excess NAC Nightsave Large | H8: ExNACNL | I8: 0 | J8: 1 | K8: ExNACNL01Y | M8: Excess NAC Miniflex | N8: ExNACMi | O8: 0 | P8: 1 | Q8: ExNACMi01Y | S8: ≤ 300km | T8: < 500V | U8: 0 | V8: 0 | Y8: ≤ 300km | Z8: < 500V | AA8: 0 | AB8: 0 | AE8: ≤ 300km | AF8: < 500V | AG8: 0 | AH8: 0
A9: Excess NAC Megaflex | B9: ExNACMe | C9: 0 | D9: 2 | E9: ExNACMe02Y | G9: Excess NAC Nightsave Large | H9: ExNACNL | I9: 0 | J9: 2 | K9: ExNACNL02Y | M9: Excess NAC Miniflex | N9: ExNACMi | O9: 0 | P9: 2 | Q9: ExNACMi02Y | T9: ≥ 500V & < 66kV | U9: 0 | V9: 0 | Z9: ≥ 500V & < 66kV | AA9: 0 | AB9: 0 | AF9: ≥ 500V & < 66kV | AG9: 0 | AH9: 0
A10: Excess NAC Megaflex | B10: ExNACMe | C10: 0 | D10: 3 | E10: ExNACMe03Y | G10: Excess NAC Nightsave Large | H10: ExNACNL | I10: 0 | J10: 3 | K10: ExNACNL03Y | M10: Excess NAC Miniflex | N10: ExNACMi | O10: 0 | P10: 3 | Q10: ExNACMi03Y | T10: ≥ 66kV & ≤ 132kV | U10: 0 | V10: 0 | Z10: ≥ 66kV & ≤ 132kV | AA10: 0 | AB10: 0 | AF10: ≥ 66kV & ≤ 132kV | AG10: 0 | AH10: 0
A11: Excess NAC Megaflex | B11: ExNACMe | C11: 0 | D11: 4 | E11: ExNACMe04Y | G11: Excess NAC Nightsave Large | H11: ExNACNL | I11: 0 | J11: 4 | K11: ExNACNL04Y | M11: Excess NAC Miniflex | N11: ExNACMi | O11: 0 | P11: 4 | Q11: ExNACMi04Y | T11: > 132kV* | U11: 0 | V11: 0 | Z11: > 132kV* | AA11: 0 | AB11: 0 | AF11: > 132kV* | AG11: 0 | AH11: 0
A12: Excess NAC Megaflex | B12: ExNACMe | C12: 1 | D12: 1 | E12: ExNACMe11Y | G12: Excess NAC Nightsave Large | H12: ExNACNL | I12: 1 | J12: 1 | K12: ExNACNL11Y | M12: Excess NAC Miniflex | N12: ExNACMi | O12: 1 | P12: 1 | Q12: ExNACMi11Y | S12: > 300km and ≤ 600km | T12: < 500V | U12: 0 | V12: 0 | Y12: > 300km and ≤ 600km | Z12: < 500V | AA12: 0 | AB12: 0 | AE12: > 300km and ≤ 600km | AF12: < 500V | AG12: 0 | AH12: 0
A13: Excess NAC Megaflex | B13: ExNACMe | C13: 1 | D13: 2 | E13: ExNACMe12Y | G13: Excess NAC Nightsave Large | H13: ExNACNL | I13: 1 | J13: 2 | K13: ExNACNL12Y | M13: Excess NAC Miniflex | N13: ExNACMi | O13: 1 | P13: 2 | Q13: ExNACMi12Y | T13: ≥ 500V & < 66kV | U13: 0 | V13: 0 | Z13: ≥ 500V & < 66kV | AA13: 0 | AB13: 0 | AF13: ≥ 500V & < 66kV | AG13: 0 | AH13: 0
A14: Excess NAC Megaflex | B14: ExNACMe | C14: 1 | D14: 3 | E14: ExNACMe13Y | G14: Excess NAC Nightsave Large | H14: ExNACNL | I14: 1 | J14: 3 | K14: ExNACNL13Y | M14: Excess NAC Miniflex | N14: ExNACMi | O14: 1 | P14: 3 | Q14: ExNACMi13Y | T14: ≥ 66kV & ≤ 132kV | U14: 0 | V14: 0 | Z14: ≥ 66kV & ≤ 132kV | AA14: 0 | AB14: 0 | AF14: ≥ 66kV & ≤ 132kV | AG14: 0 | AH14: 0
A15: Excess NAC Megaflex | B15: ExNACMe | C15: 1 | D15: 4 | E15: ExNACMe14Y | G15: Excess NAC Nightsave Large | H15: ExNACNL | I15: 1 | J15: 4 | K15: ExNACNL14Y | M15: Excess NAC Miniflex | N15: ExNACMi | O15: 1 | P15: 4 | Q15: ExNACMi14Y | T15: > 132kV* | U15: 0 | V15: 0 | Z15: > 132kV* | AA15: 0 | AB15: 0 | AF15: > 132kV* | AG15: 0 | AH15: 0
A16: Excess NAC Megaflex | B16: ExNACMe | C16: 2 | D16: 1 | E16: ExNACMe21Y | G16: Excess NAC Nightsave Large | H16: ExNACNL | I16: 2 | J16: 1 | K16: ExNACNL21Y | M16: Excess NAC Miniflex | N16: ExNACMi | O16: 2 | P16: 1 | Q16: ExNACMi21Y | S16: > 600km and ≤ 900km | T16: < 500V | U16: 0 | V16: 0 | Y16: > 600km and ≤ 900km | Z16: < 500V | AA16: 0 | AB16: 0 | AE16: > 600km and ≤ 900km | AF16: < 500V | AG16: 0 | AH16: 0
A17: Excess NAC Megaflex | B17: ExNACMe | C17: 2 | D17: 2 | E17: ExNACMe22Y | G17: Excess NAC Nightsave Large | H17: ExNACNL | I17: 2 | J17: 2 | K17: ExNACNL22Y | M17: Excess NAC Miniflex | N17: ExNACMi | O17: 2 | P17: 2 | Q17: ExNACMi22Y | T17: ≥ 500V & < 66kV | U17: 0 | V17: 0 | Z17: ≥ 500V & < 66kV | AA17: 0 | AB17: 0 | AF17: ≥ 500V & < 66kV | AG17: 0 | AH17: 0
A18: Excess NAC Megaflex | B18: ExNACMe | C18: 2 | D18: 3 | E18: ExNACMe23Y | G18: Excess NAC Nightsave Large | H18: ExNACNL | I18: 2 | J18: 3 | K18: ExNACNL23Y | M18: Excess NAC Miniflex | N18: ExNACMi | O18: 2 | P18: 3 | Q18: ExNACMi23Y | T18: ≥ 66kV & ≤ 132kV | U18: 0 | V18: 0 | Z18: ≥ 66kV & ≤ 132kV | AA18: 0 | AB18: 0 | AF18: ≥ 66kV & ≤ 132kV | AG18: 0 | AH18: 0
A19: Excess NAC Megaflex | B19: ExNACMe | C19: 2 | D19: 4 | E19: ExNACMe24Y | G19: Excess NAC Nightsave Large | H19: ExNACNL | I19: 2 | J19: 4 | K19: ExNACNL24Y | M19: Excess NAC Miniflex | N19: ExNACMi | O19: 2 | P19: 4 | Q19: ExNACMi24Y | T19: > 132kV* | U19: 0 | V19: 0 | Z19: > 132kV* | AA19: 0 | AB19: 0 | AF19: > 132kV* | AG19: 0 | AH19: 0
A20: Excess NAC Megaflex | B20: ExNACMe | C20: 3 | D20: 1 | E20: ExNACMe31Y | G20: Excess NAC Nightsave Large | H20: ExNACNL | I20: 3 | J20: 1 | K20: ExNACNL31Y | M20: Excess NAC Miniflex | N20: ExNACMi | O20: 3 | P20: 1 | Q20: ExNACMi31Y | S20: > 900km | T20: < 500V | U20: 0 | V20: 0 | Y20: > 900km | Z20: < 500V | AA20: 0 | AB20: 0 | AE20: > 900km | AF20: < 500V | AG20: 0 | AH20: 0
A21: Excess NAC Megaflex | B21: ExNACMe | C21: 3 | D21: 2 | E21: ExNACMe32Y | G21: Excess NAC Nightsave Large | H21: ExNACNL | I21: 3 | J21: 2 | K21: ExNACNL32Y | M21: Excess NAC Miniflex | N21: ExNACMi | O21: 3 | P21: 2 | Q21: ExNACMi32Y | T21: ≥ 500V & < 66kV | U21: 0 | V21: 0 | Z21: ≥ 500V & < 66kV | AA21: 0 | AB21: 0 | AF21: ≥ 500V & < 66kV | AG21: 0 | AH21: 0
A22: Excess NAC Megaflex | B22: ExNACMe | C22: 3 | D22: 3 | E22: ExNACMe33Y | G22: Excess NAC Nightsave Large | H22: ExNACNL | I22: 3 | J22: 3 | K22: ExNACNL33Y | M22: Excess NAC Miniflex | N22: ExNACMi | O22: 3 | P22: 3 | Q22: ExNACMi33Y | T22: ≥ 66kV & ≤ 132kV | U22: 0 | V22: 0 | Z22: ≥ 66kV & ≤ 132kV | AA22: 0 | AB22: 0 | AF22: ≥ 66kV & ≤ 132kV | AG22: 0 | AH22: 0
A23: Excess NAC Megaflex | B23: ExNACMe | C23: 3 | D23: 4 | E23: ExNACMe34Y | G23: Excess NAC Nightsave Large | H23: ExNACNL | I23: 3 | J23: 4 | K23: ExNACNL34Y | M23: Excess NAC Miniflex | N23: ExNACMi | O23: 3 | P23: 4 | Q23: ExNACMi34Y | T23: > 132kV* | U23: 0 | V23: 0 | Z23: > 132kV* | AA23: 0 | AB23: 0 | AF23: > 132kV* | AG23: 0 | AH23: 0
T24: * 132 kV or Transmission connected | Z24: * 132 kV or Transmission connected | AF24: * 132 kV or Transmission connected
S25: Urban - Excess NAC Nightsave Urban Small [non local authorities] | X25: Rural - Excess NAC Nightsave Rural [non local authorities] | AD25: Rural - Excess NAC Ruraflex [non local authorities]
U27: Excess network charge [R/kVA/m] | AA27: Excess network charge [R/kVA/m] | AG27: Excess network charge [R/kVA/m]
S28: Transmission zone | Y28: Transmission zone | AE28: Transmission zone
T29: Voltage | Z29: Voltage | AF29: Voltage
A30: Tariff | B30: Tariff nameBillcode | C30: Tx zone | D30: Voltage | E30: Billcode | G30: Tariff | H30: Tariff nameBillcode | I30: Tx zone | J30: Voltage | K30: Billcode | M30: Tariff | N30: Tariff nameBillcode | O30: Tx zone | P30: Voltage | Q30: Billcode | V30: VAT incl | AB30: VAT incl | AH30: VAT incl
A31: Excess NAC Nightsave Small | B31: ExNACNS | C31: 0 | D31: 1 | E31: ExNACNS01Y | G31: Excess NAC Nightsave Rural | H31: ExNACNR | I31: 0 | J31: 1 | K31: ExNACNR01Y | M31: Excess NAC Ruraflex | N31: ExNACRu | O31: 0 | P31: 1 | Q31: ExNACRu01Y | S31: ≤ 300km | T31: < 500V | U31: 0 | V31: 0 | Y31: ≤ 300km | Z31: < 500V | AA31: 0 | AB31: 0 | AE31: ≤ 300km | AF31: < 500V | AG31: 0 | AH31: 0
A32: Excess NAC Nightsave Small | B32: ExNACNS | C32: 0 | D32: 2 | E32: ExNACNS02Y | G32: Excess NAC Nightsave Rural | H32: ExNACNR | I32: 0 | J32: 2 | K32: ExNACNR02Y | M32: Excess NAC Ruraflex | N32: ExNACRu | O32: 0 | P32: 2 | Q32: ExNACRu02Y | T32: ≥ 500V & < 66kV | U32: 0 | V32: 0 | Z32: ≥ 500V & ≤ 22kV | AA32: 0 | AB32: 0 | AF32: ≥ 500V & ≤ 22kV | AG32: 0 | AH32: 0
A33: Excess NAC Nightsave Small | B33: ExNACNS | C33: 0 | D33: 3 | E33: ExNACNS03Y | G33: Excess NAC Nightsave Rural | H33: ExNACNR | I33: 0 | J33: 3 | K33: ExNACNR03Y | M33: Excess NAC Ruraflex | N33: ExNACRu | O33: 0 | P33: 3 | Q33: ExNACRu03Y | T33: ≥ 66kV & ≤ 132kV | U33: 0 | V33: 0
A34: Excess NAC Nightsave Small | B34: ExNACNS | C34: 0 | D34: 4 | E34: ExNACNS04Y | G34: Excess NAC Nightsave Rural | H34: ExNACNR | I34: 0 | J34: 4 | K34: ExNACNR04Y | M34: Excess NAC Ruraflex | N34: ExNACRu | O34: 0 | P34: 4 | Q34: ExNACRu04Y | T34: > 132kV* | U34: 0 | V34: 0
A35: Excess NAC Nightsave Small | B35: ExNACNS | C35: 1 | D35: 1 | E35: ExNACNS11Y | G35: Excess NAC Nightsave Rural | H35: ExNACNR | I35: 1 | J35: 1 | K35: ExNACNR11Y | M35: Excess NAC Ruraflex | N35: ExNACRu | O35: 1 | P35: 1 | Q35: ExNACRu11Y | S35: > 300km and ≤ 600km | T35: < 500V | U35: 0 | V35: 0 | Y35: > 300km and ≤ 600km | Z35: < 500V | AA35: 0 | AB35: 0 | AE35: > 300km and ≤ 600km | AF35: < 500V | AG35: 0 | AH35: 0
A36: Excess NAC Nightsave Small | B36: ExNACNS | C36: 1 | D36: 2 | E36: ExNACNS12Y | G36: Excess NAC Nightsave Rural | H36: ExNACNR | I36: 1 | J36: 2 | K36: ExNACNR12Y | M36: Excess NAC Ruraflex | N36: ExNACRu | O36: 1 | P36: 2 | Q36: ExNACRu12Y | T36: ≥ 500V & < 66kV | U36: 0 | V36: 0 | Z36: ≥ 500V & ≤ 22kV | AA36: 0 | AB36: 0 | AF36: ≥ 500V & ≤ 22kV | AG36: 0 | AH36: 0
A37: Excess NAC Nightsave Small | B37: ExNACNS | C37: 1 | D37: 3 | E37: ExNACNS13Y | G37: Excess NAC Nightsave Rural | H37: ExNACNR | I37: 1 | J37: 3 | K37: ExNACNR13Y | M37: Excess NAC Ruraflex | N37: ExNACRu | O37: 1 | P37: 3 | Q37: ExNACRu13Y | T37: ≥ 66kV & ≤ 132kV | U37: 0 | V37: 0
A38: Excess NAC Nightsave Small | B38: ExNACNS | C38: 1 | D38: 4 | E38: ExNACNS14Y | G38: Excess NAC Nightsave Rural | H38: ExNACNR | I38: 1 | J38: 4 | K38: ExNACNR14Y | M38: Excess NAC Ruraflex | N38: ExNACRu | O38: 1 | P38: 4 | Q38: ExNACRu14Y | T38: > 132kV* | U38: 0 | V38: 0
A39: Excess NAC Nightsave Small | B39: ExNACNS | C39: 2 | D39: 1 | E39: ExNACNS21Y | G39: Excess NAC Nightsave Rural | H39: ExNACNR | I39: 2 | J39: 1 | K39: ExNACNR21Y | M39: Excess NAC Ruraflex | N39: ExNACRu | O39: 2 | P39: 1 | Q39: ExNACRu21Y | S39: > 600km and ≤ 900km | T39: < 500V | U39: 0 | V39: 0 | Y39: > 600km and ≤ 900km | Z39: < 500V | AA39: 0 | AB39: 0 | AE39: > 600km and ≤ 900km | AF39: < 500V | AG39: 0 | AH39: 0
A40: Excess NAC Nightsave Small | B40: ExNACNS | C40: 2 | D40: 2 | E40: ExNACNS22Y | G40: Excess NAC Nightsave Rural | H40: ExNACNR | I40: 2 | J40: 2 | K40: ExNACNR22Y | M40: Excess NAC Ruraflex | N40: ExNACRu | O40: 2 | P40: 2 | Q40: ExNACRu22Y | T40: ≥ 500V & < 66kV | U40: 0 | V40: 0 | Z40: ≥ 500V & ≤ 22kV | AA40: 0 | AB40: 0 | AF40: ≥ 500V & ≤ 22kV | AG40: 0 | AH40: 0
A41: Excess NAC Nightsave Small | B41: ExNACNS | C41: 2 | D41: 3 | E41: ExNACNS23Y | G41: Excess NAC Nightsave Rural | H41: ExNACNR | I41: 2 | J41: 3 | K41: ExNACNR23Y | M41: Excess NAC Ruraflex | N41: ExNACRu | O41: 2 | P41: 3 | Q41: ExNACRu23Y | T41: ≥ 66kV & ≤ 132kV | U41: 0 | V41: 0
A42: Excess NAC Nightsave Small | B42: ExNACNS | C42: 2 | D42: 4 | E42: ExNACNS24Y | G42: Excess NAC Nightsave Rural | H42: ExNACNR | I42: 2 | J42: 4 | K42: ExNACNR24Y | M42: Excess NAC Ruraflex | N42: ExNACRu | O42: 2 | P42: 4 | Q42: ExNACRu24Y | T42: > 132kV* | U42: 0 | V42: 0
A43: Excess NAC Nightsave Small | B43: ExNACNS | C43: 3 | D43: 1 | E43: ExNACNS31Y | G43: Excess NAC Nightsave Rural | H43: ExNACNR | I43: 3 | J43: 1 | K43: ExNACNR31Y | M43: Excess NAC Ruraflex | N43: ExNACRu | O43: 3 | P43: 1 | Q43: ExNACRu31Y | S43: > 900km | T43: < 500V | U43: 0 | V43: 0 | Y43: > 900km | Z43: < 500V | AA43: 0 | AB43: 0 | AE43: > 900km | AF43: < 500V | AG43: 0 | AH43: 0
A44: Excess NAC Nightsave Small | B44: ExNACNS | C44: 3 | D44: 2 | E44: ExNACNS32Y | G44: Excess NAC Nightsave Rural | H44: ExNACNR | I44: 3 | J44: 2 | K44: ExNACNR32Y | M44: Excess NAC Ruraflex | N44: ExNACRu | O44: 3 | P44: 2 | Q44: ExNACRu32Y | T44: ≥ 500V & < 66kV | U44: 0 | V44: 0 | Z44: ≥ 500V & ≤ 22kV | AA44: 0 | AB44: 0 | AF44: ≥ 500V & ≤ 22kV | AG44: 0 | AH44: 0
A45: Excess NAC Nightsave Small | B45: ExNACNS | C45: 3 | D45: 3 | E45: ExNACNS33Y | G45: Excess NAC Nightsave Rural | H45: ExNACNR | I45: 3 | J45: 3 | K45: ExNACNR33Y | M45: Excess NAC Ruraflex | N45: ExNACRu | O45: 3 | P45: 3 | Q45: ExNACRu33Y | T45: ≥ 66kV & ≤ 132kV | U45: 0 | V45: 0
A46: Excess NAC Nightsave Small | B46: ExNACNS | C46: 3 | D46: 4 | E46: ExNACNS34Y | G46: Excess NAC Nightsave Rural | H46: ExNACNR | I46: 3 | J46: 4 | K46: ExNACNR34Y | M46: Excess NAC Ruraflex | N46: ExNACRu | O46: 3 | P46: 4 | Q46: ExNACRu34Y | T46: > 132kV* | U46: 0 | V46: 0
T47: * 132 kV or Transmission connected

Sheet Env levy (hidden)
B2: Urban
B3: Ave c/kWh | C3: Column Labels
B4: Row Labels | C4: 0 | D4: 1 | E4: 2 | F4: 3 | G4: Grand Total
B5: 1 | C5: 4.244173496 | D5: 3.922922112 | E5: 3.952738211 | F5: 3.99518266 | G5: 4.230325642
B6: 2 | C6: 3.818605965 | D6: 3.856792025 | E6: 3.895359945 | F6: 3.934313544 | G6: 3.830031886
B7: 3 | C7: 3.6978496 | D7: 3.734828096 | E7: 3.772176377 | F7: 3.809898141 | G7: 3.749584404
B8: 4 | C8: 3.485023597 | D8: 3.519873833 | E8: 3.555072571 | F8: 3.632574502 | G8: 3.497836202
B9: Grand Total | C9: 3.768693197 | D9: 3.666474757 | E9: 3.798966039 | F9: 3.84820921 | G9: 3.760612171
B11: Rural pivot(excluding landrate)
B12: Ave c/kWh | C12: Column Labels
B13: Row Labels | C13: 0 | D13: 1 | E13: 2 | F13: 3 | G13: Grand Total
B14: 1 | C14: 0 | D14: 0 | E14: 0 | F14: 0 | G14: 0
B15: 2 | C15: 0 | D15: 0 | E15: 0 | F15: 0 | G15: 0
B16: Grand Total | C16: 0 | D16: 0 | E16: 0 | F16: 0 | G16: 0
B18: Landrate
B19: Ave c/kWh | C19: Column Labels
B20: Row Labels | C20: 0 | D20: Grand Total
B21: 1 | C21: 0 | D21: 0
B22: Grand Total | C22: 0 | D22: 0
